Body Name,Transaction Number,Account Code Description,Expenses Type,Service Code,Service Area Categorisation,Supplier Name,Payment Date,Amount
Bath & North East Somerset Council,10820105,YF2,Fees & Charges,P11,Adult Social Care & Health,ADIEMUS CARE LTD - T/A WICKWAR,27/07/2015,95.27
Bath & North East Somerset Council,10820105,YF2,Fees & Charges,P11,Adult Social Care & Health,ADIEMUS CARE LTD - T/A WICKWAR,27/07/2015,112
Bath & North East Somerset Council,10820105,YF2,Fees & Charges,P11,Adult Social Care & Health,ADIEMUS CARE LTD - T/A WICKWAR,27/07/2015,112
Bath & North East Somerset Council,10820105,YF2,Fees & Charges,P11,Adult Social Care & Health,ADIEMUS CARE LTD - T/A WICKWAR,27/07/2015,166.73
Bath & North East Somerset Council,10820105,YF2,Fees & Charges,P11,Adult Social Care & Health,ADIEMUS CARE LTD - T/A WICKWAR,27/07/2015,166.73
Bath & North East Somerset Council,10820105,YF2,Fees & Charges,P11,Adult Social Care & Health,ADIEMUS CARE LTD - T/A WICKWAR,27/07/2015,166.73
Bath & North East Somerset Council,10820105,YF2,Fees & Charges,P11,Adult Social Care & Health,ADIEMUS CARE LTD - T/A WICKWAR,27/07/2015,166.73
Bath & North East Somerset Council,10820105,YF2,Fees & Charges,P11,Adult Social Care & Health,ADIEMUS CARE LTD - T/A WICKWAR,27/07/2015,166.73
Bath & North East Somerset Council,10820105,YF2,Fees & Charges,P11,Adult Social Care & Health,ADIEMUS CARE LTD - T/A WICKWAR,27/07/2015,166.73
Bath & North East Somerset Council,10820105,YF2,Fees & Charges,P11,Adult Social Care & Health,ADIEMUS CARE LTD - T/A WICKWAR,27/07/2015,166.73
Bath & North East Somerset Council,10820105,YF2,Fees & Charges,P11,Adult Social Care & Health,ADIEMUS CARE LTD - T/A WICKWAR,27/07/2015,166.73
Bath & North East Somerset Council,10820105,YF2,Fees & Charges,P11,Adult Social Care & Health,ADIEMUS CARE LTD - T/A WICKWAR,27/07/2015,166.73
Bath & North East Somerset Council,10820105,YF2,Fees & Charges,P11,Adult Social Care & Health,ADIEMUS CARE LTD - T/A WICKWAR,27/07/2015,166.73
Bath & North East Somerset Council,10820105,YF2,Fees & Charges,P11,Adult Social Care & Health,ADIEMUS CARE LTD - T/A WICKWAR,27/07/2015,166.73
Bath & North East Somerset Council,10820105,YF2,Fees & Charges,P11,Adult Social Care & Health,ADIEMUS CARE LTD - T/A WICKWAR,27/07/2015,166.73
Bath & North East Somerset Council,10820105,YF2,Fees & Charges,P11,Adult Social Care & Health,ADIEMUS CARE LTD - T/A WICKWAR,27/07/2015,166.73
Bath & North East Somerset Council,10820105,YF2,Fees & Charges,P11,Adult Social Care & Health,ADIEMUS CARE LTD - T/A WICKWAR,27/07/2015,166.73
Bath & North East Somerset Council,10820105,YF2,Fees & Charges,P11,Adult Social Care & Health,ADIEMUS CARE LTD - T/A WICKWAR,27/07/2015,166.73
Bath & North East Somerset Council,10820105,YF2,Fees & Charges,P11,Adult Social Care & Health,ADIEMUS CARE LTD - T/A WICKWAR,27/07/2015,166.73
Bath & North East Somerset Council,10820105,YF2,Fees & Charges,P11,Adult Social Care & Health,ADIEMUS CARE LTD - T/A WICKWAR,27/07/2015,166.73
Bath & North East Somerset Council,10820105,YF2,Fees & Charges,P11,Adult Social Care & Health,ADIEMUS CARE LTD - T/A WICKWAR,27/07/2015,166.73
Bath & North East Somerset Council,10820105,YF2,Fees & Charges,P11,Adult Social Care & Health,ADIEMUS CARE LTD - T/A WICKWAR,27/07/2015,166.73
Bath & North East Somerset Council,10820105,YF2,Fees & Charges,P11,Adult Social Care & Health,ADIEMUS CARE LTD - T/A WICKWAR,27/07/2015,166.73
Bath & North East Somerset Council,10820105,YF2,Fees & Charges,P11,Adult Social Care & Health,ADIEMUS CARE LTD - T/A WICKWAR,27/07/2015,166.73
Bath & North East Somerset Council,10820105,YF2,Fees & Charges,P11,Adult Social Care & Health,ADIEMUS CARE LTD - T/A WICKWAR,27/07/2015,166.73
Bath & North East Somerset Council,10820105,YF2,Fees & Charges,P11,Adult Social Care & Health,ADIEMUS CARE LTD - T/A WICKWAR,27/07/2015,166.73
Bath & North East Somerset Council,10820105,YF2,Fees & Charges,P11,Adult Social Care & Health,ADIEMUS CARE LTD - T/A WICKWAR,27/07/2015,166.73
Bath & North East Somerset Council,10820105,YF2,Fees & Charges,P11,Adult Social Care & Health,ADIEMUS CARE LTD - T/A WICKWAR,27/07/2015,166.73
Bath & North East Somerset Council,10820105,YF2,Fees & Charges,P11,Adult Social Care & Health,ADIEMUS CARE LTD - T/A WICKWAR,27/07/2015,166.73
Bath & North East Somerset Council,10820105,YF2,Fees & Charges,P11,Adult Social Care & Health,ADIEMUS CARE LTD - T/A WICKWAR,27/07/2015,166.73
Bath & North East Somerset Council,10820105,YF2,Fees & Charges,P11,Adult Social Care & Health,ADIEMUS CARE LTD - T/A WICKWAR,27/07/2015,166.73
Bath & North East Somerset Council,10820105,YF2,Fees & Charges,P11,Adult Social Care & Health,ADIEMUS CARE LTD - T/A WICKWAR,27/07/2015,166.73
Bath & North East Somerset Council,10820105,YF2,Fees & Charges,P11,Adult Social Care & Health,ADIEMUS CARE LTD - T/A WICKWAR,27/07/2015,166.73
Bath & North East Somerset Council,10820105,YF2,Fees & Charges,P11,Adult Social Care & Health,ADIEMUS CARE LTD - T/A WICKWAR,27/07/2015,166.73
Bath & North East Somerset Council,10820105,YF2,Fees & Charges,P11,Adult Social Care & Health,ADIEMUS CARE LTD - T/A WICKWAR,27/07/2015,166.73
Bath & North East Somerset Council,10820105,YF2,Fees & Charges,P11,Adult Social Care & Health,ADIEMUS CARE LTD - T/A WICKWAR,27/07/2015,166.73
Bath & North East Somerset Council,10820105,YF2,Fees & Charges,P11,Adult Social Care & Health,ADIEMUS CARE LTD - T/A WICKWAR,27/07/2015,166.73
Bath & North East Somerset Council,10820105,YF2,Fees & Charges,P11,Adult Social Care & Health,ADIEMUS CARE LTD - T/A WICKWAR,27/07/2015,166.73
Bath & North East Somerset Council,10820105,YF2,Fees & Charges,P11,Adult Social Care & Health,ADIEMUS CARE LTD - T/A WICKWAR,27/07/2015,166.73
Bath & North East Somerset Council,10820105,YF2,Fees & Charges,P11,Adult Social Care & Health,ADIEMUS CARE LTD - T/A WICKWAR,27/07/2015,166.73
Bath & North East Somerset Council,10820105,YF2,Fees & Charges,P11,Adult Social Care & Health,ADIEMUS CARE LTD - T/A WICKWAR,27/07/2015,169.38
Bath & North East Somerset Council,10820105,YF2,Fees & Charges,P11,Adult Social Care & Health,ADIEMUS CARE LTD - T/A WICKWAR,27/07/2015,169.38
Bath & North East Somerset Council,10820105,YF2,Fees & Charges,P11,Adult Social Care & Health,ADIEMUS CARE LTD - T/A WICKWAR,27/07/2015,169.38
Bath & North East Somerset Council,10820105,YF2,Fees & Charges,P11,Adult Social Care & Health,ADIEMUS CARE LTD - T/A WICKWAR,27/07/2015,169.38
Bath & North East Somerset Council,10820105,YF2,Fees & Charges,P11,Adult Social Care & Health,ADIEMUS CARE LTD - T/A WICKWAR,27/07/2015,169.38
Bath & North East Somerset Council,10820105,YF2,Fees & Charges,P11,Adult Social Care & Health,ADIEMUS CARE LTD - T/A WICKWAR,27/07/2015,169.38
Bath & North East Somerset Council,10820105,YF2,Fees & Charges,P11,Adult Social Care & Health,ADIEMUS CARE LTD - T/A WICKWAR,27/07/2015,169.38
Bath & North East Somerset Council,10820105,YF2,Fees & Charges,P11,Adult Social Care & Health,ADIEMUS CARE LTD - T/A WICKWAR,27/07/2015,169.38
Bath & North East Somerset Council,10820105,YF2,Fees & Charges,P11,Adult Social Care & Health,ADIEMUS CARE LTD - T/A WICKWAR,27/07/2015,169.38
Bath & North East Somerset Council,10820105,YF2,Fees & Charges,P11,Adult Social Care & Health,ADIEMUS CARE LTD - T/A WICKWAR,27/07/2015,169.38
Bath & North East Somerset Council,10820105,YF2,Fees & Charges,P11,Adult Social Care & Health,ADIEMUS CARE LTD - T/A WICKWAR,27/07/2015,169.38
Bath & North East Somerset Council,10820105,YF2,Fees & Charges,P11,Adult Social Care & Health,ADIEMUS CARE LTD - T/A WICKWAR,27/07/2015,169.38
Bath & North East Somerset Council,10820105,YF2,Fees & Charges,P11,Adult Social Care & Health,ADIEMUS CARE LTD - T/A WICKWAR,27/07/2015,169.38
Bath & North East Somerset Council,10820105,YF2,Fees & Charges,P11,Adult Social Care & Health,ADIEMUS CARE LTD - T/A WICKWAR,27/07/2015,169.38
Bath & North East Somerset Council,10820105,YF2,Fees & Charges,P11,Adult Social Care & Health,ADIEMUS CARE LTD - T/A WICKWAR,27/07/2015,169.38
Bath & North East Somerset Council,10820105,YF2,Fees & Charges,P11,Adult Social Care & Health,ADIEMUS CARE LTD - T/A WICKWAR,27/07/2015,169.38
Bath & North East Somerset Council,10820105,YF2,Fees & Charges,P11,Adult Social Care & Health,ADIEMUS CARE LTD - T/A WICKWAR,27/07/2015,169.38
Bath & North East Somerset Council,10820633,LM3,Residential Care,P11,Adult Social Care & Health,THE BRANDON TRUST,07/03/2016,822.43
Bath & North East Somerset Council,10820633,LM3,Residential Care,P11,Adult Social Care & Health,THE BRANDON TRUST,07/03/2016,1439.25
Bath & North East Somerset Council,10820633,LM3,Residential Care,P11,Adult Social Care & Health,THE BRANDON TRUST,07/03/2016,1439.25
Bath & North East Somerset Council,10820633,LM3,Residential Care,P11,Adult Social Care & Health,THE BRANDON TRUST,07/03/2016,1439.25
Bath & North East Somerset Council,10820633,LM3,Residential Care,P11,Adult Social Care & Health,THE BRANDON TRUST,07/03/2016,1439.25
Bath & North East Somerset Council,10820633,LM3,Residential Care,P11,Adult Social Care & Health,THE BRANDON TRUST,07/03/2016,1439.25
Bath & North East Somerset Council,10820633,LM3,Residential Care,P11,Adult Social Care & Health,THE BRANDON TRUST,07/03/2016,1439.25
Bath & North East Somerset Council,10820633,LM3,Residential Care,P11,Adult Social Care & Health,THE BRANDON TRUST,07/03/2016,1439.25
Bath & North East Somerset Council,10820633,LM3,Residential Care,P11,Adult Social Care & Health,THE BRANDON TRUST,07/03/2016,1439.25
Bath & North East Somerset Council,10819024,LJ3,Other Services to the Council,P14,Community Services,THE LANDSCAPE GROUP LTD,22/03/2016,735
Bath & North East Somerset Council,10818988,3C4,Building Works,P14,Community Services,THE LANDSCAPE GROUP LTD,31/03/2016,2527.75
Bath & North East Somerset Council,10818987,LJ4,Contracts,P14,Community Services,THE LANDSCAPE GROUP LTD,31/03/2016,3545.06
Bath & North East Somerset Council,10820635,LM6,Nursing Care,P11,Adult Social Care & Health,BRIGHTWELL RES CARE,27/05/2016,200
Bath & North East Somerset Council,10820635,LM6,Nursing Care,P11,Adult Social Care & Health,BRIGHTWELL RES CARE,27/05/2016,600
Bath & North East Somerset Council,10820635,LM6,Nursing Care,P11,Adult Social Care & Health,BRIGHTWELL RES CARE,27/05/2016,700
Bath & North East Somerset Council,10820635,LM6,Nursing Care,P11,Adult Social Care & Health,BRIGHTWELL RES CARE,27/05/2016,700
Bath & North East Somerset Council,10820635,LM6,Nursing Care,P11,Adult Social Care & Health,BRIGHTWELL RES CARE,27/05/2016,700
Bath & North East Somerset Council,10820634,YF2,Fees & Charges,P11,Adult Social Care & Health,RHETOR 17 LTD,27/05/2016,80
Bath & North East Somerset Council,10820634,YF2,Fees & Charges,P11,Adult Social Care & Health,RHETOR 17 LTD,27/05/2016,96
Bath & North East Somerset Council,10820634,YF2,Fees & Charges,P11,Adult Social Care & Health,RHETOR 17 LTD,27/05/2016,112
Bath & North East Somerset Council,10820634,YF2,Fees & Charges,P11,Adult Social Care & Health,RHETOR 17 LTD,27/05/2016,112
Bath & North East Somerset Council,10820634,YF2,Fees & Charges,P11,Adult Social Care & Health,RHETOR 17 LTD,27/05/2016,112
Bath & North East Somerset Council,10820634,YF2,Fees & Charges,P11,Adult Social Care & Health,RHETOR 17 LTD,27/05/2016,112
Bath & North East Somerset Council,10820634,YF2,Fees & Charges,P11,Adult Social Care & Health,RHETOR 17 LTD,27/05/2016,112
Bath & North East Somerset Council,10820634,YF2,Fees & Charges,P11,Adult Social Care & Health,RHETOR 17 LTD,27/05/2016,112
Bath & North East Somerset Council,10820634,LM6,Nursing Care,P11,Adult Social Care & Health,RHETOR 17 LTD,27/05/2016,431.43
Bath & North East Somerset Council,10820634,LM6,Nursing Care,P11,Adult Social Care & Health,RHETOR 17 LTD,27/05/2016,604
Bath & North East Somerset Council,10820634,LM6,Nursing Care,P11,Adult Social Care & Health,RHETOR 17 LTD,27/05/2016,604
Bath & North East Somerset Council,10820634,LM6,Nursing Care,P11,Adult Social Care & Health,RHETOR 17 LTD,27/05/2016,604
Bath & North East Somerset Council,10820634,LM6,Nursing Care,P11,Adult Social Care & Health,RHETOR 17 LTD,27/05/2016,604
Bath & North East Somerset Council,10820634,LM6,Nursing Care,P11,Adult Social Care & Health,RHETOR 17 LTD,27/05/2016,604
Bath & North East Somerset Council,10820634,LM6,Nursing Care,P11,Adult Social Care & Health,RHETOR 17 LTD,27/05/2016,604
Bath & North East Somerset Council,10820634,LM6,Nursing Care,P11,Adult Social Care & Health,RHETOR 17 LTD,27/05/2016,604
Bath & North East Somerset Council,10820634,LM6,Nursing Care,P11,Adult Social Care & Health,RHETOR 17 LTD,27/05/2016,604
Bath & North East Somerset Council,10820634,LM6,Nursing Care,P11,Adult Social Care & Health,RHETOR 17 LTD,27/05/2016,604
Bath & North East Somerset Council,10820637,LM3,Residential Care,P11,Adult Social Care & Health,THE BRANDON TRUST,27/05/2016,616.82
Bath & North East Somerset Council,10820637,LM3,Residential Care,P11,Adult Social Care & Health,THE BRANDON TRUST,27/05/2016,1028.04
Bath & North East Somerset Council,10820637,LM3,Residential Care,P11,Adult Social Care & Health,THE BRANDON TRUST,27/05/2016,1233.64
Bath & North East Somerset Council,10820637,LM3,Residential Care,P11,Adult Social Care & Health,THE BRANDON TRUST,27/05/2016,1439.25
Bath & North East Somerset Council,10820637,LM3,Residential Care,P11,Adult Social Care & Health,THE BRANDON TRUST,27/05/2016,1439.25
Bath & North East Somerset Council,10820637,LM3,Residential Care,P11,Adult Social Care & Health,THE BRANDON TRUST,27/05/2016,1439.25
Bath & North East Somerset Council,10820637,LM3,Residential Care,P11,Adult Social Care & Health,THE BRANDON TRUST,27/05/2016,1439.25
Bath & North East Somerset Council,10820637,LM3,Residential Care,P11,Adult Social Care & Health,THE BRANDON TRUST,27/05/2016,1439.25
Bath & North East Somerset Council,10820637,LM3,Residential Care,P11,Adult Social Care & Health,THE BRANDON TRUST,27/05/2016,1439.25
Bath & North East Somerset Council,10820637,LM3,Residential Care,P11,Adult Social Care & Health,THE BRANDON TRUST,27/05/2016,1439.25
Bath & North East Somerset Council,10820637,LM3,Residential Care,P11,Adult Social Care & Health,THE BRANDON TRUST,27/05/2016,1439.25
Bath & North East Somerset Council,10820637,LM3,Residential Care,P11,Adult Social Care & Health,THE BRANDON TRUST,27/05/2016,1439.25
Bath & North East Somerset Council,10820636,LM3,Residential Care,P11,Adult Social Care & Health,WEST OF ENGLAND FRIENDS HOUSING SOC LTD,27/05/2016,383.14
Bath & North East Somerset Council,10820636,LM3,Residential Care,P11,Adult Social Care & Health,WEST OF ENGLAND FRIENDS HOUSING SOC LTD,27/05/2016,447
Bath & North East Somerset Council,10820636,LM3,Residential Care,P11,Adult Social Care & Health,WEST OF ENGLAND FRIENDS HOUSING SOC LTD,27/05/2016,447
Bath & North East Somerset Council,10820636,LM3,Residential Care,P11,Adult Social Care & Health,WEST OF ENGLAND FRIENDS HOUSING SOC LTD,27/05/2016,447
Bath & North East Somerset Council,10820636,LM3,Residential Care,P11,Adult Social Care & Health,WEST OF ENGLAND FRIENDS HOUSING SOC LTD,27/05/2016,447
Bath & North East Somerset Council,10820636,LM3,Residential Care,P11,Adult Social Care & Health,WEST OF ENGLAND FRIENDS HOUSING SOC LTD,27/05/2016,447
Bath & North East Somerset Council,10820636,LM3,Residential Care,P11,Adult Social Care & Health,WEST OF ENGLAND FRIENDS HOUSING SOC LTD,27/05/2016,447
Bath & North East Somerset Council,10820636,LM3,Residential Care,P11,Adult Social Care & Health,WEST OF ENGLAND FRIENDS HOUSING SOC LTD,27/05/2016,447
Bath & North East Somerset Council,10820636,LM3,Residential Care,P11,Adult Social Care & Health,WEST OF ENGLAND FRIENDS HOUSING SOC LTD,27/05/2016,447
Bath & North East Somerset Council,10820636,LM3,Residential Care,P11,Adult Social Care & Health,WEST OF ENGLAND FRIENDS HOUSING SOC LTD,27/05/2016,447
Bath & North East Somerset Council,10820636,LM3,Residential Care,P11,Adult Social Care & Health,WEST OF ENGLAND FRIENDS HOUSING SOC LTD,27/05/2016,447
Bath & North East Somerset Council,10820636,LM3,Residential Care,P11,Adult Social Care & Health,WEST OF ENGLAND FRIENDS HOUSING SOC LTD,27/05/2016,447
Bath & North East Somerset Council,10818983,LJ4,Contracts,P14,Community Services,THE LANDSCAPE GROUP LTD,20/06/2016,3638.06
Bath & North East Somerset Council,10818982,LJ4,Contracts,P14,Community Services,THE LANDSCAPE GROUP LTD,30/06/2016,3638.06
Bath & North East Somerset Council,10818313,LW9,Other Expenses,P14,Community Services,HAKO MACHINES LTD,01/08/2016,13.33
Bath & North East Somerset Council,10818069,LF5,Postages,P14,Community Services,RIDLEY RECYCLING LIMITED,01/08/2016,55
Bath & North East Somerset Council,10818025,LJ2,Legal Fees,P12,Children's Services,REDACTED,01/08/2016,3450
Bath & North East Somerset Council,10818450,LF1,Printing/Design,P13,Economic Development,NINEPOINT DESIGN LTD,01/08/2016,446
Bath & North East Somerset Council,10818313,KA2,Running Costs,P14,Community Services,HAKO MACHINES LTD,01/08/2016,515.64
Bath & North East Somerset Council,10818386,HA1,Responsive Maintenance,P10,Finance & Efficiency,FACULTATIEVE TECHNOLOGIES LTD,01/08/2016,545.38
Bath & North East Somerset Council,10818356,KA3,Fuel,P14,Community Services,FORD FUELS LTD,01/08/2016,644.25
Bath & North East Somerset Council,10818471,LH3,Publicity,P13,Economic Development,CAT PUBLICATIONS LTD,01/08/2016,650
Bath & North East Somerset Council,10818016,LJ2,Legal Fees,P12,Children's Services,MS GEMMA CHAPMAN,01/08/2016,700
Bath & North East Somerset Council,10818382,LJ1,Consultants Fees,P11,Adult Social Care & Health,FRASER HEAD,01/08/2016,700
Bath & North East Somerset Council,10818459,HA2,Servicing,P13,Economic Development,HORDERS,01/08/2016,720
Bath & North East Somerset Council,10818455,HA1,Responsive Maintenance,P13,Economic Development,AVON FIRE SYSTEMS LTD,01/08/2016,750
Bath & North East Somerset Council,10817153,LJ2,Legal Fees,P12,Children's Services,MISS MELISSA BARLOW,01/08/2016,750
Bath & North East Somerset Council,10818068,HK1,Highway Maintenance,P01,Transport,SAKNEL HIGHWAYS STRUCTURES CONTRACTOR,01/08/2016,758.72
Bath & North East Somerset Council,10818068,HK1,Highway Maintenance,P01,Transport,SAKNEL HIGHWAYS STRUCTURES CONTRACTOR,01/08/2016,870
Bath & North East Somerset Council,10818478,LJ4,Contracts,P11,Adult Social Care & Health,SIRONA CARE & HEALTH C.I.C.,01/08/2016,335738.42
Bath & North East Somerset Council,10817815,3F7,PCB External Fees,P13,Economic Development,BERWIN LEIGHTON PAISNER,01/08/2016,963.55
Bath & North East Somerset Council,10818406,LV1,Grants to Voluntary Bodies,P13,Economic Development,THE HERSCHEL HOUSE TRUST,01/08/2016,1000
Bath & North East Somerset Council,10818462,HA2,Servicing,P13,Economic Development,HORDERS,01/08/2016,1268.87
Bath & North East Somerset Council,10818315,3F7,PCB External Fees,P13,Economic Development,BERWIN LEIGHTON PAISNER,01/08/2016,1393.2
Bath & North East Somerset Council,10818456,HA2,Servicing,P13,Economic Development,HORDERS,01/08/2016,1448.59
Bath & North East Somerset Council,10817152,LJ2,Legal Fees,P12,Children's Services,MR ANDREW LORIE,01/08/2016,1500
Bath & North East Somerset Council,10818443,LK1,Fees,P13,Economic Development,EXPERIAN LTD,01/08/2016,1508.66
Bath & North East Somerset Council,10817671,3F7,PCB External Fees,P10,Finance & Efficiency,SEACOURT LTD,01/08/2016,1519
Bath & North East Somerset Council,10818367,LJ1,Consultants Fees,P12,Children's Services,LIQUIDLOGIC LIMITED,01/08/2016,1526.4
Bath & North East Somerset Council,10818069,LA5,Materials,P14,Community Services,RIDLEY RECYCLING LIMITED,01/08/2016,1742
Bath & North East Somerset Council,10818398,3F7,PCB External Fees,P12,Children's Services,EA ENERGY SOLUTIONS LTD,01/08/2016,1745.84
Bath & North East Somerset Council,10818320,EA1,Training,P04,Leader,ORENDA TRAINING AND CONSULTANCY,01/08/2016,2244
Bath & North East Somerset Council,10817151,LJ2,Legal Fees,P12,Children's Services,HEALTHCARE SOUTH WEST LTD,01/08/2016,2332
Bath & North East Somerset Council,10818299,LF6,Subscriptions,P10,Finance & Efficiency,RICS BACS ACCOUNT,01/08/2016,2365
Bath & North East Somerset Council,80614063,LE1,Education Payment (independent school),P12,Children's Services,MNSP PRIMARY SCHOOL RE WELTON,01/08/2016,2375
Bath & North East Somerset Council,10818403,HA3,Planned Maintenance,P13,Economic Development,HORDERS,01/08/2016,2608.12
Bath & North East Somerset Council,10817674,3F7,PCB External Fees,P10,Finance & Efficiency,SEACOURT LTD,01/08/2016,3525
Bath & North East Somerset Council,10818026,LJ2,Legal Fees,P12,Children's Services,MR JAMES CRANFIELD,01/08/2016,4130
Bath & North East Somerset Council,10818449,LK6,Photography/Artworks/Graphics,P13,Economic Development,NEE HAO MAGAZINE,01/08/2016,4500
Bath & North East Somerset Council,10818385,HA1,Responsive Maintenance,P10,Finance & Efficiency,FACULTATIEVE TECHNOLOGIES LTD,01/08/2016,4698.2
Bath & North East Somerset Council,10818312,3C4,Building Works,P01,Transport,CH2M HILL UK,01/08/2016,5052.29
Bath & North East Somerset Council,10818375,HA1,Responsive Maintenance,P10,Finance & Efficiency,N K S CONTRACTS LTD,01/08/2016,5084.41
Bath & North East Somerset Council,10818366,LK1,Fees,P12,Children's Services,LIQUIDLOGIC LIMITED,01/08/2016,7810.67
Bath & North East Somerset Council,10818383,LJ1,Consultants Fees,P11,Adult Social Care & Health,FRASER HEAD,01/08/2016,10980.5
Bath & North East Somerset Council,10818397,3E6,IT Software,P10,Finance & Efficiency,MSYCDO LTD,01/08/2016,11700
Bath & North East Somerset Council,10818369,LJ3,Other Services to the Council,P10,Finance & Efficiency,WILTSHIRE COUNTY COUNCIL,01/08/2016,1400
Bath & North East Somerset Council,10818481,LJ4,Contracts,P11,Adult Social Care & Health,SIRONA CARE SERVICES LTD,01/08/2016,18343.03
Bath & North East Somerset Council,10818338,3C4,Building Works,P01,Transport,CH2M HILL UK,01/08/2016,19505.52
Bath & North East Somerset Council,10818371,LJ4,Contracts,P14,Community Services,GREENWICH LEISURE LIMITED,01/08/2016,23900
Bath & North East Somerset Council,10818378,LJ4,Contracts,P14,Community Services,GREENWICH LEISURE LIMITED,01/08/2016,23900
Bath & North East Somerset Council,10818379,LJ4,Contracts,P14,Community Services,GREENWICH LEISURE LIMITED,01/08/2016,23900
Bath & North East Somerset Council,10818476,LJ4,Contracts,P11,Adult Social Care & Health,SIRONA CARE SERVICES LTD,01/08/2016,75855.45
Bath & North East Somerset Council,10818479,LJ4,Contracts,P11,Adult Social Care & Health,SIRONA CARE SERVICES LTD,01/08/2016,188825.05
Bath & North East Somerset Council,10818480,LJ4,Contracts,P11,Adult Social Care & Health,SIRONA CARE SERVICES LTD,01/08/2016,428296.29
Bath & North East Somerset Council,10818477,LJ4,Contracts,P11,Adult Social Care & Health,SIRONA CARE SERVICES LTD,01/08/2016,531422.04
Bath & North East Somerset Council,80614252,LL5,Adoption Allowances,P12,Children's Services,REDACTED,03/08/2016,728.82
Bath & North East Somerset Council,80614252,LL5,Adoption Allowances,P12,Children's Services,REDACTED,03/08/2016,742.8
Bath & North East Somerset Council,10818438,LJ4,Contracts,P01,Transport,BERKELEY COACH & TRAVEL LTD,03/08/2016,40
Bath & North East Somerset Council,80613791,LL3,Supported Living,P11,Adult Social Care & Health,Bath Ethnic Minority Senior Citizens Association,03/08/2016,2684.93
Bath & North East Somerset Council,10818611,HV2,Non Contract Cleaning,P13,Economic Development,VALIANT ENGINEERING SERVICES LTD,03/08/2016,53
Bath & North East Somerset Council,10818246,LJ4,Contracts,P01,Transport,CENTURION TRAVEL LTD,03/08/2016,90
Bath & North East Somerset Council,10818610,HV2,Non Contract Cleaning,P13,Economic Development,VALIANT ENGINEERING SERVICES LTD,03/08/2016,108
Bath & North East Somerset Council,10818434,DB1,Agency Staff,P01,Transport,MARIAN CALINOIU (MARIO PRIVATE HIRE LTD),03/08/2016,120
Bath & North East Somerset Council,80614248,LM4,Respite Care,P12,Children's Services,REDACTED,03/08/2016,114.29
Bath & North East Somerset Council,80614248,LM4,Respite Care,P12,Children's Services,REDACTED,03/08/2016,285.71
Bath & North East Somerset Council,80614248,LM4,Respite Care,P12,Children's Services,REDACTED,03/08/2016,463.5
Bath & North East Somerset Council,80614214,LL3,Supported Living,P09,Homes & Planning,REDACTED,03/08/2016,162
Bath & North East Somerset Council,80614214,LL3,Supported Living,P09,Homes & Planning,REDACTED,03/08/2016,162
Bath & North East Somerset Council,80614214,LL2,Personal Needs of Clients,P12,Children's Services,REDACTED,03/08/2016,797.39
Bath & North East Somerset Council,10818558,KE3,Transport & Travel,P10,Finance & Efficiency,CT COACHES,03/08/2016,201.5
Bath & North East Somerset Council,10818558,KE3,Transport & Travel,P10,Finance & Efficiency,CT COACHES,03/08/2016,217
Bath & North East Somerset Council,10818558,KE3,Transport & Travel,P10,Finance & Efficiency,CT COACHES,03/08/2016,240
Bath & North East Somerset Council,80614221,LM2,Foster Carer Allowances,P12,Children's Services,REDACTED,03/08/2016,417
Bath & North East Somerset Council,80614221,LM2,Foster Carer Allowances,P12,Children's Services,REDACTED,03/08/2016,417
Bath & North East Somerset Council,80614256,LM2,Foster Carer Allowances,P12,Children's Services,REDACTED,03/08/2016,50
Bath & North East Somerset Council,80614256,LM2,Foster Carer Allowances,P12,Children's Services,REDACTED,03/08/2016,125
Bath & North East Somerset Council,80614256,LM2,Foster Carer Allowances,P12,Children's Services,REDACTED,03/08/2016,202.78
Bath & North East Somerset Council,80614256,LM2,Foster Carer Allowances,P12,Children's Services,REDACTED,03/08/2016,246.68
Bath & North East Somerset Council,80614253,LK1,Fees,P12,Children's Services,REDACTED,03/08/2016,189
Bath & North East Somerset Council,80614253,LM2,Foster Carer Allowances,P12,Children's Services,REDACTED,03/08/2016,785.96
Bath & North East Somerset Council,80614236,LM2,Foster Carer Allowances,P12,Children's Services,REDACTED,03/08/2016,50
Bath & North East Somerset Council,80614236,LM2,Foster Carer Allowances,P12,Children's Services,REDACTED,03/08/2016,125
Bath & North East Somerset Council,80614236,LM2,Foster Carer Allowances,P12,Children's Services,REDACTED,03/08/2016,246.68
Bath & North East Somerset Council,80614236,LM1,Volunt Homes Placements Top/Up,P12,Children's Services,REDACTED,03/08/2016,377.78
Bath & North East Somerset Council,10818558,KE3,Transport & Travel,P10,Finance & Efficiency,CT COACHES,03/08/2016,315
Bath & North East Somerset Council,80613775,LL3,Supported Living,P11,Adult Social Care & Health,Next Link Domestic Abuse Services,03/08/2016,3331.1
Bath & North East Somerset Council,80613772,LL3,Supported Living,P11,Adult Social Care & Health,Next Link Domestic Abuse Services,03/08/2016,5087.7
Bath & North East Somerset Council,10818504,LJ4,Contracts,P01,Transport,S. J. & J M MUNDEN T/A GUYAN MINI BUSES,03/08/2016,355.85
Bath & North East Somerset Council,10818488,LJ4,Contracts,P01,Transport,RADSTOCK TAXIS,03/08/2016,390
Bath & North East Somerset Council,10818675,LH2,Advertising,P01,Transport,TMP (UK) LTD,03/08/2016,417.62
Bath & North East Somerset Council,10818611,HV2,Non Contract Cleaning,P13,Economic Development,VALIANT ENGINEERING SERVICES LTD,03/08/2016,435
Bath & North East Somerset Council,10818568,KD1,Employees Public Transport,P10,Finance & Efficiency,ABBEY TAXIS LIMITED,03/08/2016,447.45
Bath & North East Somerset Council,10818610,HV2,Non Contract Cleaning,P13,Economic Development,VALIANT ENGINEERING SERVICES LTD,03/08/2016,451
Bath & North East Somerset Council,10818535,HV2,Non Contract Cleaning,P13,Economic Development,VALIANT ENGINEERING SERVICES LTD,03/08/2016,455
Bath & North East Somerset Council,10818701,LF6,Subscriptions,P11,Adult Social Care & Health,CIPFA BUSINESS LTD,03/08/2016,475
Bath & North East Somerset Council,10818380,LA1,Equipment Purchase,P11,Adult Social Care & Health,BRITISH TELECOM,03/08/2016,487
Bath & North East Somerset Council,10818416,LJ4,Contracts,P01,Transport,KEYNSHAM CARS,03/08/2016,492
Bath & North East Somerset Council,10818576,LK1,Fees,P13,Economic Development,RS SECURITY LTD,03/08/2016,495
Bath & North East Somerset Council,10818394,LJ3,Other Services to the Council,P10,Finance & Efficiency,RELYON GUARDING & SECURITY SERVICES,03/08/2016,500
Bath & North East Somerset Council,10818630,3F7,PCB External Fees,P13,Economic Development,COTSWOLD ARCHAEOLOGY,03/08/2016,500
Bath & North East Somerset Council,10818417,LJ4,Contracts,P01,Transport,KEYNSHAM CARS,03/08/2016,504
Bath & North East Somerset Council,10817931,LH2,Advertising,P01,Transport,TMP (UK) LTD,03/08/2016,518.19
Bath & North East Somerset Council,10818562,HA3,Planned Maintenance,P13,Economic Development,ROUNDLIGHT LIMITED,03/08/2016,521.5
Bath & North East Somerset Council,10818508,LJ4,Contracts,P14,Community Services,WORCESTERSHIRE COUNTY COUNCIL,03/08/2016,529.23
Bath & North East Somerset Council,10818466,LA3,Equipment Maintenance,P14,Community Services,HURLEY ENGINE SERVICES LTD,03/08/2016,530.15
Bath & North East Somerset Council,10818670,LJ1,Consultants Fees,P14,Community Services,BRIAN BERTRAM,03/08/2016,533.7
Bath & North East Somerset Council,10818501,LJ4,Contracts,P01,Transport,STEVE WARREN TRANSPORT SERVICES LTD,03/08/2016,536
Bath & North East Somerset Council,10818429,LJ4,Contracts,P01,Transport,R E & V P JEFFRIES,03/08/2016,536.58
Bath & North East Somerset Council,10818547,HV4,Cleaning Materials,P13,Economic Development,AVANTI HYGIENE LTD,03/08/2016,539.03
Bath & North East Somerset Council,10818649,3F7,PCB External Fees,P12,Children's Services,MDA CONSULTING LTD,03/08/2016,540
Bath & North East Somerset Council,10818717,LP1,Hardware Purchase,P10,Finance & Efficiency,BT GLOBAL SERVICES,03/08/2016,549.28
Bath & North East Somerset Council,10818613,3F7,PCB External Fees,P10,Finance & Efficiency,CAPITA SYMONDS,03/08/2016,555
Bath & North East Somerset Council,80614211,LM2,Foster Carer Allowances,P12,Children's Services,REDACTED,03/08/2016,100
Bath & North East Somerset Council,80614211,LM2,Foster Carer Allowances,P12,Children's Services,REDACTED,03/08/2016,140
Bath & North East Somerset Council,80614211,LM2,Foster Carer Allowances,P12,Children's Services,REDACTED,03/08/2016,286
Bath & North East Somerset Council,10818246,LJ4,Contracts,P01,Transport,CENTURION TRAVEL LTD,03/08/2016,595
Bath & North East Somerset Council,10818608,LW8,Conservation,P13,Economic Development,UNIVERSITY OF OXFORD,03/08/2016,600
Bath & North East Somerset Council,10818212,3N7,PCB Misc. Costs,P13,Economic Development,SIGNBOARD SERVICES LTD,03/08/2016,600
Bath & North East Somerset Council,10818669,LK1,Fees,P12,Children's Services,PETER NORRIS,03/08/2016,641.25
Bath & North East Somerset Council,80614204,LK4,Nursery/Childcare Vouchers,P12,Children's Services,MONKTON COMBE PRE-PREPATORY SCHOOL,03/08/2016,644.4
Bath & North East Somerset Council,10818512,LH3,Publicity,P14,Community Services,STUPID TUESDAY LTD,03/08/2016,687.5
Bath & North East Somerset Council,10818660,DB1,Agency Staff,P10,Finance & Efficiency,RS SECURITY LTD,03/08/2016,690
Bath & North East Somerset Council,10818595,KE3,Transport & Travel,P12,Children's Services,DWP - JOB CENTRE PLUSS NO 1 A/C,03/08/2016,713.57
Bath & North East Somerset Council,10818413,LJ4,Contracts,P01,Transport,KEYNSHAM CARS,03/08/2016,728
Bath & North East Somerset Council,10818399,LJ4,Contracts,P01,Transport,JASON KING LTD,03/08/2016,735
Bath & North East Somerset Council,10818623,3F7,PCB External Fees,P10,Finance & Efficiency,CAPITA SYMONDS,03/08/2016,740
Bath & North East Somerset Council,10818626,EA1,Training,P01,Transport,RACHEL RINGHAM LTD,03/08/2016,750
Bath & North East Somerset Council,10818486,LJ4,Contracts,P01,Transport,ROMAN BATH TRANSPORT,03/08/2016,750
Bath & North East Somerset Council,10818583,HK1,Highway Maintenance,P01,Transport,BATHEASTON PARISH COUNCIL,03/08/2016,756.41
Bath & North East Somerset Council,10818440,LJ4,Contracts,P01,Transport,RUSSELLS OF BATH PRIVATE HIRE,03/08/2016,759
Bath & North East Somerset Council,10818716,LP5,Software Support,P10,Finance & Efficiency,METRIC GROUP LIMITED,03/08/2016,769.5
Bath & North East Somerset Council,10818493,LJ4,Contracts,P01,Transport,ROMAN BATH TRANSPORT,03/08/2016,781
Bath & North East Somerset Council,10818446,LH2,Advertising,P09,Homes & Planning,LOCAL WORLD LTD,03/08/2016,782.9
Bath & North East Somerset Council,10818509,LH2,Advertising,P09,Homes & Planning,LOCAL WORLD LTD,03/08/2016,782.9
Bath & North East Somerset Council,10818644,KE3,Transport & Travel,P10,Finance & Efficiency,KEYNSHAM CARS,03/08/2016,798
Bath & North East Somerset Council,10818066,3F7,PCB External Fees,P01,Transport,CAPITA SYMONDS,03/08/2016,816.58
Bath & North East Somerset Council,10818567,HA1,Responsive Maintenance,P10,Finance & Efficiency,ENVIRONTEC LIMITED,03/08/2016,825
Bath & North East Somerset Council,10818723,LJ4,Contracts,P11,Adult Social Care & Health,SIRONA CARE SERVICES LTD,03/08/2016,825.08
Bath & North East Somerset Council,10818498,LJ4,Contracts,P01,Transport,NEED TO GET HOME? TAXI COMPANY,03/08/2016,833
Bath & North East Somerset Council,10818721,LW9,Other Expenses,P10,Finance & Efficiency,CYCLESCHEME LTD,03/08/2016,833.33
Bath & North East Somerset Council,10818433,LJ4,Contracts,P01,Transport,MR C A HIGGS T/A LIBRA TRAVEL,03/08/2016,834
Bath & North East Somerset Council,10818376,3C4,Building Works,P14,Community Services,ROSIE NOTTAGE GARDEN DESIGN,03/08/2016,850
Bath & North East Somerset Council,10818597,LJ4,Contracts,P12,Children's Services,WELFARE CALL (LAC) LTD,03/08/2016,870.18
Bath & North East Somerset Council,10818414,LJ4,Contracts,P01,Transport,KEYNSHAM CARS,03/08/2016,884
Bath & North East Somerset Council,10818541,HV4,Cleaning Materials,P13,Economic Development,AVANTI HYGIENE LTD,03/08/2016,912.48
Bath & North East Somerset Council,80613858,LK1,Fees,P12,Children's Services,SOMERSET COUNTY COUNCIL,03/08/2016,560
Bath & North East Somerset Council,10818218,LA5,Materials,P14,Community Services,SOMERSET COUNTY COUNCIL,03/08/2016,6800
Bath & North East Somerset Council,10818218,LA5,Materials,P14,Community Services,SOMERSET COUNTY COUNCIL,03/08/2016,29000
Bath & North East Somerset Council,80614263,LM4,Respite Care,P12,Children's Services,REDACTED,03/08/2016,281.92
Bath & North East Somerset Council,80614263,LM4,Respite Care,P12,Children's Services,REDACTED,03/08/2016,281.92
Bath & North East Somerset Council,10818506,LJ4,Contracts,P01,Transport,AVON MINI BUSES LTD,03/08/2016,940
Bath & North East Somerset Council,10818629,LP1,Hardware Purchase,P09,Homes & Planning,IONET SYSTEMS LTD,03/08/2016,957
Bath & North East Somerset Council,10818629,LP1,Hardware Purchase,P09,Homes & Planning,IONET SYSTEMS LTD,03/08/2016,957
Bath & North East Somerset Council,10818631,3F7,PCB External Fees,P12,Children's Services,EDMOND SHIPWAY LLP,03/08/2016,975
Bath & North East Somerset Council,10818423,LJ4,Contracts,P01,Transport,RUSSELLS OF BATH PRIVATE HIRE,03/08/2016,1022
Bath & North East Somerset Council,10818741,LJ1,Consultants Fees,P11,Adult Social Care & Health,MRS S M SORUNGBE,03/08/2016,1023.85
Bath & North East Somerset Council,10818742,LJ1,Consultants Fees,P11,Adult Social Care & Health,JESS WINKLER,03/08/2016,1028.12
Bath & North East Somerset Council,10818485,LJ4,Contracts,P01,Transport,MR M L BRACEY T/A A B M MINIBUSES,03/08/2016,1075.2
Bath & North East Somerset Council,10818483,LJ4,Contracts,P01,Transport,MR M L BRACEY T/A A B M MINIBUSES,03/08/2016,1082.76
Bath & North East Somerset Council,10818560,KD1,Employees Public Transport,P10,Finance & Efficiency,1ST AVENUE TRAVEL,03/08/2016,1085
Bath & North East Somerset Council,10818622,3F7,PCB External Fees,P10,Finance & Efficiency,CAPITA SYMONDS,03/08/2016,1110
Bath & North East Somerset Council,10818435,LJ4,Contracts,P01,Transport,MR C A HIGGS T/A LIBRA TRAVEL,03/08/2016,1120
Bath & North East Somerset Council,10818615,3F7,PCB External Fees,P01,Transport,MACE LIMITED,03/08/2016,1122
Bath & North East Somerset Council,10818426,LJ4,Contracts,P01,Transport,RUSSELLS OF BATH PRIVATE HIRE,03/08/2016,1131
Bath & North East Somerset Council,10818263,3G1,Grants/Advances,P11,Adult Social Care & Health,OASIS BATHROOM CENTRE,03/08/2016,1163.77
Bath & North East Somerset Council,10818490,LJ4,Contracts,P01,Transport,RUSSELLS OF BATH PRIVATE HIRE,03/08/2016,1185
Bath & North East Somerset Council,10818401,LJ4,Contracts,P01,Transport,JASON KING LTD,03/08/2016,1196
Bath & North East Somerset Council,10818411,LJ4,Contracts,P01,Transport,TRAVELBILLITY LTD,03/08/2016,1200
Bath & North East Somerset Council,10818545,HV4,Cleaning Materials,P13,Economic Development,AVANTI HYGIENE LTD,03/08/2016,1238
Bath & North East Somerset Council,10818690,LM1,Volunt Homes Placements Top/Up,P12,Children's Services,AURORA CARE AND EDUCATION OPCO LTD,03/08/2016,1243.49
Bath & North East Somerset Council,10818503,LJ4,Contracts,P01,Transport,STEVE WARREN TRANSPORT SERVICES LTD,03/08/2016,1244.5
Bath & North East Somerset Council,10818333,LP5,Software Support,P01,Transport,THALES UK LTD,03/08/2016,1250
Bath & North East Somerset Council,10818499,LJ4,Contracts,P01,Transport,HIGHWAY TAXIS & TRAVEL,03/08/2016,1288.56
Bath & North East Somerset Council,10818421,LJ4,Contracts,P01,Transport,RUSSELLS OF BATH PRIVATE HIRE,03/08/2016,1311
Bath & North East Somerset Council,10818442,LJ4,Contracts,P01,Transport,RUSSELLS OF BATH PRIVATE HIRE,03/08/2016,1342.5
Bath & North East Somerset Council,10818418,LJ4,Contracts,P01,Transport,KEYNSHAM CARS,03/08/2016,1344
Bath & North East Somerset Council,10818667,LA4,Equipment Hire/Rent,P14,Community Services,LISTER WILDER,03/08/2016,1400
Bath & North East Somerset Council,80613798,LL3,Supported Living,P11,Adult Social Care & Health,Support Empower Advocate Promote (SEAP),03/08/2016,3281.14
Bath & North East Somerset Council,10818402,LJ4,Contracts,P01,Transport,JASON KING LTD,03/08/2016,1430
Bath & North East Somerset Council,10818431,LJ4,Contracts,P01,Transport,MARIAN CALINOIU (MARIO PRIVATE HIRE LTD),03/08/2016,1440
Bath & North East Somerset Council,80613803,LL3,Supported Living,P11,Adult Social Care & Health,Swan Advocacy Network,03/08/2016,7814.1
Bath & North East Somerset Council,10818665,LJ4,Contracts,P01,Transport,BBFI LTD,03/08/2016,1600
Bath & North East Somerset Council,10818424,LJ4,Contracts,P01,Transport,RUSSELLS OF BATH PRIVATE HIRE,03/08/2016,1600
Bath & North East Somerset Council,10818112,LP5,Software Support,P09,Homes & Planning,ABRITAS LTD,03/08/2016,1640
Bath & North East Somerset Council,10818405,LJ4,Contracts,P01,Transport,JASON KING LTD,03/08/2016,1650
Bath & North East Somerset Council,10818318,LJ3,Other Services to the Council,P14,Community Services,STONEMARK INDUSTRIAL LIMITED,03/08/2016,1675
Bath & North East Somerset Council,10818548,LJ8,PCB External Fees,P13,Economic Development,CLARKSON & WOODS,03/08/2016,1687
Bath & North East Somerset Council,10818430,LJ4,Contracts,P01,Transport,MR C A HIGGS T/A LIBRA TRAVEL,03/08/2016,1690
Bath & North East Somerset Council,10818407,LJ4,Contracts,P01,Transport,JASON KING LTD,03/08/2016,1694
Bath & North East Somerset Council,10818434,LJ4,Contracts,P01,Transport,MARIAN CALINOIU (MARIO PRIVATE HIRE LTD),03/08/2016,1760
Bath & North East Somerset Council,10818454,LH5,Marketing,P13,Economic Development,NINEPOINT DESIGN LTD,03/08/2016,1803
Bath & North East Somerset Council,10818499,LJ4,Contracts,P01,Transport,HIGHWAY TAXIS & TRAVEL,03/08/2016,1828.12
Bath & North East Somerset Council,10818628,3F7,PCB External Fees,P10,Finance & Efficiency,CAPITA SYMONDS,03/08/2016,1850
Bath & North East Somerset Council,10818627,3F7,PCB External Fees,P14,Community Services,MACE LIMITED,03/08/2016,1870
Bath & North East Somerset Council,10818513,LJ4,Contracts,P01,Transport,EAGLE COACHES LTD,03/08/2016,1912.3
Bath & North East Somerset Council,10818422,LJ4,Contracts,P01,Transport,MR C A HIGGS T/A LIBRA TRAVEL,03/08/2016,1930.5
Bath & North East Somerset Council,10818432,LJ4,Contracts,P01,Transport,MR C A HIGGS T/A LIBRA TRAVEL,03/08/2016,1932
Bath & North East Somerset Council,10818752,EA1,Training,P13,Economic Development,THE MANAGEMENT CENTRE,03/08/2016,1950
Bath & North East Somerset Council,10818425,LJ4,Contracts,P01,Transport,BUGLERS COACHES LIMITED,03/08/2016,1960
Bath & North East Somerset Council,10818673,LJ4,Contracts,P12,Children's Services,SARI,03/08/2016,2057.5
Bath & North East Somerset Council,10818506,LJ4,Contracts,P01,Transport,AVON MINI BUSES LTD,03/08/2016,2072
Bath & North East Somerset Council,10818523,LJ4,Contracts,P01,Transport,EAGLE COACHES LTD,03/08/2016,2098.6
Bath & North East Somerset Council,10818415,LJ4,Contracts,P01,Transport,BUGLERS COACHES LIMITED,03/08/2016,2100
Bath & North East Somerset Council,10818428,LJ4,Contracts,P01,Transport,MR C A HIGGS T/A LIBRA TRAVEL,03/08/2016,2142
Bath & North East Somerset Council,10818409,LJ4,Contracts,P01,Transport,REDACTED,03/08/2016,832
Bath & North East Somerset Council,10818410,LJ4,Contracts,P01,Transport,REDACTED,03/08/2016,1404
Bath & North East Somerset Council,10818514,LJ4,Contracts,P01,Transport,BUGLERS COACHES LIMITED,03/08/2016,2240
Bath & North East Somerset Council,10818526,LJ4,Contracts,P01,Transport,EAGLE COACHES LTD,03/08/2016,2266.6
Bath & North East Somerset Council,10818715,3G1,Grants/Advances,P11,Adult Social Care & Health,DOLPHIN LIFTS (WESTERN) LTD,03/08/2016,2345
Bath & North East Somerset Council,10818525,KB1,Hire of Vehicles,P14,Community Services,DAWSON RENTALS SWEEPERS,03/08/2016,2352
Bath & North East Somerset Council,10818267,LV3,Commissioned Services,P09,Homes & Planning,ECO RESIDENTIAL LTD,03/08/2016,2364.75
Bath & North East Somerset Council,10818522,LJ4,Contracts,P01,Transport,GLENVIC COACHES,03/08/2016,2380
Bath & North East Somerset Council,10818396,LJ4,Contracts,P01,Transport,BUGLERS COACHES LIMITED,03/08/2016,2520
Bath & North East Somerset Council,10818427,LJ4,Contracts,P01,Transport,BUGLERS COACHES LIMITED,03/08/2016,2520
Bath & North East Somerset Council,10818420,LJ4,Contracts,P01,Transport,MR C A HIGGS T/A LIBRA TRAVEL,03/08/2016,2520
Bath & North East Somerset Council,10818730,LJ4,Contracts,P12,Children's Services,BLACK FAMILIES EDUCATION SUPPO,03/08/2016,2585
Bath & North East Somerset Council,10818472,LV2,Contributions to Organisations,P13,Economic Development,THE ROMAN BATHS FOUNDATION,03/08/2016,820
Bath & North East Somerset Council,10818754,LM1,Volunt Homes Placements Top/Up,P12,Children's Services,DAVID SHAW,03/08/2016,2750
Bath & North East Somerset Council,10818729,TJ2,Leasing Charges,P13,Economic Development,BATH FESTIVALS TRUST,03/08/2016,3000
Bath & North East Somerset Council,10818680,LM2,Foster Carer Allowances,P12,Children's Services,FOSTERING SOLUTIONS LTD,03/08/2016,3022.2
Bath & North East Somerset Council,10818641,LJ8,PCB External Fees,P10,Finance & Efficiency,TROWERS & HAMLINS LLP,03/08/2016,3024
Bath & North East Somerset Council,10818646,LJ1,Consultants Fees,P14,Community Services,INTEGRATED SKILLS LIMITED,03/08/2016,3200
Bath & North East Somerset Council,10818727,LJ4,Contracts,P12,Children's Services,BATH AREA PLAY PROJECT,03/08/2016,3250
Bath & North East Somerset Council,10818297,3G1,Grants/Advances,P11,Adult Social Care & Health,ANDREW MAISEY,03/08/2016,3355
Bath & North East Somerset Council,10818269,3G1,Grants/Advances,P11,Adult Social Care & Health,LIFTECH.ORG LTD,03/08/2016,3358
Bath & North East Somerset Council,10818495,LJ4,Contracts,P01,Transport,ROAD RUNNER TAXI BUSES,03/08/2016,3486.95
Bath & North East Somerset Council,10818753,LM2,Foster Carer Allowances,P12,Children's Services,THE FOSTERING FOUNDATION  LTD,03/08/2016,3600.43
Bath & North East Somerset Council,10818725,EA1,Training,P04,Leader,HYPERTEC LTD,03/08/2016,3705
Bath & North East Somerset Council,10818488,LJ4,Contracts,P01,Transport,RADSTOCK TAXIS,03/08/2016,3741
Bath & North East Somerset Council,10818703,3G1,Grants/Advances,P11,Adult Social Care & Health,DOLPHIN LIFTS (WESTERN) LTD,03/08/2016,3749
Bath & North East Somerset Council,10818691,LJ4,Contracts,P11,Adult Social Care & Health,SIRONA CARE SERVICES LTD,03/08/2016,3750
Bath & North East Somerset Council,10818584,LH5,Marketing,P13,Economic Development,STEERS MCGILLAN EVES DESIGN LTD,03/08/2016,4000
Bath & North East Somerset Council,10818710,3F7,PCB External Fees,P01,Transport,SOUTHERN ELECTRIC CONTRACTING LTD,03/08/2016,4040.12
Bath & North East Somerset Council,10818771,3F7,PCB External Fees,P01,Transport,BRUNEL PROJECT MANAGEMENT LTD,03/08/2016,4050
Bath & North East Somerset Council,10818591,LJ4,Contracts,P11,Adult Social Care & Health,WILTSHIRE HEALTH & CARE LLP,03/08/2016,4316
Bath & North East Somerset Council,10818584,LH5,Marketing,P13,Economic Development,STEERS MCGILLAN EVES DESIGN LTD,03/08/2016,4400
Bath & North East Somerset Council,10818497,LJ4,Contracts,P01,Transport,MCC-PATROL,03/08/2016,4878.05
Bath & North East Somerset Council,10818747,LM2,Foster Carer Allowances,P12,Children's Services,FOSTERING MATTERS LTD,03/08/2016,5208
Bath & North East Somerset Council,10818656,3G1,Grants/Advances,P11,Adult Social Care & Health,LIFTECH.ORG LTD,03/08/2016,5550
Bath & North East Somerset Council,10818268,3G1,Grants/Advances,P11,Adult Social Care & Health,ANDREW MAISEY,03/08/2016,5640
Bath & North East Somerset Council,10818504,LJ4,Contracts,P01,Transport,S. J. & J M MUNDEN T/A GUYAN MINI BUSES,03/08/2016,5745.92
Bath & North East Somerset Council,10818500,LJ4,Contracts,P01,Transport,MINIBUS TRAVEL,03/08/2016,5799.44
Bath & North East Somerset Council,10818604,3G1,Grants/Advances,P11,Adult Social Care & Health,OASIS BATHROOM CENTRE,03/08/2016,6565
Bath & North East Somerset Council,10818521,LJ4,Contracts,P01,Transport,ARLEEN COACH & HIRE SERVICES L,03/08/2016,7714
Bath & North East Somerset Council,10818768,LJ3,Other Services to the Council,Z98,West of England Partnership,SCIENCE RESEARCH FOUNDATION,03/08/2016,7869.48
Bath & North East Somerset Council,10818503,LJ4,Contracts,P01,Transport,STEVE WARREN TRANSPORT SERVICES LTD,03/08/2016,7899
Bath & North East Somerset Council,10816492,LK2,Licences,Z98,West of England Partnership,ECONOMIC MODELING LLC,03/08/2016,8000
Bath & North East Somerset Council,10818706,LM1,Volunt Homes Placements Top/Up,P12,Children's Services,FAMILY ASSESSMENT AND SUPPORT SERVICES,03/08/2016,8342.86
Bath & North East Somerset Council,10818594,LK1,Fees,P14,Community Services,NBC BIRD & PEST SOLUTIONS,03/08/2016,9024
Bath & North East Somerset Council,10818708,LJ4,Contracts,P12,Children's Services,BATH AREA PLAY PROJECT,03/08/2016,10000
Bath & North East Somerset Council,10818726,LJ4,Contracts,P12,Children's Services,BATH AREA PLAY PROJECT,03/08/2016,10250
Bath & North East Somerset Council,10818748,LM2,Foster Carer Allowances,P12,Children's Services,PARK BLUE HOMES LTD,03/08/2016,10400
Bath & North East Somerset Council,10818489,LJ4,Contracts,P01,Transport,FILERS COACHES,03/08/2016,10920
Bath & North East Somerset Council,10818390,LJ4,Contracts,P01,Transport,CENTURION TRAVEL LTD,03/08/2016,11156.8
Bath & North East Somerset Council,10818666,LJ4,Contracts,P12,Children's Services,GLOBAL MEDIATION,03/08/2016,11250
Bath & North East Somerset Council,10818704,LJ4,Contracts,P12,Children's Services,GLOBAL MEDIATION,03/08/2016,11250
Bath & North East Somerset Council,10818705,LJ4,Contracts,P12,Children's Services,GLOBAL MEDIATION,03/08/2016,11250
Bath & North East Somerset Council,10818755,LJ4,Contracts,P12,Children's Services,XENZONE LIMITED,03/08/2016,12400
Bath & North East Somerset Council,10818720,LJ4,Contracts,P11,Adult Social Care & Health,SIRONA CARE SERVICES LTD,03/08/2016,12692.5
Bath & North East Somerset Council,10818438,LJ4,Contracts,P01,Transport,BERKELEY COACH & TRAVEL LTD,03/08/2016,12750
Bath & North East Somerset Council,10818621,3F7,PCB External Fees,P01,Transport,VIX TECHNOLOGY UK LIMITED,03/08/2016,12813.84
Bath & North East Somerset Council,10818632,LJ4,Contracts,P12,Children's Services,MENTORING PLUS BATH AND NE SOMERSET LTD,03/08/2016,16250
Bath & North East Somerset Council,10818593,LK1,Fees,P14,Community Services,NBC BIRD & PEST SOLUTIONS,03/08/2016,17688
Bath & North East Somerset Council,10818719,LJ4,Contracts,P12,Children's Services,BATH AREA PLAY PROJECT,03/08/2016,20250
Bath & North East Somerset Council,10818682,LM1,Volunt Homes Placements Top/Up,P12,Children's Services,FAMILY ASSESSMENT AND SUPPORT SERVICES,03/08/2016,21035.71
Bath & North East Somerset Council,10818616,3F7,PCB External Fees,P01,Transport,VIX TECHNOLOGY UK LIMITED,03/08/2016,22253.14
Bath & North East Somerset Council,10818695,LJ4,Contracts,P11,Adult Social Care & Health,SIRONA CARE SERVICES LTD,03/08/2016,23380
Bath & North East Somerset Council,10818718,LJ4,Contracts,P11,Adult Social Care & Health,SIRONA CARE SERVICES LTD,03/08/2016,23412.08
Bath & North East Somerset Council,10818722,LJ4,Contracts,P11,Adult Social Care & Health,SIRONA CARE SERVICES LTD,03/08/2016,23610.83
Bath & North East Somerset Council,10818714,LJ4,Contracts,P11,Adult Social Care & Health,SIRONA CARE SERVICES LTD,03/08/2016,24290.42
Bath & North East Somerset Council,10818713,LJ4,Contracts,P11,Adult Social Care & Health,SIRONA CARE SERVICES LTD,03/08/2016,26055.25
Bath & North East Somerset Council,10818618,3F7,PCB External Fees,P01,Transport,VIX TECHNOLOGY UK LIMITED,03/08/2016,27766.01
Bath & North East Somerset Council,10818620,3F7,PCB External Fees,P01,Transport,VIX TECHNOLOGY UK LIMITED,03/08/2016,32700.7
Bath & North East Somerset Council,10818563,LJ4,Contracts,P12,Children's Services,FOSSE WAY SCHOOL,03/08/2016,43334
Bath & North East Somerset Council,10818565,LJ4,Contracts,P12,Children's Services,FOSSE WAY SCHOOL,03/08/2016,43903
Bath & North East Somerset Council,10818712,LJ4,Contracts,P11,Adult Social Care & Health,SIRONA CARE SERVICES LTD,03/08/2016,49056.75
Bath & North East Somerset Council,10818387,LV2,Contributions to Organisations,Z98,West of England Partnership,SOUTH GLOUCESTERSHIRE COUNCIL,03/08/2016,65724.37
Bath & North East Somerset Council,10818693,LM1,Volunt Homes Placements Top/Up,P12,Children's Services,AURORA CARE AND EDUCATION OPCO LTD,03/08/2016,106245.9
Bath & North East Somerset Council,10818389,LV2,Contributions to Organisations,Z98,West of England Partnership,BATH COLLEGE,03/08/2016,120180
Bath & North East Somerset Council,10818694,LJ4,Contracts,P11,Adult Social Care & Health,SIRONA CARE SERVICES LTD,03/08/2016,198470.33
Bath & North East Somerset Council,10818388,LV2,Contributions to Organisations,Z98,West of England Partnership,NORTH SOMERSET COUNCIL,03/08/2016,237192
Bath & North East Somerset Council,80614444,PG1,Rent Allowances,P10,Finance & Efficiency,REDACTED,04/08/2016,1988.36
Bath & North East Somerset Council,80614454,PG1,Rent Allowances,P10,Finance & Efficiency,REDACTED,04/08/2016,574.3
Bath & North East Somerset Council,80614414,PG1,Rent Allowances,P10,Finance & Efficiency,ACCREDITED LETTINGS LTD,04/08/2016,961
Bath & North East Somerset Council,80614513,PG1,Rent Allowances,P10,Finance & Efficiency,ADA GLOSSOP LTD,04/08/2016,732.14
Bath & North East Somerset Council,80614447,PG1,Rent Allowances,P10,Finance & Efficiency,ADVANCE HOUSING SUPPORT LTD,04/08/2016,3502.36
Bath & North East Somerset Council,80614431,PG1,Rent Allowances,P10,Finance & Efficiency,AQUA SULIS FINANCIAL MANAGEMENT,04/08/2016,1856.51
Bath & North East Somerset Council,80614388,PG1,Rent Allowances,P10,Finance & Efficiency,ASSURED PROPERTY RENTALS,04/08/2016,709.85
Bath & North East Somerset Council,80614438,PG1,Rent Allowances,P10,Finance & Efficiency,ASTER COMMUNITIES,04/08/2016,14689.58
Bath & North East Somerset Council,80614531,PG1,Rent Allowances,P10,Finance & Efficiency,BATH & DISTRICT LIFE CARE,04/08/2016,611.41
Bath & North East Somerset Council,80614354,PG1,Rent Allowances,P10,Finance & Efficiency,BATH MIND,04/08/2016,3573.51
Bath & North East Somerset Council,80614396,PG1,Rent Allowances,P10,Finance & Efficiency,BATH PROPERTY SERVICES,04/08/2016,870.96
Bath & North East Somerset Council,80614389,PG1,Rent Allowances,P10,Finance & Efficiency,CITY CENTRAL,04/08/2016,756.92
Bath & North East Somerset Council,80614278,PG1,Rent Allowances,P10,Finance & Efficiency,CURO,04/08/2016,818.29
Bath & North East Somerset Council,80614533,PG1,Rent Allowances,P10,Finance & Efficiency,CURO,04/08/2016,10839.54
Bath & North East Somerset Council,80614532,PG1,Rent Allowances,P10,Finance & Efficiency,CURO,04/08/2016,66478.9
Bath & North East Somerset Council,10818809,7F1,Rent,,,CURO,04/08/2016,122458.77
Bath & North East Somerset Council,80614443,PG1,Rent Allowances,P10,Finance & Efficiency,DELANEY PROPERTIES LTD,04/08/2016,537.24
Bath & North East Somerset Council,80614395,PG1,Rent Allowances,P10,Finance & Efficiency,DEVELOPING HEALTH AND INDEPENDEN,04/08/2016,6689.26
Bath & North East Somerset Council,10818783,LF1,Printing/Design,P14,Community Services,HELLO STUDIO LTD,04/08/2016,150
Bath & North East Somerset Council,80614367,PG1,Rent Allowances,P10,Finance & Efficiency,DIMENSIONS (UK) LTD,04/08/2016,18432.32
Bath & North East Somerset Council,80614419,PG1,Rent Allowances,P10,Finance & Efficiency,DOVETAIL PROPERTIES,04/08/2016,1959.84
Bath & North East Somerset Council,80614480,PG1,Rent Allowances,P10,Finance & Efficiency,DRUGS & HOMELESS INTIATIVE HTL P,04/08/2016,7506.37
Bath & North East Somerset Council,80614369,PG1,Rent Allowances,P10,Finance & Efficiency,DUCHY OF CORNWALL,04/08/2016,1608.56
Bath & North East Somerset Council,80614498,PG1,Rent Allowances,P10,Finance & Efficiency,ELIM HOUSING ASSOCIATION,04/08/2016,3373.03
Bath & North East Somerset Council,80614398,PG1,Rent Allowances,P10,Finance & Efficiency,GOLDEN LANE HOUSING LTD,04/08/2016,4849.96
Bath & North East Somerset Council,80614374,PG1,Rent Allowances,P10,Finance & Efficiency,HANOVER HOUSING ASSOCIATION,04/08/2016,2655.36
Bath & North East Somerset Council,80614376,PG1,Rent Allowances,P10,Finance & Efficiency,HANOVER HOUSING ASSOCIATION,04/08/2016,9103.72
Bath & North East Somerset Council,80614358,PG1,Rent Allowances,P10,Finance & Efficiency,REDACTED,04/08/2016,47082.38
Bath & North East Somerset Council,80614393,PG1,Rent Allowances,P10,Finance & Efficiency,KNIGHTSTONE COMMUNITY HOMES,04/08/2016,29109.69
Bath & North East Somerset Council,80614519,PG1,Rent Allowances,P10,Finance & Efficiency,KNIGHTSTONE HOUSING ASSOCIATION,04/08/2016,525.21
Bath & North East Somerset Council,80614356,PG1,Rent Allowances,P10,Finance & Efficiency,KNIGHTSTONE HOUSING ASSOCIATION,04/08/2016,1000
Bath & North East Somerset Council,80614467,PG1,Rent Allowances,P10,Finance & Efficiency,KNIGHTSTONE HOUSING ASSOCIATION,04/08/2016,1000
Bath & North East Somerset Council,80614348,PG1,Rent Allowances,P10,Finance & Efficiency,KNIGHTSTONE HOUSING ASSOCIATION,04/08/2016,19779.9
Bath & North East Somerset Council,80614352,PG1,Rent Allowances,P10,Finance & Efficiency,KNIGHTSTONE HOUSING ASSOCIATION,04/08/2016,84763.94
Bath & North East Somerset Council,80614441,PG1,Rent Allowances,P10,Finance & Efficiency,MARK NAYLOR RESIDENTIAL SALES,04/08/2016,1050.64
Bath & North East Somerset Council,80614442,PG1,Rent Allowances,P10,Finance & Efficiency,REDACTED,04/08/2016,3210.64
Bath & North East Somerset Council,80614439,PG1,Rent Allowances,P10,Finance & Efficiency,MENCAP,04/08/2016,5698.96
Bath & North East Somerset Council,80614459,PG1,Rent Allowances,P10,Finance & Efficiency,MERLIN HOUSING SOCIETY,04/08/2016,2075.3
Bath & North East Somerset Council,80614351,PG1,Rent Allowances,P10,Finance & Efficiency,METHODIST HOMES (CHURCH COURT),04/08/2016,2896.16
Bath & North East Somerset Council,80614373,PG1,Rent Allowances,P10,Finance & Efficiency,METHODIST HOMES HOUSING ASSOCIAT,04/08/2016,1790.28
Bath & North East Somerset Council,80614511,PG1,Rent Allowances,P10,Finance & Efficiency,METRO BANK PLC,04/08/2016,553.84
Bath & North East Somerset Council,80614468,PG1,Rent Allowances,P10,Finance & Efficiency,REDACTED,04/08/2016,600
Bath & North East Somerset Council,80614501,PG1,Rent Allowances,P10,Finance & Efficiency,REDACTED,04/08/2016,606
Bath & North East Somerset Council,80614453,PG1,Rent Allowances,P10,Finance & Efficiency,REDACTED,04/08/2016,577.4
Bath & North East Somerset Council,80614493,PG1,Rent Allowances,P10,Finance & Efficiency,REDACTED,04/08/2016,600
Bath & North East Somerset Council,80614383,PG1,Rent Allowances,P10,Finance & Efficiency,REDACTED,04/08/2016,542.96
Bath & North East Somerset Council,80614400,PG1,Rent Allowances,P10,Finance & Efficiency,REDACTED,04/08/2016,542.96
Bath & North East Somerset Council,80614384,PG1,Rent Allowances,P10,Finance & Efficiency,REDACTED,04/08/2016,542.96
Bath & North East Somerset Council,80614470,PG1,Rent Allowances,P10,Finance & Efficiency,REDACTED,04/08/2016,532.32
Bath & North East Somerset Council,80614476,PG1,Rent Allowances,P10,Finance & Efficiency,REDACTED,04/08/2016,586.16
Bath & North East Somerset Council,80614417,PG1,Rent Allowances,P10,Finance & Efficiency,REDACTED,04/08/2016,553.84
Bath & North East Somerset Council,80614425,PG1,Rent Allowances,P10,Finance & Efficiency,REDACTED,04/08/2016,724.6
Bath & North East Somerset Council,80614473,PG1,Rent Allowances,P10,Finance & Efficiency,REDACTED,04/08/2016,618.48
Bath & North East Somerset Council,80614497,PG1,Rent Allowances,P10,Finance & Efficiency,REDACTED,04/08/2016,759.44
Bath & North East Somerset Council,80614487,PG1,Rent Allowances,P10,Finance & Efficiency,REDACTED,04/08/2016,759.44
Bath & North East Somerset Council,80614482,PG1,Rent Allowances,P10,Finance & Efficiency,REDACTED,04/08/2016,1085.52
Bath & North East Somerset Council,80614457,PG1,Rent Allowances,P10,Finance & Efficiency,REDACTED,04/08/2016,569.4
Bath & North East Somerset Council,80614436,PG1,Rent Allowances,P10,Finance & Efficiency,REDACTED,04/08/2016,542.96
Bath & North East Somerset Council,80614505,PG1,Rent Allowances,P10,Finance & Efficiency,REDACTED,04/08/2016,668.92
Bath & North East Somerset Council,80614402,PG1,Rent Allowances,P10,Finance & Efficiency,REDACTED,04/08/2016,507.68
Bath & North East Somerset Council,80614462,PG1,Rent Allowances,P10,Finance & Efficiency,REDACTED,04/08/2016,646.16
Bath & North East Somerset Council,80614502,PG1,Rent Allowances,P10,Finance & Efficiency,REDACTED,04/08/2016,600
Bath & North East Somerset Council,80614484,PG1,Rent Allowances,P10,Finance & Efficiency,REDACTED,04/08/2016,549.24
Bath & North East Somerset Council,80614450,PG1,Rent Allowances,P10,Finance & Efficiency,REDACTED,04/08/2016,740
Bath & North East Somerset Council,80614460,PG1,Rent Allowances,P10,Finance & Efficiency,REDACTED,04/08/2016,646.16
Bath & North East Somerset Council,80614506,PG1,Rent Allowances,P10,Finance & Efficiency,REDACTED,04/08/2016,600
Bath & North East Somerset Council,80614458,PG1,Rent Allowances,P10,Finance & Efficiency,REDACTED,04/08/2016,530.76
Bath & North East Somerset Council,80614504,PG1,Rent Allowances,P10,Finance & Efficiency,REDACTED,04/08/2016,616.6
Bath & North East Somerset Council,80614509,PG1,Rent Allowances,P10,Finance & Efficiency,REDACTED,04/08/2016,668.92
Bath & North East Somerset Council,80614422,PG1,Rent Allowances,P10,Finance & Efficiency,REDACTED,04/08/2016,542.96
Bath & North East Somerset Council,80614409,PG1,Rent Allowances,P10,Finance & Efficiency,REDACTED,04/08/2016,542.96
Bath & North East Somerset Council,80614350,PG1,Rent Allowances,P10,Finance & Efficiency,REDACTED,04/08/2016,1714.92
Bath & North East Somerset Council,80614424,PG1,Rent Allowances,P10,Finance & Efficiency,REDACTED,04/08/2016,692.32
Bath & North East Somerset Council,80614430,PG1,Rent Allowances,P10,Finance & Efficiency,REDACTED,04/08/2016,516.28
Bath & North East Somerset Council,80614466,PG1,Rent Allowances,P10,Finance & Efficiency,REDACTED,04/08/2016,584.43
Bath & North East Somerset Council,80614495,PG1,Rent Allowances,P10,Finance & Efficiency,REDACTED,04/08/2016,1376.24
Bath & North East Somerset Council,80614465,PG1,Rent Allowances,P10,Finance & Efficiency,REDACTED,04/08/2016,540
Bath & North East Somerset Council,80614416,PG1,Rent Allowances,P10,Finance & Efficiency,REDACTED,04/08/2016,2577.1
Bath & North East Somerset Council,80614307,PG1,Rent Allowances,P10,Finance & Efficiency,REDACTED,04/08/2016,1764.62
Bath & North East Somerset Council,80614403,PG1,Rent Allowances,P10,Finance & Efficiency,REDACTED,04/08/2016,593.56
Bath & North East Somerset Council,80614452,PG1,Rent Allowances,P10,Finance & Efficiency,REDACTED,04/08/2016,507.68
Bath & North East Somerset Council,80614491,PG1,Rent Allowances,P10,Finance & Efficiency,REDACTED,04/08/2016,602.6
Bath & North East Somerset Council,80614368,PG1,Rent Allowances,P10,Finance & Efficiency,REDACTED,04/08/2016,500.84
Bath & North East Somerset Council,80614306,PG1,Rent Allowances,P10,Finance & Efficiency,REDACTED,04/08/2016,723.72
Bath & North East Somerset Council,80614461,PG1,Rent Allowances,P10,Finance & Efficiency,REDACTED,04/08/2016,516.92
Bath & North East Somerset Council,80614500,PG1,Rent Allowances,P10,Finance & Efficiency,REDACTED,04/08/2016,702.96
Bath & North East Somerset Council,80614475,PG1,Rent Allowances,P10,Finance & Efficiency,REDACTED,04/08/2016,600
Bath & North East Somerset Council,80614485,PG1,Rent Allowances,P10,Finance & Efficiency,REDACTED,04/08/2016,2006.76
Bath & North East Somerset Council,80614332,PG1,Rent Allowances,P10,Finance & Efficiency,REDACTED,04/08/2016,553.84
Bath & North East Somerset Council,80614405,PG1,Rent Allowances,P10,Finance & Efficiency,REDACTED,04/08/2016,521.52
Bath & North East Somerset Council,80614407,PG1,Rent Allowances,P10,Finance & Efficiency,REDACTED,04/08/2016,589.1
Bath & North East Somerset Council,80614380,PG1,Rent Allowances,P10,Finance & Efficiency,REDACTED,04/08/2016,500
Bath & North East Somerset Council,80614508,PG1,Rent Allowances,P10,Finance & Efficiency,REDACTED,04/08/2016,759.44
Bath & North East Somerset Council,80614340,PG1,Rent Allowances,P10,Finance & Efficiency,REDACTED,04/08/2016,571.2
Bath & North East Somerset Council,80614404,PG1,Rent Allowances,P10,Finance & Efficiency,REDACTED,04/08/2016,1211.88
Bath & North East Somerset Council,80614415,PG1,Rent Allowances,P10,Finance & Efficiency,REDACTED,04/08/2016,690
Bath & North East Somerset Council,80614428,PG1,Rent Allowances,P10,Finance & Efficiency,REDACTED,04/08/2016,507.68
Bath & North East Somerset Council,80614503,PG1,Rent Allowances,P10,Finance & Efficiency,REDACTED,04/08/2016,668.92
Bath & North East Somerset Council,80614499,PG1,Rent Allowances,P10,Finance & Efficiency,REDACTED,04/08/2016,600
Bath & North East Somerset Council,80614514,PG1,Rent Allowances,P10,Finance & Efficiency,REDACTED,04/08/2016,699.77
Bath & North East Somerset Council,80614411,PG1,Rent Allowances,P10,Finance & Efficiency,REDACTED,04/08/2016,1052.32
Bath & North East Somerset Council,80614494,PG1,Rent Allowances,P10,Finance & Efficiency,REDACTED,04/08/2016,668.92
Bath & North East Somerset Council,80614382,PG1,Rent Allowances,P10,Finance & Efficiency,REDACTED,04/08/2016,542.96
Bath & North East Somerset Council,80614429,PG1,Rent Allowances,P10,Finance & Efficiency,REDACTED,04/08/2016,542.96
Bath & North East Somerset Council,10818833,HA2,Servicing,P10,Finance & Efficiency,MANNINGS FACILITIES MANAGEMENT LTD,04/08/2016,397.11
Bath & North East Somerset Council,10818605,LH2,Advertising,P12,Children's Services,MEDIACLASH LTD,04/08/2016,423
Bath & North East Somerset Council,80614446,PG1,Rent Allowances,P10,Finance & Efficiency,PG LETTINGS LTD,04/08/2016,627.68
Bath & North East Somerset Council,80614362,PG1,Rent Allowances,P10,Finance & Efficiency,PLACES FOR PEOPLE,04/08/2016,2243.85
Bath & North East Somerset Council,10818845,HA5,Service Contract PCB,P10,Finance & Efficiency,SCHNEIDER ELECTRIC LTD,04/08/2016,569.33
Bath & North East Somerset Council,80614394,PG1,Rent Allowances,P10,Finance & Efficiency,RIVERSIDE - E.C.H.G.,04/08/2016,2494.68
Bath & North East Somerset Council,10818789,LA5,Materials,P14,Community Services,E BILLETT & SONS,04/08/2016,605.55
Bath & North East Somerset Council,10818775,HK1,Highway Maintenance,P01,Transport,ROMAN ROD,04/08/2016,645
Bath & North East Somerset Council,10818833,HA2,Servicing,P10,Finance & Efficiency,MANNINGS FACILITIES MANAGEMENT LTD,04/08/2016,754.5
Bath & North East Somerset Council,10818814,LA5,Materials,P14,Community Services,H & T PROCTOR,04/08/2016,777
Bath & North East Somerset Council,80614477,PG1,Rent Allowances,P10,Finance & Efficiency,S.R. CONTRACTORS,04/08/2016,1062.14
Bath & North East Somerset Council,80614375,PG1,Rent Allowances,P10,Finance & Efficiency,S.W.A.L.L.O.W.,04/08/2016,5273.06
Bath & North East Somerset Council,80614363,PG1,Rent Allowances,P10,Finance & Efficiency,SANCTUARY HOUSING ASSOCIATION,04/08/2016,14815.44
Bath & North East Somerset Council,10818832,HA2,Servicing,P10,Finance & Efficiency,MANNINGS FACILITIES MANAGEMENT LTD,04/08/2016,907.48
Bath & North East Somerset Council,80614361,PG1,Rent Allowances,P10,Finance & Efficiency,SOLON (SOUTH WEST) HOUSING ASSOC,04/08/2016,8213.7
Bath & North East Somerset Council,80614449,PG1,Rent Allowances,P10,Finance & Efficiency,SOMER COMMUNITY HOUSING TRUST,04/08/2016,4028.43
Bath & North East Somerset Council,80614377,PG1,Rent Allowances,P10,Finance & Efficiency,SOVEREIGN HOUSING ASSOCIATION,04/08/2016,52253.46
Bath & North East Somerset Council,80614451,PG1,Rent Allowances,P10,Finance & Efficiency,ST MUNGOS,04/08/2016,12346.12
Bath & North East Somerset Council,10817778,LH2,Advertising,P04,Leader,TMP (UK) LTD,04/08/2016,970
Bath & North East Somerset Council,10818773,HK1,Highway Maintenance,P01,Transport,BENDREY BROS,04/08/2016,1070.26
Bath & North East Somerset Council,10818044,LJ4,Contracts,P14,Community Services,BRUEL & KJAER UK LTD,04/08/2016,1161.2
Bath & North East Somerset Council,80614366,PG1,Rent Allowances,P10,Finance & Efficiency,STONHAM HOUSING ASSOCIATION,04/08/2016,12472.74
Bath & North East Somerset Council,10818784,LF1,Printing/Design,P14,Community Services,HELLO STUDIO LTD,04/08/2016,1230
Bath & North East Somerset Council,80614420,PG1,Rent Allowances,P10,Finance & Efficiency,SUPPORTED INDEPENDENCE LTD,04/08/2016,2173
Bath & North East Somerset Council,10818835,HA2,Servicing,P10,Finance & Efficiency,MANNINGS FACILITIES MANAGEMENT LTD,04/08/2016,1447.58
Bath & North East Somerset Council,10818813,LA4,Equipment Hire/Rent,P14,Community Services,RILEY'S CRANE HIRE LTD,04/08/2016,1659.97
Bath & North East Somerset Council,10818783,LF1,Printing/Design,P14,Community Services,HELLO STUDIO LTD,04/08/2016,1680
Bath & North East Somerset Council,10818835,HA2,Servicing,P10,Finance & Efficiency,MANNINGS FACILITIES MANAGEMENT LTD,04/08/2016,1890.69
Bath & North East Somerset Council,80614372,PG1,Rent Allowances,P10,Finance & Efficiency,THATCHER AND HALLAM,04/08/2016,2005.12
Bath & North East Somerset Council,10818837,HA2,Servicing,P10,Finance & Efficiency,MANNINGS FACILITIES MANAGEMENT LTD,04/08/2016,2428.35
Bath & North East Somerset Council,80614359,PG1,Rent Allowances,P10,Finance & Efficiency,THE GUINNESS PARTNERSHIP,04/08/2016,45697.51
Bath & North East Somerset Council,80614360,PG1,Rent Allowances,P10,Finance & Efficiency,THE GUINNESS TRUST,04/08/2016,42051.09
Bath & North East Somerset Council,10818696,LK2,Licences,P10,Finance & Efficiency,INFORM CPI LTD,04/08/2016,3050
Bath & North East Somerset Council,80614283,LK4,Nursery/Childcare Vouchers,P12,Children's Services,LITTLE FIDGETS PLAYGROUP,04/08/2016,3163.65
Bath & North East Somerset Council,80614399,PG1,Rent Allowances,P10,Finance & Efficiency,TOUCHSTONE RESIDENTIAL LETTINGS,04/08/2016,542.96
Bath & North East Somerset Council,80614391,PG1,Rent Allowances,P10,Finance & Efficiency,TRUSTEES OF (REDACTED),04/08/2016,964.64
Bath & North East Somerset Council,10818829,LM2,Foster Carer Allowances,P12,Children's Services,FOSTER CARE ASSOCIATES LTD,04/08/2016,3422.45
Bath & North East Somerset Council,10818830,LM2,Foster Carer Allowances,P12,Children's Services,FOSTER CARE ASSOCIATES LTD,04/08/2016,3635.9
Bath & North East Somerset Council,10818815,LM2,Foster Carer Allowances,P12,Children's Services,FOSTER CARE ASSOCIATES LTD,04/08/2016,3667.2
Bath & North East Somerset Council,10818698,LK2,Licences,P10,Finance & Efficiency,INFORM CPI LTD,04/08/2016,3825
Bath & North East Somerset Council,10818817,LM2,Foster Carer Allowances,P12,Children's Services,FOSTER CARE ASSOCIATES LTD,04/08/2016,3916.8
Bath & North East Somerset Council,10818827,3C4,Building Works,P14,Community Services,LDA DESIGN CONSULTING LTD,04/08/2016,4017.17
Bath & North East Somerset Council,80614432,PG1,Rent Allowances,P10,Finance & Efficiency,U G PROPERTY MANAGEMENT,04/08/2016,1004.52
Bath & North East Somerset Council,80614364,PG1,Rent Allowances,P10,Finance & Efficiency,UNITED HOUSING ASSOCIATION,04/08/2016,1579.68
Bath & North East Somerset Council,80614481,PG1,Rent Allowances,P10,Finance & Efficiency,VALLEY PROPERTY MANAGERS,04/08/2016,542.96
Bath & North East Somerset Council,10818756,LX6,Bus Revenue Support,P01,Transport,SOMERBUS LTD,04/08/2016,5127.58
Bath & North East Somerset Council,10818846,3F7,PCB External Fees,P13,Economic Development,H MEALING & SONS LTD,04/08/2016,5139.79
Bath & North East Somerset Council,10818776,LJ1,Consultants Fees,P14,Community Services,CAPITA SYMONDS,04/08/2016,9043.7
Bath & North East Somerset Council,80614370,PG1,Rent Allowances,P10,Finance & Efficiency,REDACTED,04/08/2016,918.44
Bath & North East Somerset Council,10818759,LX6,Bus Revenue Support,P01,Transport,CT COACHES,04/08/2016,13375.7
Bath & North East Somerset Council,80614371,PG1,Rent Allowances,P10,Finance & Efficiency,WILTSHIRE RURAL HOUSING ASSOCIAT,04/08/2016,1300.08
Bath & North East Somerset Council,10818816,LM1,Volunt Homes Placements Top/Up,P12,Children's Services,FAMILY ASSESSMENT AND SUPPORT SERVICES,04/08/2016,21035.71
Bath & North East Somerset Council,10818819,LE1,Education Payment (independent school),P12,Children's Services,MARK COLLEGE PRIORY,04/08/2016,21666.67
Bath & North East Somerset Council,10818820,LE1,Education Payment (independent school),P12,Children's Services,NEWBURY MANOR PRIORY,04/08/2016,26880
Bath & North East Somerset Council,10818821,LE1,Education Payment (independent school),P12,Children's Services,NEWBURY MANOR PRIORY,04/08/2016,26880
Bath & North East Somerset Council,10818762,LX6,Bus Revenue Support,P01,Transport,FIRST SOMERSET & AVON LTD,04/08/2016,31262.83
Bath & North East Somerset Council,10818825,LK1,Fees,P10,Finance & Efficiency,THE BATH BID (BUSINESS IMPROVEMENT DISTRICT) COMPANY,04/08/2016,34000
Bath & North East Somerset Council,80614349,PG1,Rent Allowances,P10,Finance & Efficiency,Y.M.C.A.,04/08/2016,8947.57
Bath & North East Somerset Council,80614474,PG1,Rent Allowances,P10,Finance & Efficiency,YELLOW PROPERTY,04/08/2016,1730.8
Bath & North East Somerset Council,10818787,3C4,Building Works,P12,Children's Services,H MEALING & SONS LTD,04/08/2016,51134.26
Bath & North East Somerset Council,10818782,DB1,Agency Staff,P10,Finance & Efficiency,COMENSURA LTD,04/08/2016,68506.31
Bath & North East Somerset Council,10818802,3F7,PCB External Fees,P12,Children's Services,M D BUILDING SERVICES LTD,04/08/2016,72188.35
Bath & North East Somerset Council,10818812,3C4,Building Works,P12,Children's Services,H MEALING & SONS LTD,04/08/2016,79100.8
Bath & North East Somerset Council,10818778,3F7,PCB External Fees,P12,Children's Services,RYDON CONSTRUCTION LIMITED,04/08/2016,182637
Bath & North East Somerset Council,80614650,LM8,Home Care,P11,Adult Social Care & Health,AGINCARE LIVE IN CARE SERVICES LTD,05/08/2016,0.06
Bath & North East Somerset Council,80614652,LM8,Home Care,P11,Adult Social Care & Health,AGINCARE LIVE IN CARE SERVICES LTD,05/08/2016,700
Bath & North East Somerset Council,80614652,LM8,Home Care,P11,Adult Social Care & Health,AGINCARE LIVE IN CARE SERVICES LTD,05/08/2016,700
Bath & North East Somerset Council,80614650,LM8,Home Care,P11,Adult Social Care & Health,AGINCARE LIVE IN CARE SERVICES LTD,05/08/2016,765
Bath & North East Somerset Council,80614650,LM8,Home Care,P11,Adult Social Care & Health,AGINCARE LIVE IN CARE SERVICES LTD,05/08/2016,765
Bath & North East Somerset Council,80614644,LM8,Home Care,P11,Adult Social Care & Health,AMBER HOMECARE LTD,05/08/2016,247.3
Bath & North East Somerset Council,80614644,LM8,Home Care,P11,Adult Social Care & Health,AMBER HOMECARE LTD,05/08/2016,247.3
Bath & North East Somerset Council,80614644,LM8,Home Care,P11,Adult Social Care & Health,AMBER HOMECARE LTD,05/08/2016,247.3
Bath & North East Somerset Council,80614644,LM8,Home Care,P11,Adult Social Care & Health,AMBER HOMECARE LTD,05/08/2016,247.3
Bath & North East Somerset Council,80614661,LM8,Home Care,P11,Adult Social Care & Health,BATHHAL,05/08/2016,152.32
Bath & North East Somerset Council,80614661,LM8,Home Care,P11,Adult Social Care & Health,BATHHAL,05/08/2016,152.32
Bath & North East Somerset Council,80614661,LM8,Home Care,P11,Adult Social Care & Health,BATHHAL,05/08/2016,152.32
Bath & North East Somerset Council,80614661,LM8,Home Care,P11,Adult Social Care & Health,BATHHAL,05/08/2016,152.32
Bath & North East Somerset Council,80614653,LM8,Home Care,P11,Adult Social Care & Health,BLUEBIRD CARE (BATH),05/08/2016,0.04
Bath & North East Somerset Council,80614683,LM8,Home Care,P11,Adult Social Care & Health,BLUEBIRD CARE (BATH),05/08/2016,0.04
Bath & North East Somerset Council,80614683,LM8,Home Care,P11,Adult Social Care & Health,BLUEBIRD CARE (BATH),05/08/2016,525.6
Bath & North East Somerset Council,80614683,LM8,Home Care,P11,Adult Social Care & Health,BLUEBIRD CARE (BATH),05/08/2016,525.6
Bath & North East Somerset Council,80614653,LM8,Home Care,P11,Adult Social Care & Health,BLUEBIRD CARE (BATH),05/08/2016,860
Bath & North East Somerset Council,80614653,LM8,Home Care,P11,Adult Social Care & Health,BLUEBIRD CARE (BATH),05/08/2016,860
Bath & North East Somerset Council,80614646,LM8,Home Care,P11,Adult Social Care & Health,BUTTERFLY HOME HELP,05/08/2016,34.4
Bath & North East Somerset Council,80614646,LM8,Home Care,P11,Adult Social Care & Health,BUTTERFLY HOME HELP,05/08/2016,251.3
Bath & North East Somerset Council,80614646,LM8,Home Care,P11,Adult Social Care & Health,BUTTERFLY HOME HELP,05/08/2016,251.3
Bath & North East Somerset Council,80614646,LM8,Home Care,P11,Adult Social Care & Health,BUTTERFLY HOME HELP,05/08/2016,251.3
Bath & North East Somerset Council,80614646,LM8,Home Care,P11,Adult Social Care & Health,BUTTERFLY HOME HELP,05/08/2016,251.3
Bath & North East Somerset Council,80614647,LM8,Home Care,P11,Adult Social Care & Health,BUTTERFLY HOME HELP,05/08/2016,851.4
Bath & North East Somerset Council,80614647,LM8,Home Care,P11,Adult Social Care & Health,BUTTERFLY HOME HELP,05/08/2016,851.4
Bath & North East Somerset Council,80614647,LM8,Home Care,P11,Adult Social Care & Health,BUTTERFLY HOME HELP,05/08/2016,851.4
Bath & North East Somerset Council,80614647,LM8,Home Care,P11,Adult Social Care & Health,BUTTERFLY HOME HELP,05/08/2016,851.4
Bath & North East Somerset Council,80614680,LM8,Home Care,P11,Adult Social Care & Health,BUTTERFLY HOME HELP,05/08/2016,910
Bath & North East Somerset Council,80614680,LM8,Home Care,P11,Adult Social Care & Health,BUTTERFLY HOME HELP,05/08/2016,910
Bath & North East Somerset Council,80614680,LM8,Home Care,P11,Adult Social Care & Health,BUTTERFLY HOME HELP,05/08/2016,1228.5
Bath & North East Somerset Council,80614680,LM8,Home Care,P11,Adult Social Care & Health,BUTTERFLY HOME HELP,05/08/2016,1228.5
Bath & North East Somerset Council,80614681,LM8,Home Care,P11,Adult Social Care & Health,BUTTERFLY HOME HELP,05/08/2016,1547
Bath & North East Somerset Council,80614681,LM8,Home Care,P11,Adult Social Care & Health,BUTTERFLY HOME HELP,05/08/2016,1547
Bath & North East Somerset Council,80614681,LM8,Home Care,P11,Adult Social Care & Health,BUTTERFLY HOME HELP,05/08/2016,1547
Bath & North East Somerset Council,80614679,LM8,Home Care,P11,Adult Social Care & Health,BUTTERFLY HOME HELP,05/08/2016,1848
Bath & North East Somerset Council,80614679,LM8,Home Care,P11,Adult Social Care & Health,BUTTERFLY HOME HELP,05/08/2016,1848
Bath & North East Somerset Council,80614679,LM8,Home Care,P11,Adult Social Care & Health,BUTTERFLY HOME HELP,05/08/2016,1848
Bath & North East Somerset Council,80614682,LM8,Home Care,P11,Adult Social Care & Health,CANDLELIGHT HOMECARE SERVICES LTD,05/08/2016,915
Bath & North East Somerset Council,80614682,LM8,Home Care,P11,Adult Social Care & Health,CANDLELIGHT HOMECARE SERVICES LTD,05/08/2016,915
Bath & North East Somerset Council,80614682,LM8,Home Care,P11,Adult Social Care & Health,CANDLELIGHT HOMECARE SERVICES LTD,05/08/2016,915
Bath & North East Somerset Council,80614682,LM8,Home Care,P11,Adult Social Care & Health,CANDLELIGHT HOMECARE SERVICES LTD,05/08/2016,915
Bath & North East Somerset Council,80614676,LM8,Home Care,P11,Adult Social Care & Health,CORINIUM CARE LIMITED,05/08/2016,545
Bath & North East Somerset Council,80614676,LM8,Home Care,P11,Adult Social Care & Health,CORINIUM CARE LIMITED,05/08/2016,1362.5
Bath & North East Somerset Council,80614677,LM8,Home Care,P11,Adult Social Care & Health,CORINIUM CARE LIMITED,05/08/2016,1490.48
Bath & North East Somerset Council,80614677,LM8,Home Care,P11,Adult Social Care & Health,CORINIUM CARE LIMITED,05/08/2016,1635
Bath & North East Somerset Council,80614676,LM8,Home Care,P11,Adult Social Care & Health,CORINIUM CARE LIMITED,05/08/2016,1907.5
Bath & North East Somerset Council,80614572,LA7,Purchases for Resale,P13,Economic Development,GRANTHAM BOOK SERVICES LTD,05/08/2016,217.51
Bath & North East Somerset Council,80614566,LA7,Purchases for Resale,P13,Economic Development,F H SWIFT,05/08/2016,243.6
Bath & North East Somerset Council,80614670,LM9,Day Care,P11,Adult Social Care & Health,REDACTED,05/08/2016,121.2
Bath & North East Somerset Council,80614670,LM9,Day Care,P11,Adult Social Care & Health,REDACTED,05/08/2016,121.2
Bath & North East Somerset Council,80614670,LM9,Day Care,P11,Adult Social Care & Health,REDACTED,05/08/2016,121.2
Bath & North East Somerset Council,80614670,LM9,Day Care,P11,Adult Social Care & Health,REDACTED,05/08/2016,121.2
Bath & North East Somerset Council,80614670,LM9,Day Care,P11,Adult Social Care & Health,REDACTED,05/08/2016,121.2
Bath & North East Somerset Council,80614558,LA7,Purchases for Resale,P13,Economic Development,MACMILLAN DISTRIBUTION LTD,05/08/2016,252.39
Bath & North East Somerset Council,80614572,LA7,Purchases for Resale,P13,Economic Development,GRANTHAM BOOK SERVICES LTD,05/08/2016,252.85
Bath & North East Somerset Council,80614567,LA7,Purchases for Resale,P13,Economic Development,F H SWIFT,05/08/2016,260.4
Bath & North East Somerset Council,80614550,LA7,Purchases for Resale,P13,Economic Development,THE BAY TREE FOOD CO LTD,05/08/2016,316
Bath & North East Somerset Council,80614558,LA7,Purchases for Resale,P13,Economic Development,MACMILLAN DISTRIBUTION LTD,05/08/2016,357.35
Bath & North East Somerset Council,80614550,LA7,Purchases for Resale,P13,Economic Development,THE BAY TREE FOOD CO LTD,05/08/2016,405
Bath & North East Somerset Council,10818854,LN4,Mobile Phones,P12,Children's Services,SECURITAS SECURITY SERVICES (UK) LTD,05/08/2016,509.32
Bath & North East Somerset Council,10818838,HA3,Planned Maintenance,P09,Homes & Planning,ZENITH INTERNATIONAL LTD,05/08/2016,525
Bath & North East Somerset Council,80614627,LL3,Supported Living,P11,Adult Social Care & Health,PRESTIGE NURSING HEALTHCARE,05/08/2016,95.47
Bath & North East Somerset Council,80614692,LM8,Home Care,P11,Adult Social Care & Health,PRESTIGE NURSING HEALTHCARE,05/08/2016,250.88
Bath & North East Somerset Council,80614627,LL3,Supported Living,P11,Adult Social Care & Health,PRESTIGE NURSING HEALTHCARE,05/08/2016,808.04
Bath & North East Somerset Council,80614634,LL3,Supported Living,P11,Adult Social Care & Health,PRESTIGE NURSING HEALTHCARE,05/08/2016,808.04
Bath & North East Somerset Council,80614628,LL3,Supported Living,P11,Adult Social Care & Health,PRESTIGE NURSING HEALTHCARE,05/08/2016,1517.5
Bath & North East Somerset Council,80614636,LL3,Supported Living,P11,Adult Social Care & Health,PRESTIGE NURSING HEALTHCARE,05/08/2016,1517.5
Bath & North East Somerset Council,80614625,LL3,Supported Living,P11,Adult Social Care & Health,PRESTIGE NURSING HEALTHCARE,05/08/2016,2532.01
Bath & North East Somerset Council,80614632,LL3,Supported Living,P11,Adult Social Care & Health,PRESTIGE NURSING HEALTHCARE,05/08/2016,2532.01
Bath & North East Somerset Council,80614622,LL3,Supported Living,P11,Adult Social Care & Health,PRESTIGE NURSING HEALTHCARE,05/08/2016,2767.8
Bath & North East Somerset Council,80614673,LM8,Home Care,P11,Adult Social Care & Health,PRESTIGE NURSING HEALTHCARE,05/08/2016,3010.56
Bath & North East Somerset Council,80614692,LM8,Home Care,P11,Adult Social Care & Health,PRESTIGE NURSING HEALTHCARE,05/08/2016,3010.56
Bath & North East Somerset Council,80614624,LL3,Supported Living,P11,Adult Social Care & Health,PRESTIGE NURSING HEALTHCARE,05/08/2016,4421.88
Bath & North East Somerset Council,80614631,LL3,Supported Living,P11,Adult Social Care & Health,PRESTIGE NURSING HEALTHCARE,05/08/2016,4421.88
Bath & North East Somerset Council,80614672,LM8,Home Care,P11,Adult Social Care & Health,PRESTIGE NURSING HEALTHCARE,05/08/2016,5824.8
Bath & North East Somerset Council,80614691,LM8,Home Care,P11,Adult Social Care & Health,PRESTIGE NURSING HEALTHCARE,05/08/2016,5824.8
Bath & North East Somerset Council,10818732,LJ1,Consultants Fees,P10,Finance & Efficiency,UNIT 4 BUSINESS SOFTWARE LIMITED,05/08/2016,600
Bath & North East Somerset Council,10818732,LJ1,Consultants Fees,P10,Finance & Efficiency,UNIT 4 BUSINESS SOFTWARE LIMITED,05/08/2016,600
Bath & North East Somerset Council,10818866,LJ4,Contracts,P01,Transport,KEYNSHAM CARS,05/08/2016,618
Bath & North East Somerset Council,10818738,LW9,Other Expenses,P10,Finance & Efficiency,DE LAGE LANDEN LTD,05/08/2016,651.42
Bath & North East Somerset Council,10818868,DB1,Agency Staff,P01,Transport,SOMERSET TRANSPORT SERVICES LTD,05/08/2016,676
Bath & North East Somerset Council,80614586,LA7,Purchases for Resale,P13,Economic Development,YARTO EUROPE LTD,05/08/2016,697.2
Bath & North East Somerset Council,80614555,LA7,Purchases for Resale,P13,Economic Development,HELEN COOMBE,05/08/2016,715
Bath & North East Somerset Council,10818737,LW9,Other Expenses,P10,Finance & Efficiency,DE LAGE LANDEN LTD,05/08/2016,781.7
Bath & North East Somerset Council,80614600,LL3,Supported Living,P11,Adult Social Care & Health,ROYAL MENCAP SOCIETY,05/08/2016,368.5
Bath & North East Somerset Council,80614600,LL3,Supported Living,P11,Adult Social Care & Health,ROYAL MENCAP SOCIETY,05/08/2016,368.5
Bath & North East Somerset Council,80614600,LL3,Supported Living,P11,Adult Social Care & Health,ROYAL MENCAP SOCIETY,05/08/2016,368.5
Bath & North East Somerset Council,80614600,LL3,Supported Living,P11,Adult Social Care & Health,ROYAL MENCAP SOCIETY,05/08/2016,368.5
Bath & North East Somerset Council,80614669,LL3,Supported Living,P11,Adult Social Care & Health,ROYAL MENCAP SOCIETY,05/08/2016,415.44
Bath & North East Somerset Council,80614669,LL3,Supported Living,P11,Adult Social Care & Health,ROYAL MENCAP SOCIETY,05/08/2016,415.44
Bath & North East Somerset Council,80614669,LL3,Supported Living,P11,Adult Social Care & Health,ROYAL MENCAP SOCIETY,05/08/2016,415.44
Bath & North East Somerset Council,80614669,LL3,Supported Living,P11,Adult Social Care & Health,ROYAL MENCAP SOCIETY,05/08/2016,415.44
Bath & North East Somerset Council,80614629,LL3,Supported Living,P11,Adult Social Care & Health,ROYAL MENCAP SOCIETY,05/08/2016,493.85
Bath & North East Somerset Council,80614629,LL3,Supported Living,P11,Adult Social Care & Health,ROYAL MENCAP SOCIETY,05/08/2016,493.85
Bath & North East Somerset Council,80614629,LL3,Supported Living,P11,Adult Social Care & Health,ROYAL MENCAP SOCIETY,05/08/2016,493.85
Bath & North East Somerset Council,80614629,LL3,Supported Living,P11,Adult Social Care & Health,ROYAL MENCAP SOCIETY,05/08/2016,493.85
Bath & North East Somerset Council,80614597,LL3,Supported Living,P11,Adult Social Care & Health,ROYAL MENCAP SOCIETY,05/08/2016,502.31
Bath & North East Somerset Council,80614597,LL3,Supported Living,P11,Adult Social Care & Health,ROYAL MENCAP SOCIETY,05/08/2016,502.31
Bath & North East Somerset Council,80614597,LL3,Supported Living,P11,Adult Social Care & Health,ROYAL MENCAP SOCIETY,05/08/2016,502.31
Bath & North East Somerset Council,80614597,LL3,Supported Living,P11,Adult Social Care & Health,ROYAL MENCAP SOCIETY,05/08/2016,502.31
Bath & North East Somerset Council,80614651,LL3,Supported Living,P11,Adult Social Care & Health,ROYAL MENCAP SOCIETY,05/08/2016,521.18
Bath & North East Somerset Council,80614651,LL3,Supported Living,P11,Adult Social Care & Health,ROYAL MENCAP SOCIETY,05/08/2016,521.18
Bath & North East Somerset Council,80614651,LL3,Supported Living,P11,Adult Social Care & Health,ROYAL MENCAP SOCIETY,05/08/2016,521.18
Bath & North East Somerset Council,80614651,LL3,Supported Living,P11,Adult Social Care & Health,ROYAL MENCAP SOCIETY,05/08/2016,521.18
Bath & North East Somerset Council,80614598,LL3,Supported Living,P11,Adult Social Care & Health,ROYAL MENCAP SOCIETY,05/08/2016,541.36
Bath & North East Somerset Council,80614598,LL3,Supported Living,P11,Adult Social Care & Health,ROYAL MENCAP SOCIETY,05/08/2016,541.36
Bath & North East Somerset Council,80614598,LL3,Supported Living,P11,Adult Social Care & Health,ROYAL MENCAP SOCIETY,05/08/2016,541.36
Bath & North East Somerset Council,80614598,LL3,Supported Living,P11,Adult Social Care & Health,ROYAL MENCAP SOCIETY,05/08/2016,541.36
Bath & North East Somerset Council,80614598,LL3,Supported Living,P11,Adult Social Care & Health,ROYAL MENCAP SOCIETY,05/08/2016,541.36
Bath & North East Somerset Council,80614662,LL3,Supported Living,P11,Adult Social Care & Health,ROYAL MENCAP SOCIETY,05/08/2016,1155.83
Bath & North East Somerset Council,80614662,LL3,Supported Living,P11,Adult Social Care & Health,ROYAL MENCAP SOCIETY,05/08/2016,1155.83
Bath & North East Somerset Council,80614662,LL3,Supported Living,P11,Adult Social Care & Health,ROYAL MENCAP SOCIETY,05/08/2016,1155.83
Bath & North East Somerset Council,80614662,LL3,Supported Living,P11,Adult Social Care & Health,ROYAL MENCAP SOCIETY,05/08/2016,1155.83
Bath & North East Somerset Council,80614640,LL3,Supported Living,P11,Adult Social Care & Health,ROYAL MENCAP SOCIETY,05/08/2016,1323.71
Bath & North East Somerset Council,80614640,LL3,Supported Living,P11,Adult Social Care & Health,ROYAL MENCAP SOCIETY,05/08/2016,1323.71
Bath & North East Somerset Council,80614640,LL3,Supported Living,P11,Adult Social Care & Health,ROYAL MENCAP SOCIETY,05/08/2016,1323.71
Bath & North East Somerset Council,80614640,LL3,Supported Living,P11,Adult Social Care & Health,ROYAL MENCAP SOCIETY,05/08/2016,1323.71
Bath & North East Somerset Council,80614668,LL3,Supported Living,P11,Adult Social Care & Health,ROYAL MENCAP SOCIETY,05/08/2016,1527.71
Bath & North East Somerset Council,80614668,LL3,Supported Living,P11,Adult Social Care & Health,ROYAL MENCAP SOCIETY,05/08/2016,1527.71
Bath & North East Somerset Council,80614668,LL3,Supported Living,P11,Adult Social Care & Health,ROYAL MENCAP SOCIETY,05/08/2016,1527.71
Bath & North East Somerset Council,80614668,LL3,Supported Living,P11,Adult Social Care & Health,ROYAL MENCAP SOCIETY,05/08/2016,1527.71
Bath & North East Somerset Council,80614615,LL3,Supported Living,P11,Adult Social Care & Health,S.W.A.L.L.O.W. LTD,05/08/2016,41.3
Bath & North East Somerset Council,80614615,LL3,Supported Living,P11,Adult Social Care & Health,S.W.A.L.L.O.W. LTD,05/08/2016,41.3
Bath & North East Somerset Council,80614615,LL3,Supported Living,P11,Adult Social Care & Health,S.W.A.L.L.O.W. LTD,05/08/2016,41.3
Bath & North East Somerset Council,80614615,LL3,Supported Living,P11,Adult Social Care & Health,S.W.A.L.L.O.W. LTD,05/08/2016,41.3
Bath & North East Somerset Council,80614615,LL3,Supported Living,P11,Adult Social Care & Health,S.W.A.L.L.O.W. LTD,05/08/2016,107.8
Bath & North East Somerset Council,80614615,LL3,Supported Living,P11,Adult Social Care & Health,S.W.A.L.L.O.W. LTD,05/08/2016,108.9
Bath & North East Somerset Council,80614615,LL3,Supported Living,P11,Adult Social Care & Health,S.W.A.L.L.O.W. LTD,05/08/2016,108.9
Bath & North East Somerset Council,80614615,LL3,Supported Living,P11,Adult Social Care & Health,S.W.A.L.L.O.W. LTD,05/08/2016,108.9
Bath & North East Somerset Council,80614609,LL3,Supported Living,P11,Adult Social Care & Health,S.W.A.L.L.O.W. LTD,05/08/2016,141.36
Bath & North East Somerset Council,80614609,LL3,Supported Living,P11,Adult Social Care & Health,S.W.A.L.L.O.W. LTD,05/08/2016,141.36
Bath & North East Somerset Council,80614609,LL3,Supported Living,P11,Adult Social Care & Health,S.W.A.L.L.O.W. LTD,05/08/2016,141.36
Bath & North East Somerset Council,80614609,LL3,Supported Living,P11,Adult Social Care & Health,S.W.A.L.L.O.W. LTD,05/08/2016,141.36
Bath & North East Somerset Council,80614609,LL3,Supported Living,P11,Adult Social Care & Health,S.W.A.L.L.O.W. LTD,05/08/2016,148.69
Bath & North East Somerset Council,80614609,LL3,Supported Living,P11,Adult Social Care & Health,S.W.A.L.L.O.W. LTD,05/08/2016,148.69
Bath & North East Somerset Council,80614616,LL3,Supported Living,P11,Adult Social Care & Health,S.W.A.L.L.O.W. LTD,05/08/2016,432.91
Bath & North East Somerset Council,80614616,LL3,Supported Living,P11,Adult Social Care & Health,S.W.A.L.L.O.W. LTD,05/08/2016,432.91
Bath & North East Somerset Council,80614601,LL3,Supported Living,P11,Adult Social Care & Health,S.W.A.L.L.O.W. LTD,05/08/2016,450.39
Bath & North East Somerset Council,80614601,LL3,Supported Living,P11,Adult Social Care & Health,S.W.A.L.L.O.W. LTD,05/08/2016,450.39
Bath & North East Somerset Council,10818861,LJ4,Contracts,P01,Transport,1ST AVENUE TRAVEL,05/08/2016,854
Bath & North East Somerset Council,10818132,LH2,Advertising,P09,Homes & Planning,TMP (UK) LTD,05/08/2016,867.13
Bath & North East Somerset Council,80614557,LA7,Purchases for Resale,P13,Economic Development,I AM MADE LTD,05/08/2016,915
Bath & North East Somerset Council,10818849,3F7,PCB External Fees,P12,Children's Services,BBA ARCHITECTS,05/08/2016,975
Bath & North East Somerset Council,80614549,LA7,Purchases for Resale,P13,Economic Development,AHMAD TEA LIMITED,05/08/2016,999.12
Bath & North East Somerset Council,10819414,HK1,Highway Maintenance,P01,Transport,SAKNEL HIGHWAYS STRUCTURES CONTRACTOR,05/08/2016,1039.35
Bath & North East Somerset Council,80614568,LA7,Purchases for Resale,P13,Economic Development,CAMBROOKE FINE ART PUBL. LTD,05/08/2016,1082.06
Bath & North East Somerset Council,80614576,LA7,Purchases for Resale,P13,Economic Development,MACMILLAN DISTRIBUTION LTD,05/08/2016,1082.2
Bath & North East Somerset Council,10817638,LW9,Other Expenses,P10,Finance & Efficiency,TUSKER DIRECT LTD,05/08/2016,1085.46
Bath & North East Somerset Council,80614553,LA7,Purchases for Resale,P13,Economic Development,BRITISH FOSSILS,05/08/2016,1187.1
Bath & North East Somerset Council,10818822,HV4,Cleaning Materials,P12,Children's Services,PHS GROUP LTD,05/08/2016,1188.53
Bath & North East Somerset Council,80614671,LM8,Home Care,P11,Adult Social Care & Health,STAR HOME CARE SERVICES LIMITED,05/08/2016,524.03
Bath & North East Somerset Council,80614571,LA7,Purchases for Resale,P13,Economic Development,DROYT PRODUCTS LTD,05/08/2016,1241.04
Bath & North East Somerset Council,10818764,HA1,Responsive Maintenance,P10,Finance & Efficiency,FIREMARK LTD,05/08/2016,1276.3
Bath & North East Somerset Council,80614548,LA7,Purchases for Resale,P13,Economic Development,AHMAD TEA LIMITED,05/08/2016,1319.04
Bath & North East Somerset Council,80614567,LA7,Purchases for Resale,P13,Economic Development,F H SWIFT,05/08/2016,1357.2
Bath & North East Somerset Council,10818851,3F7,PCB External Fees,P12,Children's Services,BBA ARCHITECTS,05/08/2016,1410.5
Bath & North East Somerset Council,10818858,LJ4,Contracts,P01,Transport,SOMERBUS LTD,05/08/2016,1500
Bath & North East Somerset Council,80614582,LA7,Purchases for Resale,P13,Economic Development,TEMPLE ISLAND COLLECTIONS,05/08/2016,1591.8
Bath & North East Somerset Council,10818860,LJ4,Contracts,P01,Transport,CT COACHES,05/08/2016,1649.5
Bath & North East Somerset Council,10818863,LJ4,Contracts,P01,Transport,1ST AVENUE TRAVEL,05/08/2016,1807
Bath & North East Somerset Council,10818853,LN1,Telephones,P10,Finance & Efficiency,BRITISH TELECOM,05/08/2016,1843.26
Bath & North East Somerset Council,80614585,LA7,Purchases for Resale,P13,Economic Development,WESTAIR REPRODUCTIONS LIMITED,05/08/2016,1848.96
Bath & North East Somerset Council,80614566,LA7,Purchases for Resale,P13,Economic Development,F H SWIFT,05/08/2016,1851.36
Bath & North East Somerset Council,80614584,LA7,Purchases for Resale,P13,Economic Development,UNIVERSAL MAIL UNITED KINGDOM LTD,05/08/2016,1900
Bath & North East Somerset Council,10818863,LJ4,Contracts,P01,Transport,1ST AVENUE TRAVEL,05/08/2016,1974
Bath & North East Somerset Council,10818867,LJ4,Contracts,P01,Transport,CITISTAR LIMITED,05/08/2016,1995
Bath & North East Somerset Council,10818030,EC9,Other Employee Expenses,P04,Leader,SEARCY TANSLEY & CO LTD,05/08/2016,2358
Bath & North East Somerset Council,10818861,LJ4,Contracts,P01,Transport,1ST AVENUE TRAVEL,05/08/2016,2581
Bath & North East Somerset Council,10818743,LJ2,Legal Fees,P09,Homes & Planning,BERWIN LEIGHTON PAISNER,05/08/2016,2600
Bath & North East Somerset Council,80614587,LA7,Purchases for Resale,P13,Economic Development,YARTO EUROPE LTD,05/08/2016,2721.6
Bath & North East Somerset Council,80614583,LA7,Purchases for Resale,P13,Economic Development,UNEX DESIGNS LTD,05/08/2016,2824.13
Bath & North East Somerset Council,80614563,LA7,Purchases for Resale,P13,Economic Development,UNEX DESIGNS LTD,05/08/2016,2825
Bath & North East Somerset Council,10818847,LJ8,PCB External Fees,P13,Economic Development,CUSHMAN & WAKEFIELD LLP,05/08/2016,3000
Bath & North East Somerset Council,80614561,LA7,Purchases for Resale,P13,Economic Development,TEMPLE ISLAND COLLECTIONS,05/08/2016,3163.7
Bath & North East Somerset Council,10818645,KB1,Hire of Vehicles,P14,Community Services,SHB HIRE LTD,05/08/2016,3653.55
Bath & North East Somerset Council,10818266,3G1,Grants/Advances,P13,Economic Development,ECO RESIDENTIAL LTD,05/08/2016,4000
Bath & North East Somerset Council,10818852,3F7,PCB External Fees,P12,Children's Services,BBA ARCHITECTS,05/08/2016,4012.5
Bath & North East Somerset Council,10818857,LJ4,Contracts,P01,Transport,V CARS,05/08/2016,1866.04
Bath & North East Somerset Council,10818869,LJ4,Contracts,P01,Transport,SOMERSET TRANSPORT SERVICES LTD,05/08/2016,4836
Bath & North East Somerset Council,10818824,LK1,Fees,P10,Finance & Efficiency,GBS RE DBS POA,05/08/2016,5456
Bath & North East Somerset Council,10817638,LW9,Other Expenses,P10,Finance & Efficiency,TUSKER DIRECT LTD,05/08/2016,6970.95
Bath & North East Somerset Council,10818860,LJ4,Contracts,P01,Transport,CT COACHES,05/08/2016,7160
Bath & North East Somerset Council,10818859,LJ4,Contracts,P01,Transport,TOMMY JUKES,05/08/2016,8026.72
Bath & North East Somerset Council,10818863,LJ4,Contracts,P01,Transport,1ST AVENUE TRAVEL,05/08/2016,9951.72
Bath & North East Somerset Council,10818581,LJ1,Consultants Fees,P10,Finance & Efficiency,JONES LANG LASALLE LTD,05/08/2016,16191
Bath & North East Somerset Council,10818855,LJ2,Legal Fees,P09,Homes & Planning,BEVAN BRITTAN,05/08/2016,30215.57
Bath & North East Somerset Council,10818760,HK2,Street Lighting Maintenance,P01,Transport,SOUTHERN ELECTRIC CONTRACTING LTD,05/08/2016,182012.52
Bath & North East Somerset Council,80614966,LM3,Residential Care,P11,Adult Social Care & Health,6 THE AVENUE -KEYNSHAM MENCAP,08/08/2016,584
Bath & North East Somerset Council,80614966,LM3,Residential Care,P11,Adult Social Care & Health,6 THE AVENUE -KEYNSHAM MENCAP,08/08/2016,584
Bath & North East Somerset Council,80614966,LM3,Residential Care,P11,Adult Social Care & Health,6 THE AVENUE -KEYNSHAM MENCAP,08/08/2016,590
Bath & North East Somerset Council,80614966,LM3,Residential Care,P11,Adult Social Care & Health,6 THE AVENUE -KEYNSHAM MENCAP,08/08/2016,590
Bath & North East Somerset Council,80614966,LM3,Residential Care,P11,Adult Social Care & Health,6 THE AVENUE -KEYNSHAM MENCAP,08/08/2016,590
Bath & North East Somerset Council,80614966,LM3,Residential Care,P11,Adult Social Care & Health,6 THE AVENUE -KEYNSHAM MENCAP,08/08/2016,590
Bath & North East Somerset Council,80614966,LM3,Residential Care,P11,Adult Social Care & Health,6 THE AVENUE -KEYNSHAM MENCAP,08/08/2016,590
Bath & North East Somerset Council,80614966,LM3,Residential Care,P11,Adult Social Care & Health,6 THE AVENUE -KEYNSHAM MENCAP,08/08/2016,590
Bath & North East Somerset Council,80614966,LM3,Residential Care,P11,Adult Social Care & Health,6 THE AVENUE -KEYNSHAM MENCAP,08/08/2016,683
Bath & North East Somerset Council,80614966,LM3,Residential Care,P11,Adult Social Care & Health,6 THE AVENUE -KEYNSHAM MENCAP,08/08/2016,683
Bath & North East Somerset Council,80614966,LM3,Residential Care,P11,Adult Social Care & Health,6 THE AVENUE -KEYNSHAM MENCAP,08/08/2016,992
Bath & North East Somerset Council,80614966,LM3,Residential Care,P11,Adult Social Care & Health,6 THE AVENUE -KEYNSHAM MENCAP,08/08/2016,992
Bath & North East Somerset Council,80614966,LM3,Residential Care,P11,Adult Social Care & Health,6 THE AVENUE -KEYNSHAM MENCAP,08/08/2016,1221
Bath & North East Somerset Council,80614966,LM3,Residential Care,P11,Adult Social Care & Health,6 THE AVENUE -KEYNSHAM MENCAP,08/08/2016,1221
Bath & North East Somerset Council,80615376,LL8,Individualised Budget,P11,Adult Social Care & Health,REDACTED,08/08/2016,1484.5
Bath & North East Somerset Council,80615376,LL8,Individualised Budget,P11,Adult Social Care & Health,REDACTED,08/08/2016,1484.5
Bath & North East Somerset Council,80614854,LM3,Residential Care,P11,Adult Social Care & Health,ALEXANDRA HOMES (BRISTOL) LTD,08/08/2016,1837
Bath & North East Somerset Council,80614854,LM3,Residential Care,P11,Adult Social Care & Health,ALEXANDRA HOMES (BRISTOL) LTD,08/08/2016,1837
Bath & North East Somerset Council,80615339,LL8,Individualised Budget,P11,Adult Social Care & Health,REDACTED,08/08/2016,848.4
Bath & North East Somerset Council,80615339,LL8,Individualised Budget,P11,Adult Social Care & Health,REDACTED,08/08/2016,848.4
Bath & North East Somerset Council,80614917,LM6,Nursing Care,P11,Adult Social Care & Health,AMBLESIDE NURSING HOME,08/08/2016,795
Bath & North East Somerset Council,80614917,LM6,Nursing Care,P11,Adult Social Care & Health,AMBLESIDE NURSING HOME,08/08/2016,795
Bath & North East Somerset Council,80614917,LM6,Nursing Care,P11,Adult Social Care & Health,AMBLESIDE NURSING HOME,08/08/2016,809
Bath & North East Somerset Council,80614917,LM6,Nursing Care,P11,Adult Social Care & Health,AMBLESIDE NURSING HOME,08/08/2016,809
Bath & North East Somerset Council,80614979,LM3,Residential Care,P11,Adult Social Care & Health,ANCHOR TRUST,08/08/2016,0.54
Bath & North East Somerset Council,80614979,LM3,Residential Care,P11,Adult Social Care & Health,ANCHOR TRUST,08/08/2016,0.95
Bath & North East Somerset Council,80614979,LM3,Residential Care,P11,Adult Social Care & Health,ANCHOR TRUST,08/08/2016,0.95
Bath & North East Somerset Council,80614979,LM3,Residential Care,P11,Adult Social Care & Health,ANCHOR TRUST,08/08/2016,0.95
Bath & North East Somerset Council,80614979,LM3,Residential Care,P11,Adult Social Care & Health,ANCHOR TRUST,08/08/2016,0.95
Bath & North East Somerset Council,80614979,LM3,Residential Care,P11,Adult Social Care & Health,ANCHOR TRUST,08/08/2016,0.95
Bath & North East Somerset Council,80614979,LM3,Residential Care,P11,Adult Social Care & Health,ANCHOR TRUST,08/08/2016,0.95
Bath & North East Somerset Council,80614979,LM3,Residential Care,P11,Adult Social Care & Health,ANCHOR TRUST,08/08/2016,0.95
Bath & North East Somerset Council,80614979,LM3,Residential Care,P11,Adult Social Care & Health,ANCHOR TRUST,08/08/2016,0.95
Bath & North East Somerset Council,80614979,LM3,Residential Care,P11,Adult Social Care & Health,ANCHOR TRUST,08/08/2016,452
Bath & North East Somerset Council,80614979,LM3,Residential Care,P11,Adult Social Care & Health,ANCHOR TRUST,08/08/2016,452
Bath & North East Somerset Council,80614979,LM3,Residential Care,P11,Adult Social Care & Health,ANCHOR TRUST,08/08/2016,452
Bath & North East Somerset Council,80614979,LM3,Residential Care,P11,Adult Social Care & Health,ANCHOR TRUST,08/08/2016,452
Bath & North East Somerset Council,80614979,LM3,Residential Care,P11,Adult Social Care & Health,ANCHOR TRUST,08/08/2016,526
Bath & North East Somerset Council,80614979,LM3,Residential Care,P11,Adult Social Care & Health,ANCHOR TRUST,08/08/2016,526
Bath & North East Somerset Council,80614979,LM3,Residential Care,P11,Adult Social Care & Health,ANCHOR TRUST,08/08/2016,562
Bath & North East Somerset Council,80614979,LM3,Residential Care,P11,Adult Social Care & Health,ANCHOR TRUST,08/08/2016,562
Bath & North East Somerset Council,80614979,LM3,Residential Care,P11,Adult Social Care & Health,ANCHOR TRUST,08/08/2016,652.95
Bath & North East Somerset Council,80614979,LM3,Residential Care,P11,Adult Social Care & Health,ANCHOR TRUST,08/08/2016,652.95
Bath & North East Somerset Council,80614979,LM3,Residential Care,P11,Adult Social Care & Health,ANCHOR TRUST,08/08/2016,694
Bath & North East Somerset Council,80614979,LM3,Residential Care,P11,Adult Social Care & Health,ANCHOR TRUST,08/08/2016,694
Bath & North East Somerset Council,80614979,LM3,Residential Care,P11,Adult Social Care & Health,ANCHOR TRUST,08/08/2016,694
Bath & North East Somerset Council,80614979,LM3,Residential Care,P11,Adult Social Care & Health,ANCHOR TRUST,08/08/2016,694
Bath & North East Somerset Council,80614979,LM3,Residential Care,P11,Adult Social Care & Health,ANCHOR TRUST,08/08/2016,715
Bath & North East Somerset Council,80614979,LM3,Residential Care,P11,Adult Social Care & Health,ANCHOR TRUST,08/08/2016,715
Bath & North East Somerset Council,80614979,LM3,Residential Care,P11,Adult Social Care & Health,ANCHOR TRUST,08/08/2016,729
Bath & North East Somerset Council,80614979,LM3,Residential Care,P11,Adult Social Care & Health,ANCHOR TRUST,08/08/2016,729
Bath & North East Somerset Council,80614979,LM3,Residential Care,P11,Adult Social Care & Health,ANCHOR TRUST,08/08/2016,758
Bath & North East Somerset Council,80614979,LM3,Residential Care,P11,Adult Social Care & Health,ANCHOR TRUST,08/08/2016,758
Bath & North East Somerset Council,80614979,LM3,Residential Care,P11,Adult Social Care & Health,ANCHOR TRUST,08/08/2016,758
Bath & North East Somerset Council,80614979,LM3,Residential Care,P11,Adult Social Care & Health,ANCHOR TRUST,08/08/2016,758
Bath & North East Somerset Council,80614979,LM3,Residential Care,P11,Adult Social Care & Health,ANCHOR TRUST,08/08/2016,803
Bath & North East Somerset Council,80614979,LM3,Residential Care,P11,Adult Social Care & Health,ANCHOR TRUST,08/08/2016,803
Bath & North East Somerset Council,80614935,LM3,Residential Care,P11,Adult Social Care & Health,ANCHOR TRUST (PRIOR BANK),08/08/2016,576
Bath & North East Somerset Council,80614935,LM3,Residential Care,P11,Adult Social Care & Health,ANCHOR TRUST (PRIOR BANK),08/08/2016,576
Bath & North East Somerset Council,80615265,LL8,Individualised Budget,P11,Adult Social Care & Health,REDACTED,08/08/2016,349.97
Bath & North East Somerset Council,80615265,LL8,Individualised Budget,P11,Adult Social Care & Health,REDACTED,08/08/2016,349.97
Bath & North East Somerset Council,80615174,LL4,Direct Payments,P11,Adult Social Care & Health,REDACTED,08/08/2016,200
Bath & North East Somerset Council,80615174,LL4,Direct Payments,P11,Adult Social Care & Health,REDACTED,08/08/2016,200
Bath & North East Somerset Council,80615174,LL4,Direct Payments,P11,Adult Social Care & Health,REDACTED,08/08/2016,200
Bath & North East Somerset Council,80615174,LL4,Direct Payments,P11,Adult Social Care & Health,REDACTED,08/08/2016,200
Bath & North East Somerset Council,80615174,LL4,Direct Payments,P11,Adult Social Care & Health,REDACTED,08/08/2016,200
Bath & North East Somerset Council,80615174,LL4,Direct Payments,P11,Adult Social Care & Health,REDACTED,08/08/2016,2465.35
Bath & North East Somerset Council,80615174,LL4,Direct Payments,P11,Adult Social Care & Health,REDACTED,08/08/2016,2465.35
Bath & North East Somerset Council,80615380,LL3,Supported Living,P11,Adult Social Care & Health,ARCH CARE SERVICES,08/08/2016,18
Bath & North East Somerset Council,80615380,LL3,Supported Living,P11,Adult Social Care & Health,ARCH CARE SERVICES,08/08/2016,18
Bath & North East Somerset Council,80615380,LL3,Supported Living,P11,Adult Social Care & Health,ARCH CARE SERVICES,08/08/2016,36
Bath & North East Somerset Council,80615380,LL3,Supported Living,P11,Adult Social Care & Health,ARCH CARE SERVICES,08/08/2016,36
Bath & North East Somerset Council,80615380,LL3,Supported Living,P11,Adult Social Care & Health,ARCH CARE SERVICES,08/08/2016,72
Bath & North East Somerset Council,80615380,LL3,Supported Living,P11,Adult Social Care & Health,ARCH CARE SERVICES,08/08/2016,72
Bath & North East Somerset Council,80615380,LL3,Supported Living,P11,Adult Social Care & Health,ARCH CARE SERVICES,08/08/2016,81
Bath & North East Somerset Council,80615380,LL3,Supported Living,P11,Adult Social Care & Health,ARCH CARE SERVICES,08/08/2016,81
Bath & North East Somerset Council,80615380,LL3,Supported Living,P11,Adult Social Care & Health,ARCH CARE SERVICES,08/08/2016,90
Bath & North East Somerset Council,80615380,LL3,Supported Living,P11,Adult Social Care & Health,ARCH CARE SERVICES,08/08/2016,90
Bath & North East Somerset Council,80615380,LL3,Supported Living,P11,Adult Social Care & Health,ARCH CARE SERVICES,08/08/2016,90
Bath & North East Somerset Council,80615380,LL3,Supported Living,P11,Adult Social Care & Health,ARCH CARE SERVICES,08/08/2016,90
Bath & North East Somerset Council,80615380,LL3,Supported Living,P11,Adult Social Care & Health,ARCH CARE SERVICES,08/08/2016,90
Bath & North East Somerset Council,80615380,LL3,Supported Living,P11,Adult Social Care & Health,ARCH CARE SERVICES,08/08/2016,90
Bath & North East Somerset Council,80615380,LL3,Supported Living,P11,Adult Social Care & Health,ARCH CARE SERVICES,08/08/2016,90
Bath & North East Somerset Council,80615380,LL3,Supported Living,P11,Adult Social Care & Health,ARCH CARE SERVICES,08/08/2016,90
Bath & North East Somerset Council,80615380,LL3,Supported Living,P11,Adult Social Care & Health,ARCH CARE SERVICES,08/08/2016,90
Bath & North East Somerset Council,80615380,LL3,Supported Living,P11,Adult Social Care & Health,ARCH CARE SERVICES,08/08/2016,135
Bath & North East Somerset Council,80615380,LL3,Supported Living,P11,Adult Social Care & Health,ARCH CARE SERVICES,08/08/2016,135
Bath & North East Somerset Council,80615380,LL3,Supported Living,P11,Adult Social Care & Health,ARCH CARE SERVICES,08/08/2016,180
Bath & North East Somerset Council,80615380,LL3,Supported Living,P11,Adult Social Care & Health,ARCH CARE SERVICES,08/08/2016,180
Bath & North East Somerset Council,80615380,LL3,Supported Living,P11,Adult Social Care & Health,ARCH CARE SERVICES,08/08/2016,252.5
Bath & North East Somerset Council,80615380,LL3,Supported Living,P11,Adult Social Care & Health,ARCH CARE SERVICES,08/08/2016,252.5
Bath & North East Somerset Council,80615380,LL3,Supported Living,P11,Adult Social Care & Health,ARCH CARE SERVICES,08/08/2016,270
Bath & North East Somerset Council,80615380,LL3,Supported Living,P11,Adult Social Care & Health,ARCH CARE SERVICES,08/08/2016,270
Bath & North East Somerset Council,80615380,LL3,Supported Living,P11,Adult Social Care & Health,ARCH CARE SERVICES,08/08/2016,346.43
Bath & North East Somerset Council,80615380,LL3,Supported Living,P11,Adult Social Care & Health,ARCH CARE SERVICES,08/08/2016,346.43
Bath & North East Somerset Council,80615380,LL3,Supported Living,P11,Adult Social Care & Health,ARCH CARE SERVICES,08/08/2016,397
Bath & North East Somerset Council,80615380,LL3,Supported Living,P11,Adult Social Care & Health,ARCH CARE SERVICES,08/08/2016,397
Bath & North East Somerset Council,80615077,LM6,Nursing Care,P11,Adult Social Care & Health,ARCH CARE SERVICES,08/08/2016,427
Bath & North East Somerset Council,80615077,LM6,Nursing Care,P11,Adult Social Care & Health,ARCH CARE SERVICES,08/08/2016,427
Bath & North East Somerset Council,80615380,LL3,Supported Living,P11,Adult Social Care & Health,ARCH CARE SERVICES,08/08/2016,430
Bath & North East Somerset Council,80615380,LL3,Supported Living,P11,Adult Social Care & Health,ARCH CARE SERVICES,08/08/2016,430
Bath & North East Somerset Council,80615380,LL3,Supported Living,P11,Adult Social Care & Health,ARCH CARE SERVICES,08/08/2016,430
Bath & North East Somerset Council,80615380,LL3,Supported Living,P11,Adult Social Care & Health,ARCH CARE SERVICES,08/08/2016,430
Bath & North East Somerset Council,80615380,LL3,Supported Living,P11,Adult Social Care & Health,ARCH CARE SERVICES,08/08/2016,430
Bath & North East Somerset Council,80615380,LL3,Supported Living,P11,Adult Social Care & Health,ARCH CARE SERVICES,08/08/2016,430
Bath & North East Somerset Council,80615380,LL3,Supported Living,P11,Adult Social Care & Health,ARCH CARE SERVICES,08/08/2016,430
Bath & North East Somerset Council,80615380,LL3,Supported Living,P11,Adult Social Care & Health,ARCH CARE SERVICES,08/08/2016,430
Bath & North East Somerset Council,80615380,LL3,Supported Living,P11,Adult Social Care & Health,ARCH CARE SERVICES,08/08/2016,450
Bath & North East Somerset Council,80615380,LL3,Supported Living,P11,Adult Social Care & Health,ARCH CARE SERVICES,08/08/2016,450
Bath & North East Somerset Council,80615380,LL3,Supported Living,P11,Adult Social Care & Health,ARCH CARE SERVICES,08/08/2016,515
Bath & North East Somerset Council,80615380,LL3,Supported Living,P11,Adult Social Care & Health,ARCH CARE SERVICES,08/08/2016,515
Bath & North East Somerset Council,80615380,LL3,Supported Living,P11,Adult Social Care & Health,ARCH CARE SERVICES,08/08/2016,550
Bath & North East Somerset Council,80615380,LL3,Supported Living,P11,Adult Social Care & Health,ARCH CARE SERVICES,08/08/2016,550
Bath & North East Somerset Council,80614923,YF2,Fees & Charges,P11,Adult Social Care & Health,ARTI CARE HOMES (SOUTHWEST) LTD,08/08/2016,202.36
Bath & North East Somerset Council,80614923,YF2,Fees & Charges,P11,Adult Social Care & Health,ARTI CARE HOMES (SOUTHWEST) LTD,08/08/2016,202.36
Bath & North East Somerset Council,80614923,YF2,Fees & Charges,P11,Adult Social Care & Health,ARTI CARE HOMES (SOUTHWEST) LTD,08/08/2016,202.36
Bath & North East Somerset Council,80614923,YF2,Fees & Charges,P11,Adult Social Care & Health,ARTI CARE HOMES (SOUTHWEST) LTD,08/08/2016,202.36
Bath & North East Somerset Council,80614923,YF2,Fees & Charges,P11,Adult Social Care & Health,ARTI CARE HOMES (SOUTHWEST) LTD,08/08/2016,202.36
Bath & North East Somerset Council,80614923,YF2,Fees & Charges,P11,Adult Social Care & Health,ARTI CARE HOMES (SOUTHWEST) LTD,08/08/2016,202.36
Bath & North East Somerset Council,80614923,YF2,Fees & Charges,P11,Adult Social Care & Health,ARTI CARE HOMES (SOUTHWEST) LTD,08/08/2016,202.36
Bath & North East Somerset Council,80614923,YF2,Fees & Charges,P11,Adult Social Care & Health,ARTI CARE HOMES (SOUTHWEST) LTD,08/08/2016,202.36
Bath & North East Somerset Council,80614923,YF2,Fees & Charges,P11,Adult Social Care & Health,ARTI CARE HOMES (SOUTHWEST) LTD,08/08/2016,202.36
Bath & North East Somerset Council,80614923,YF2,Fees & Charges,P11,Adult Social Care & Health,ARTI CARE HOMES (SOUTHWEST) LTD,08/08/2016,202.36
Bath & North East Somerset Council,80614923,YF2,Fees & Charges,P11,Adult Social Care & Health,ARTI CARE HOMES (SOUTHWEST) LTD,08/08/2016,202.36
Bath & North East Somerset Council,80614923,YF2,Fees & Charges,P11,Adult Social Care & Health,ARTI CARE HOMES (SOUTHWEST) LTD,08/08/2016,202.36
Bath & North East Somerset Council,80614923,YF2,Fees & Charges,P11,Adult Social Care & Health,ARTI CARE HOMES (SOUTHWEST) LTD,08/08/2016,202.36
Bath & North East Somerset Council,80614923,YF2,Fees & Charges,P11,Adult Social Care & Health,ARTI CARE HOMES (SOUTHWEST) LTD,08/08/2016,202.36
Bath & North East Somerset Council,80614923,YF2,Fees & Charges,P11,Adult Social Care & Health,ARTI CARE HOMES (SOUTHWEST) LTD,08/08/2016,202.36
Bath & North East Somerset Council,80614923,YF2,Fees & Charges,P11,Adult Social Care & Health,ARTI CARE HOMES (SOUTHWEST) LTD,08/08/2016,202.36
Bath & North East Somerset Council,80614923,YF2,Fees & Charges,P11,Adult Social Care & Health,ARTI CARE HOMES (SOUTHWEST) LTD,08/08/2016,217.69
Bath & North East Somerset Council,80614923,YF2,Fees & Charges,P11,Adult Social Care & Health,ARTI CARE HOMES (SOUTHWEST) LTD,08/08/2016,217.69
Bath & North East Somerset Council,80614923,YF2,Fees & Charges,P11,Adult Social Care & Health,ARTI CARE HOMES (SOUTHWEST) LTD,08/08/2016,217.69
Bath & North East Somerset Council,80614923,YF2,Fees & Charges,P11,Adult Social Care & Health,ARTI CARE HOMES (SOUTHWEST) LTD,08/08/2016,217.69
Bath & North East Somerset Council,80614923,YF2,Fees & Charges,P11,Adult Social Care & Health,ARTI CARE HOMES (SOUTHWEST) LTD,08/08/2016,217.69
Bath & North East Somerset Council,80614923,YF2,Fees & Charges,P11,Adult Social Care & Health,ARTI CARE HOMES (SOUTHWEST) LTD,08/08/2016,217.69
Bath & North East Somerset Council,80614923,YF2,Fees & Charges,P11,Adult Social Care & Health,ARTI CARE HOMES (SOUTHWEST) LTD,08/08/2016,217.69
Bath & North East Somerset Council,80614923,YF2,Fees & Charges,P11,Adult Social Care & Health,ARTI CARE HOMES (SOUTHWEST) LTD,08/08/2016,217.69
Bath & North East Somerset Council,80614923,YF2,Fees & Charges,P11,Adult Social Care & Health,ARTI CARE HOMES (SOUTHWEST) LTD,08/08/2016,217.69
Bath & North East Somerset Council,80614923,YF2,Fees & Charges,P11,Adult Social Care & Health,ARTI CARE HOMES (SOUTHWEST) LTD,08/08/2016,217.69
Bath & North East Somerset Council,80614923,YF2,Fees & Charges,P11,Adult Social Care & Health,ARTI CARE HOMES (SOUTHWEST) LTD,08/08/2016,217.69
Bath & North East Somerset Council,80614923,YF2,Fees & Charges,P11,Adult Social Care & Health,ARTI CARE HOMES (SOUTHWEST) LTD,08/08/2016,217.69
Bath & North East Somerset Council,80614923,YF2,Fees & Charges,P11,Adult Social Care & Health,ARTI CARE HOMES (SOUTHWEST) LTD,08/08/2016,217.69
Bath & North East Somerset Council,80614923,YF2,Fees & Charges,P11,Adult Social Care & Health,ARTI CARE HOMES (SOUTHWEST) LTD,08/08/2016,217.69
Bath & North East Somerset Council,80614923,YF2,Fees & Charges,P11,Adult Social Care & Health,ARTI CARE HOMES (SOUTHWEST) LTD,08/08/2016,217.69
Bath & North East Somerset Council,80614923,YF2,Fees & Charges,P11,Adult Social Care & Health,ARTI CARE HOMES (SOUTHWEST) LTD,08/08/2016,217.69
Bath & North East Somerset Council,80614923,LM3,Residential Care,P11,Adult Social Care & Health,ARTI CARE HOMES (SOUTHWEST) LTD,08/08/2016,452
Bath & North East Somerset Council,80614923,LM3,Residential Care,P11,Adult Social Care & Health,ARTI CARE HOMES (SOUTHWEST) LTD,08/08/2016,452
Bath & North East Somerset Council,80614923,LM3,Residential Care,P11,Adult Social Care & Health,ARTI CARE HOMES (SOUTHWEST) LTD,08/08/2016,452
Bath & North East Somerset Council,80614923,LM3,Residential Care,P11,Adult Social Care & Health,ARTI CARE HOMES (SOUTHWEST) LTD,08/08/2016,452
Bath & North East Somerset Council,80614923,LM3,Residential Care,P11,Adult Social Care & Health,ARTI CARE HOMES (SOUTHWEST) LTD,08/08/2016,452
Bath & North East Somerset Council,80614923,LM3,Residential Care,P11,Adult Social Care & Health,ARTI CARE HOMES (SOUTHWEST) LTD,08/08/2016,452
Bath & North East Somerset Council,80614923,LM3,Residential Care,P11,Adult Social Care & Health,ARTI CARE HOMES (SOUTHWEST) LTD,08/08/2016,452
Bath & North East Somerset Council,80614923,LM3,Residential Care,P11,Adult Social Care & Health,ARTI CARE HOMES (SOUTHWEST) LTD,08/08/2016,452
Bath & North East Somerset Council,80614923,LM3,Residential Care,P11,Adult Social Care & Health,ARTI CARE HOMES (SOUTHWEST) LTD,08/08/2016,452
Bath & North East Somerset Council,80614923,LM3,Residential Care,P11,Adult Social Care & Health,ARTI CARE HOMES (SOUTHWEST) LTD,08/08/2016,452
Bath & North East Somerset Council,80614923,LM3,Residential Care,P11,Adult Social Care & Health,ARTI CARE HOMES (SOUTHWEST) LTD,08/08/2016,452
Bath & North East Somerset Council,80614923,LM3,Residential Care,P11,Adult Social Care & Health,ARTI CARE HOMES (SOUTHWEST) LTD,08/08/2016,452
Bath & North East Somerset Council,80614923,LM3,Residential Care,P11,Adult Social Care & Health,ARTI CARE HOMES (SOUTHWEST) LTD,08/08/2016,452
Bath & North East Somerset Council,80614923,LM3,Residential Care,P11,Adult Social Care & Health,ARTI CARE HOMES (SOUTHWEST) LTD,08/08/2016,452
Bath & North East Somerset Council,80614923,LM3,Residential Care,P11,Adult Social Care & Health,ARTI CARE HOMES (SOUTHWEST) LTD,08/08/2016,452
Bath & North East Somerset Council,80614923,LM3,Residential Care,P11,Adult Social Care & Health,ARTI CARE HOMES (SOUTHWEST) LTD,08/08/2016,452
Bath & North East Somerset Council,80614923,LM3,Residential Care,P11,Adult Social Care & Health,ARTI CARE HOMES (SOUTHWEST) LTD,08/08/2016,496
Bath & North East Somerset Council,80614923,LM3,Residential Care,P11,Adult Social Care & Health,ARTI CARE HOMES (SOUTHWEST) LTD,08/08/2016,496
Bath & North East Somerset Council,80614923,LM3,Residential Care,P11,Adult Social Care & Health,ARTI CARE HOMES (SOUTHWEST) LTD,08/08/2016,526
Bath & North East Somerset Council,80614923,LM3,Residential Care,P11,Adult Social Care & Health,ARTI CARE HOMES (SOUTHWEST) LTD,08/08/2016,526
Bath & North East Somerset Council,80614923,LM3,Residential Care,P11,Adult Social Care & Health,ARTI CARE HOMES (SOUTHWEST) LTD,08/08/2016,528
Bath & North East Somerset Council,80614923,LM3,Residential Care,P11,Adult Social Care & Health,ARTI CARE HOMES (SOUTHWEST) LTD,08/08/2016,528
Bath & North East Somerset Council,80614849,LM3,Residential Care,P11,Adult Social Care & Health,ARTI SERVICES LTD T/A THE MANOR FARM HOUSE,08/08/2016,452
Bath & North East Somerset Council,80614849,LM3,Residential Care,P11,Adult Social Care & Health,ARTI SERVICES LTD T/A THE MANOR FARM HOUSE,08/08/2016,452
Bath & North East Somerset Council,80614849,LM3,Residential Care,P11,Adult Social Care & Health,ARTI SERVICES LTD T/A THE MANOR FARM HOUSE,08/08/2016,452
Bath & North East Somerset Council,80614849,LM3,Residential Care,P11,Adult Social Care & Health,ARTI SERVICES LTD T/A THE MANOR FARM HOUSE,08/08/2016,452
Bath & North East Somerset Council,80614849,LM3,Residential Care,P11,Adult Social Care & Health,ARTI SERVICES LTD T/A THE MANOR FARM HOUSE,08/08/2016,452
Bath & North East Somerset Council,80614849,LM3,Residential Care,P11,Adult Social Care & Health,ARTI SERVICES LTD T/A THE MANOR FARM HOUSE,08/08/2016,452
Bath & North East Somerset Council,80614849,LM3,Residential Care,P11,Adult Social Care & Health,ARTI SERVICES LTD T/A THE MANOR FARM HOUSE,08/08/2016,452
Bath & North East Somerset Council,80614849,LM3,Residential Care,P11,Adult Social Care & Health,ARTI SERVICES LTD T/A THE MANOR FARM HOUSE,08/08/2016,452
Bath & North East Somerset Council,80614849,LM3,Residential Care,P11,Adult Social Care & Health,ARTI SERVICES LTD T/A THE MANOR FARM HOUSE,08/08/2016,452
Bath & North East Somerset Council,80614849,LM3,Residential Care,P11,Adult Social Care & Health,ARTI SERVICES LTD T/A THE MANOR FARM HOUSE,08/08/2016,452
Bath & North East Somerset Council,80614849,LM3,Residential Care,P11,Adult Social Care & Health,ARTI SERVICES LTD T/A THE MANOR FARM HOUSE,08/08/2016,496
Bath & North East Somerset Council,80614849,LM3,Residential Care,P11,Adult Social Care & Health,ARTI SERVICES LTD T/A THE MANOR FARM HOUSE,08/08/2016,496
Bath & North East Somerset Council,80614849,LM3,Residential Care,P11,Adult Social Care & Health,ARTI SERVICES LTD T/A THE MANOR FARM HOUSE,08/08/2016,496
Bath & North East Somerset Council,80614849,LM3,Residential Care,P11,Adult Social Care & Health,ARTI SERVICES LTD T/A THE MANOR FARM HOUSE,08/08/2016,496
Bath & North East Somerset Council,80614849,LM3,Residential Care,P11,Adult Social Care & Health,ARTI SERVICES LTD T/A THE MANOR FARM HOUSE,08/08/2016,496
Bath & North East Somerset Council,80614849,LM3,Residential Care,P11,Adult Social Care & Health,ARTI SERVICES LTD T/A THE MANOR FARM HOUSE,08/08/2016,496
Bath & North East Somerset Council,80614849,LM3,Residential Care,P11,Adult Social Care & Health,ARTI SERVICES LTD T/A THE MANOR FARM HOUSE,08/08/2016,569
Bath & North East Somerset Council,80614849,LM3,Residential Care,P11,Adult Social Care & Health,ARTI SERVICES LTD T/A THE MANOR FARM HOUSE,08/08/2016,569
Bath & North East Somerset Council,80614981,LM3,Residential Care,P11,Adult Social Care & Health,ASPECTS & MILESTONES TRUST,08/08/2016,861
Bath & North East Somerset Council,80614981,LM3,Residential Care,P11,Adult Social Care & Health,ASPECTS & MILESTONES TRUST,08/08/2016,861
Bath & North East Somerset Council,80614983,LM3,Residential Care,P11,Adult Social Care & Health,ASPECTS & MILESTONES TRUST,08/08/2016,960
Bath & North East Somerset Council,80614983,LM3,Residential Care,P11,Adult Social Care & Health,ASPECTS & MILESTONES TRUST,08/08/2016,960
Bath & North East Somerset Council,80614980,LM3,Residential Care,P11,Adult Social Care & Health,ASPECTS & MILESTONES TRUST,08/08/2016,1021
Bath & North East Somerset Council,80614980,LM3,Residential Care,P11,Adult Social Care & Health,ASPECTS & MILESTONES TRUST,08/08/2016,1021
Bath & North East Somerset Council,80614982,LM3,Residential Care,P11,Adult Social Care & Health,ASPECTS & MILESTONES TRUST,08/08/2016,2014
Bath & North East Somerset Council,80614982,LM3,Residential Care,P11,Adult Social Care & Health,ASPECTS & MILESTONES TRUST,08/08/2016,2014
Bath & North East Somerset Council,80614984,LM3,Residential Care,P11,Adult Social Care & Health,ASPECTS & MILESTONES TRUST,08/08/2016,2560
Bath & North East Somerset Council,80614984,LM3,Residential Care,P11,Adult Social Care & Health,ASPECTS & MILESTONES TRUST,08/08/2016,2560
Bath & North East Somerset Council,80615013,LM3,Residential Care,P11,Adult Social Care & Health,AUTISM SPECIALISED CARE HOMES LTD,08/08/2016,1311
Bath & North East Somerset Council,80615013,LM3,Residential Care,P11,Adult Social Care & Health,AUTISM SPECIALISED CARE HOMES LTD,08/08/2016,1311
Bath & North East Somerset Council,80614868,LM3,Residential Care,P11,Adult Social Care & Health,BAMFIELD LODGE LIMITED,08/08/2016,496
Bath & North East Somerset Council,80614868,LM3,Residential Care,P11,Adult Social Care & Health,BAMFIELD LODGE LIMITED,08/08/2016,496
Bath & North East Somerset Council,80615046,LM6,Nursing Care,P11,Adult Social Care & Health,BARCHESTER HEALTH CARE,08/08/2016,18.96
Bath & North East Somerset Council,80615046,LM6,Nursing Care,P11,Adult Social Care & Health,BARCHESTER HEALTH CARE,08/08/2016,18.96
Bath & North East Somerset Council,80615046,LM6,Nursing Care,P11,Adult Social Care & Health,BARCHESTER HEALTH CARE,08/08/2016,18.96
Bath & North East Somerset Council,80615046,LM6,Nursing Care,P11,Adult Social Care & Health,BARCHESTER HEALTH CARE,08/08/2016,18.96
Bath & North East Somerset Council,80615046,LM6,Nursing Care,P11,Adult Social Care & Health,BARCHESTER HEALTH CARE,08/08/2016,18.96
Bath & North East Somerset Council,80615046,LM6,Nursing Care,P11,Adult Social Care & Health,BARCHESTER HEALTH CARE,08/08/2016,18.96
Bath & North East Somerset Council,80615046,LM6,Nursing Care,P11,Adult Social Care & Health,BARCHESTER HEALTH CARE,08/08/2016,18.96
Bath & North East Somerset Council,80615046,LM6,Nursing Care,P11,Adult Social Care & Health,BARCHESTER HEALTH CARE,08/08/2016,18.96
Bath & North East Somerset Council,80615046,LM6,Nursing Care,P11,Adult Social Care & Health,BARCHESTER HEALTH CARE,08/08/2016,18.96
Bath & North East Somerset Council,80615046,LM6,Nursing Care,P11,Adult Social Care & Health,BARCHESTER HEALTH CARE,08/08/2016,18.96
Bath & North East Somerset Council,80615046,LM6,Nursing Care,P11,Adult Social Care & Health,BARCHESTER HEALTH CARE,08/08/2016,18.96
Bath & North East Somerset Council,80615046,LM6,Nursing Care,P11,Adult Social Care & Health,BARCHESTER HEALTH CARE,08/08/2016,18.96
Bath & North East Somerset Council,80615046,LM6,Nursing Care,P11,Adult Social Care & Health,BARCHESTER HEALTH CARE,08/08/2016,18.96
Bath & North East Somerset Council,80615046,LM6,Nursing Care,P11,Adult Social Care & Health,BARCHESTER HEALTH CARE,08/08/2016,18.96
Bath & North East Somerset Council,80615046,LM6,Nursing Care,P11,Adult Social Care & Health,BARCHESTER HEALTH CARE,08/08/2016,18.96
Bath & North East Somerset Council,80615046,LM6,Nursing Care,P11,Adult Social Care & Health,BARCHESTER HEALTH CARE,08/08/2016,18.96
Bath & North East Somerset Council,80615046,LM6,Nursing Care,P11,Adult Social Care & Health,BARCHESTER HEALTH CARE,08/08/2016,18.96
Bath & North East Somerset Council,80615046,LM6,Nursing Care,P11,Adult Social Care & Health,BARCHESTER HEALTH CARE,08/08/2016,18.96
Bath & North East Somerset Council,80615046,LM6,Nursing Care,P11,Adult Social Care & Health,BARCHESTER HEALTH CARE,08/08/2016,18.96
Bath & North East Somerset Council,80615046,LM6,Nursing Care,P11,Adult Social Care & Health,BARCHESTER HEALTH CARE,08/08/2016,18.96
Bath & North East Somerset Council,80615046,LM6,Nursing Care,P11,Adult Social Care & Health,BARCHESTER HEALTH CARE,08/08/2016,18.96
Bath & North East Somerset Council,80615046,LM6,Nursing Care,P11,Adult Social Care & Health,BARCHESTER HEALTH CARE,08/08/2016,18.96
Bath & North East Somerset Council,80615046,LM6,Nursing Care,P11,Adult Social Care & Health,BARCHESTER HEALTH CARE,08/08/2016,18.96
Bath & North East Somerset Council,80615046,LM6,Nursing Care,P11,Adult Social Care & Health,BARCHESTER HEALTH CARE,08/08/2016,18.96
Bath & North East Somerset Council,80615046,LM6,Nursing Care,P11,Adult Social Care & Health,BARCHESTER HEALTH CARE,08/08/2016,18.96
Bath & North East Somerset Council,80615046,LM6,Nursing Care,P11,Adult Social Care & Health,BARCHESTER HEALTH CARE,08/08/2016,25.29
Bath & North East Somerset Council,80615046,LM6,Nursing Care,P11,Adult Social Care & Health,BARCHESTER HEALTH CARE,08/08/2016,25.29
Bath & North East Somerset Council,80615046,LM6,Nursing Care,P11,Adult Social Care & Health,BARCHESTER HEALTH CARE,08/08/2016,25.29
Bath & North East Somerset Council,80615046,LM6,Nursing Care,P11,Adult Social Care & Health,BARCHESTER HEALTH CARE,08/08/2016,37.93
Bath & North East Somerset Council,80615046,LM6,Nursing Care,P11,Adult Social Care & Health,BARCHESTER HEALTH CARE,08/08/2016,37.93
Bath & North East Somerset Council,80615046,LM6,Nursing Care,P11,Adult Social Care & Health,BARCHESTER HEALTH CARE,08/08/2016,37.93
Bath & North East Somerset Council,80615046,LM6,Nursing Care,P11,Adult Social Care & Health,BARCHESTER HEALTH CARE,08/08/2016,44.25
Bath & North East Somerset Council,80615046,LM6,Nursing Care,P11,Adult Social Care & Health,BARCHESTER HEALTH CARE,08/08/2016,44.25
Bath & North East Somerset Council,80615046,LM6,Nursing Care,P11,Adult Social Care & Health,BARCHESTER HEALTH CARE,08/08/2016,44.25
Bath & North East Somerset Council,80615046,LM6,Nursing Care,P11,Adult Social Care & Health,BARCHESTER HEALTH CARE,08/08/2016,44.25
Bath & North East Somerset Council,80615046,LM6,Nursing Care,P11,Adult Social Care & Health,BARCHESTER HEALTH CARE,08/08/2016,44.25
Bath & North East Somerset Council,80615046,LM6,Nursing Care,P11,Adult Social Care & Health,BARCHESTER HEALTH CARE,08/08/2016,44.25
Bath & North East Somerset Council,80615046,LM6,Nursing Care,P11,Adult Social Care & Health,BARCHESTER HEALTH CARE,08/08/2016,44.25
Bath & North East Somerset Council,80615046,LM6,Nursing Care,P11,Adult Social Care & Health,BARCHESTER HEALTH CARE,08/08/2016,44.25
Bath & North East Somerset Council,80615046,LM6,Nursing Care,P11,Adult Social Care & Health,BARCHESTER HEALTH CARE,08/08/2016,44.25
Bath & North East Somerset Council,80615046,LM6,Nursing Care,P11,Adult Social Care & Health,BARCHESTER HEALTH CARE,08/08/2016,44.25
Bath & North East Somerset Council,80615046,LM6,Nursing Care,P11,Adult Social Care & Health,BARCHESTER HEALTH CARE,08/08/2016,44.25
Bath & North East Somerset Council,80615046,LM6,Nursing Care,P11,Adult Social Care & Health,BARCHESTER HEALTH CARE,08/08/2016,44.25
Bath & North East Somerset Council,80615046,LM6,Nursing Care,P11,Adult Social Care & Health,BARCHESTER HEALTH CARE,08/08/2016,44.25
Bath & North East Somerset Council,80615046,LM6,Nursing Care,P11,Adult Social Care & Health,BARCHESTER HEALTH CARE,08/08/2016,44.25
Bath & North East Somerset Council,80615046,LM6,Nursing Care,P11,Adult Social Care & Health,BARCHESTER HEALTH CARE,08/08/2016,44.25
Bath & North East Somerset Council,80615046,LM6,Nursing Care,P11,Adult Social Care & Health,BARCHESTER HEALTH CARE,08/08/2016,44.25
Bath & North East Somerset Council,80615046,LM6,Nursing Care,P11,Adult Social Care & Health,BARCHESTER HEALTH CARE,08/08/2016,44.25
Bath & North East Somerset Council,80615046,LM6,Nursing Care,P11,Adult Social Care & Health,BARCHESTER HEALTH CARE,08/08/2016,44.25
Bath & North East Somerset Council,80615046,LM6,Nursing Care,P11,Adult Social Care & Health,BARCHESTER HEALTH CARE,08/08/2016,44.25
Bath & North East Somerset Council,80615046,LM6,Nursing Care,P11,Adult Social Care & Health,BARCHESTER HEALTH CARE,08/08/2016,44.25
Bath & North East Somerset Council,80615046,LM6,Nursing Care,P11,Adult Social Care & Health,BARCHESTER HEALTH CARE,08/08/2016,44.25
Bath & North East Somerset Council,80615046,LM6,Nursing Care,P11,Adult Social Care & Health,BARCHESTER HEALTH CARE,08/08/2016,44.25
Bath & North East Somerset Council,80615046,LM6,Nursing Care,P11,Adult Social Care & Health,BARCHESTER HEALTH CARE,08/08/2016,44.25
Bath & North East Somerset Council,80615046,LM6,Nursing Care,P11,Adult Social Care & Health,BARCHESTER HEALTH CARE,08/08/2016,44.25
Bath & North East Somerset Council,80615046,LM6,Nursing Care,P11,Adult Social Care & Health,BARCHESTER HEALTH CARE,08/08/2016,44.25
Bath & North East Somerset Council,80615046,LM6,Nursing Care,P11,Adult Social Care & Health,BARCHESTER HEALTH CARE,08/08/2016,44.25
Bath & North East Somerset Council,80615046,LM6,Nursing Care,P11,Adult Social Care & Health,BARCHESTER HEALTH CARE,08/08/2016,44.25
Bath & North East Somerset Council,80615046,LM6,Nursing Care,P11,Adult Social Care & Health,BARCHESTER HEALTH CARE,08/08/2016,44.25
Bath & North East Somerset Council,80615046,LM6,Nursing Care,P11,Adult Social Care & Health,BARCHESTER HEALTH CARE,08/08/2016,44.25
Bath & North East Somerset Council,80615046,LM6,Nursing Care,P11,Adult Social Care & Health,BARCHESTER HEALTH CARE,08/08/2016,44.25
Bath & North East Somerset Council,80615046,LM6,Nursing Care,P11,Adult Social Care & Health,BARCHESTER HEALTH CARE,08/08/2016,44.25
Bath & North East Somerset Council,80615046,LM6,Nursing Care,P11,Adult Social Care & Health,BARCHESTER HEALTH CARE,08/08/2016,44.25
Bath & North East Somerset Council,80615046,LM6,Nursing Care,P11,Adult Social Care & Health,BARCHESTER HEALTH CARE,08/08/2016,44.25
Bath & North East Somerset Council,80615046,LM6,Nursing Care,P11,Adult Social Care & Health,BARCHESTER HEALTH CARE,08/08/2016,44.25
Bath & North East Somerset Council,80615046,LM6,Nursing Care,P11,Adult Social Care & Health,BARCHESTER HEALTH CARE,08/08/2016,44.25
Bath & North East Somerset Council,80615046,LM6,Nursing Care,P11,Adult Social Care & Health,BARCHESTER HEALTH CARE,08/08/2016,44.25
Bath & North East Somerset Council,80615046,LM6,Nursing Care,P11,Adult Social Care & Health,BARCHESTER HEALTH CARE,08/08/2016,44.25
Bath & North East Somerset Council,80615046,LM6,Nursing Care,P11,Adult Social Care & Health,BARCHESTER HEALTH CARE,08/08/2016,44.25
Bath & North East Somerset Council,80615046,LM6,Nursing Care,P11,Adult Social Care & Health,BARCHESTER HEALTH CARE,08/08/2016,44.25
Bath & North East Somerset Council,80615046,LM6,Nursing Care,P11,Adult Social Care & Health,BARCHESTER HEALTH CARE,08/08/2016,44.25
Bath & North East Somerset Council,80615046,LM6,Nursing Care,P11,Adult Social Care & Health,BARCHESTER HEALTH CARE,08/08/2016,44.25
Bath & North East Somerset Council,80615046,LM6,Nursing Care,P11,Adult Social Care & Health,BARCHESTER HEALTH CARE,08/08/2016,44.25
Bath & North East Somerset Council,80615046,LM6,Nursing Care,P11,Adult Social Care & Health,BARCHESTER HEALTH CARE,08/08/2016,44.25
Bath & North East Somerset Council,80615046,LM6,Nursing Care,P11,Adult Social Care & Health,BARCHESTER HEALTH CARE,08/08/2016,44.25
Bath & North East Somerset Council,80615046,LM6,Nursing Care,P11,Adult Social Care & Health,BARCHESTER HEALTH CARE,08/08/2016,44.25
Bath & North East Somerset Council,80615046,LM6,Nursing Care,P11,Adult Social Care & Health,BARCHESTER HEALTH CARE,08/08/2016,44.25
Bath & North East Somerset Council,80615046,LM6,Nursing Care,P11,Adult Social Care & Health,BARCHESTER HEALTH CARE,08/08/2016,44.25
Bath & North East Somerset Council,80615046,LM6,Nursing Care,P11,Adult Social Care & Health,BARCHESTER HEALTH CARE,08/08/2016,44.25
Bath & North East Somerset Council,80615046,LM6,Nursing Care,P11,Adult Social Care & Health,BARCHESTER HEALTH CARE,08/08/2016,44.25
Bath & North East Somerset Council,80615046,LM6,Nursing Care,P11,Adult Social Care & Health,BARCHESTER HEALTH CARE,08/08/2016,44.25
Bath & North East Somerset Council,80615046,LM6,Nursing Care,P11,Adult Social Care & Health,BARCHESTER HEALTH CARE,08/08/2016,44.25
Bath & North East Somerset Council,80615046,LM6,Nursing Care,P11,Adult Social Care & Health,BARCHESTER HEALTH CARE,08/08/2016,44.25
Bath & North East Somerset Council,80615046,LM6,Nursing Care,P11,Adult Social Care & Health,BARCHESTER HEALTH CARE,08/08/2016,44.25
Bath & North East Somerset Council,80615046,LM6,Nursing Care,P11,Adult Social Care & Health,BARCHESTER HEALTH CARE,08/08/2016,44.25
Bath & North East Somerset Council,80615046,LM6,Nursing Care,P11,Adult Social Care & Health,BARCHESTER HEALTH CARE,08/08/2016,44.25
Bath & North East Somerset Council,80615046,LM6,Nursing Care,P11,Adult Social Care & Health,BARCHESTER HEALTH CARE,08/08/2016,44.25
Bath & North East Somerset Council,80615046,LM6,Nursing Care,P11,Adult Social Care & Health,BARCHESTER HEALTH CARE,08/08/2016,44.25
Bath & North East Somerset Council,80615046,LM6,Nursing Care,P11,Adult Social Care & Health,BARCHESTER HEALTH CARE,08/08/2016,44.25
Bath & North East Somerset Council,80615046,LM6,Nursing Care,P11,Adult Social Care & Health,BARCHESTER HEALTH CARE,08/08/2016,44.25
Bath & North East Somerset Council,80615046,LM6,Nursing Care,P11,Adult Social Care & Health,BARCHESTER HEALTH CARE,08/08/2016,44.25
Bath & North East Somerset Council,80615046,LM6,Nursing Care,P11,Adult Social Care & Health,BARCHESTER HEALTH CARE,08/08/2016,44.25
Bath & North East Somerset Council,80615046,LM6,Nursing Care,P11,Adult Social Care & Health,BARCHESTER HEALTH CARE,08/08/2016,44.25
Bath & North East Somerset Council,80615046,LM6,Nursing Care,P11,Adult Social Care & Health,BARCHESTER HEALTH CARE,08/08/2016,44.25
Bath & North East Somerset Council,80615046,LM6,Nursing Care,P11,Adult Social Care & Health,BARCHESTER HEALTH CARE,08/08/2016,44.25
Bath & North East Somerset Council,80615046,LM6,Nursing Care,P11,Adult Social Care & Health,BARCHESTER HEALTH CARE,08/08/2016,44.25
Bath & North East Somerset Council,80615046,LM6,Nursing Care,P11,Adult Social Care & Health,BARCHESTER HEALTH CARE,08/08/2016,44.25
Bath & North East Somerset Council,80615046,LM6,Nursing Care,P11,Adult Social Care & Health,BARCHESTER HEALTH CARE,08/08/2016,44.25
Bath & North East Somerset Council,80615046,LM6,Nursing Care,P11,Adult Social Care & Health,BARCHESTER HEALTH CARE,08/08/2016,44.25
Bath & North East Somerset Council,80615046,LM6,Nursing Care,P11,Adult Social Care & Health,BARCHESTER HEALTH CARE,08/08/2016,44.25
Bath & North East Somerset Council,80615046,LM6,Nursing Care,P11,Adult Social Care & Health,BARCHESTER HEALTH CARE,08/08/2016,44.25
Bath & North East Somerset Council,80615046,LM6,Nursing Care,P11,Adult Social Care & Health,BARCHESTER HEALTH CARE,08/08/2016,44.25
Bath & North East Somerset Council,80615046,LM6,Nursing Care,P11,Adult Social Care & Health,BARCHESTER HEALTH CARE,08/08/2016,44.25
Bath & North East Somerset Council,80615046,LM6,Nursing Care,P11,Adult Social Care & Health,BARCHESTER HEALTH CARE,08/08/2016,44.25
Bath & North East Somerset Council,80615046,LM6,Nursing Care,P11,Adult Social Care & Health,BARCHESTER HEALTH CARE,08/08/2016,44.25
Bath & North East Somerset Council,80615046,LM6,Nursing Care,P11,Adult Social Care & Health,BARCHESTER HEALTH CARE,08/08/2016,44.25
Bath & North East Somerset Council,80615046,LM6,Nursing Care,P11,Adult Social Care & Health,BARCHESTER HEALTH CARE,08/08/2016,44.25
Bath & North East Somerset Council,80615046,LM6,Nursing Care,P11,Adult Social Care & Health,BARCHESTER HEALTH CARE,08/08/2016,44.25
Bath & North East Somerset Council,80615046,LM6,Nursing Care,P11,Adult Social Care & Health,BARCHESTER HEALTH CARE,08/08/2016,44.25
Bath & North East Somerset Council,80615046,LM6,Nursing Care,P11,Adult Social Care & Health,BARCHESTER HEALTH CARE,08/08/2016,44.25
Bath & North East Somerset Council,80615046,LM6,Nursing Care,P11,Adult Social Care & Health,BARCHESTER HEALTH CARE,08/08/2016,44.25
Bath & North East Somerset Council,80615046,LM6,Nursing Care,P11,Adult Social Care & Health,BARCHESTER HEALTH CARE,08/08/2016,44.25
Bath & North East Somerset Council,80615046,LM6,Nursing Care,P11,Adult Social Care & Health,BARCHESTER HEALTH CARE,08/08/2016,44.25
Bath & North East Somerset Council,80615046,LM6,Nursing Care,P11,Adult Social Care & Health,BARCHESTER HEALTH CARE,08/08/2016,44.25
Bath & North East Somerset Council,80615046,LM6,Nursing Care,P11,Adult Social Care & Health,BARCHESTER HEALTH CARE,08/08/2016,44.25
Bath & North East Somerset Council,80615046,LM6,Nursing Care,P11,Adult Social Care & Health,BARCHESTER HEALTH CARE,08/08/2016,44.25
Bath & North East Somerset Council,80615046,LM6,Nursing Care,P11,Adult Social Care & Health,BARCHESTER HEALTH CARE,08/08/2016,44.25
Bath & North East Somerset Council,80615046,LM6,Nursing Care,P11,Adult Social Care & Health,BARCHESTER HEALTH CARE,08/08/2016,44.25
Bath & North East Somerset Council,80615046,LM6,Nursing Care,P11,Adult Social Care & Health,BARCHESTER HEALTH CARE,08/08/2016,44.25
Bath & North East Somerset Council,80615046,LM6,Nursing Care,P11,Adult Social Care & Health,BARCHESTER HEALTH CARE,08/08/2016,44.25
Bath & North East Somerset Council,80615046,LM6,Nursing Care,P11,Adult Social Care & Health,BARCHESTER HEALTH CARE,08/08/2016,44.25
Bath & North East Somerset Council,80615046,LM6,Nursing Care,P11,Adult Social Care & Health,BARCHESTER HEALTH CARE,08/08/2016,44.25
Bath & North East Somerset Council,80615046,LM6,Nursing Care,P11,Adult Social Care & Health,BARCHESTER HEALTH CARE,08/08/2016,44.25
Bath & North East Somerset Council,80615046,LM6,Nursing Care,P11,Adult Social Care & Health,BARCHESTER HEALTH CARE,08/08/2016,44.25
Bath & North East Somerset Council,80615046,LM6,Nursing Care,P11,Adult Social Care & Health,BARCHESTER HEALTH CARE,08/08/2016,44.25
Bath & North East Somerset Council,80615046,LM6,Nursing Care,P11,Adult Social Care & Health,BARCHESTER HEALTH CARE,08/08/2016,44.25
Bath & North East Somerset Council,80615046,LM6,Nursing Care,P11,Adult Social Care & Health,BARCHESTER HEALTH CARE,08/08/2016,44.25
Bath & North East Somerset Council,80615046,LM6,Nursing Care,P11,Adult Social Care & Health,BARCHESTER HEALTH CARE,08/08/2016,44.25
Bath & North East Somerset Council,80615046,LM6,Nursing Care,P11,Adult Social Care & Health,BARCHESTER HEALTH CARE,08/08/2016,44.25
Bath & North East Somerset Council,80615046,LM6,Nursing Care,P11,Adult Social Care & Health,BARCHESTER HEALTH CARE,08/08/2016,44.25
Bath & North East Somerset Council,80615046,LM6,Nursing Care,P11,Adult Social Care & Health,BARCHESTER HEALTH CARE,08/08/2016,44.25
Bath & North East Somerset Council,80615046,LM6,Nursing Care,P11,Adult Social Care & Health,BARCHESTER HEALTH CARE,08/08/2016,44.25
Bath & North East Somerset Council,80615046,LM6,Nursing Care,P11,Adult Social Care & Health,BARCHESTER HEALTH CARE,08/08/2016,44.25
Bath & North East Somerset Council,80615046,LM6,Nursing Care,P11,Adult Social Care & Health,BARCHESTER HEALTH CARE,08/08/2016,44.25
Bath & North East Somerset Council,80615046,LM6,Nursing Care,P11,Adult Social Care & Health,BARCHESTER HEALTH CARE,08/08/2016,44.25
Bath & North East Somerset Council,80615046,LM6,Nursing Care,P11,Adult Social Care & Health,BARCHESTER HEALTH CARE,08/08/2016,44.25
Bath & North East Somerset Council,80615046,LM6,Nursing Care,P11,Adult Social Care & Health,BARCHESTER HEALTH CARE,08/08/2016,44.25
Bath & North East Somerset Council,80615046,LM6,Nursing Care,P11,Adult Social Care & Health,BARCHESTER HEALTH CARE,08/08/2016,44.25
Bath & North East Somerset Council,80615046,LM6,Nursing Care,P11,Adult Social Care & Health,BARCHESTER HEALTH CARE,08/08/2016,44.25
Bath & North East Somerset Council,80615046,LM6,Nursing Care,P11,Adult Social Care & Health,BARCHESTER HEALTH CARE,08/08/2016,44.25
Bath & North East Somerset Council,80615046,LM6,Nursing Care,P11,Adult Social Care & Health,BARCHESTER HEALTH CARE,08/08/2016,44.25
Bath & North East Somerset Council,80615046,LM6,Nursing Care,P11,Adult Social Care & Health,BARCHESTER HEALTH CARE,08/08/2016,44.25
Bath & North East Somerset Council,80615046,LM6,Nursing Care,P11,Adult Social Care & Health,BARCHESTER HEALTH CARE,08/08/2016,44.25
Bath & North East Somerset Council,80615046,LM6,Nursing Care,P11,Adult Social Care & Health,BARCHESTER HEALTH CARE,08/08/2016,44.25
Bath & North East Somerset Council,80615046,LM6,Nursing Care,P11,Adult Social Care & Health,BARCHESTER HEALTH CARE,08/08/2016,44.25
Bath & North East Somerset Council,80615046,LM6,Nursing Care,P11,Adult Social Care & Health,BARCHESTER HEALTH CARE,08/08/2016,44.25
Bath & North East Somerset Council,80615046,LM6,Nursing Care,P11,Adult Social Care & Health,BARCHESTER HEALTH CARE,08/08/2016,44.25
Bath & North East Somerset Council,80615046,LM6,Nursing Care,P11,Adult Social Care & Health,BARCHESTER HEALTH CARE,08/08/2016,44.25
Bath & North East Somerset Council,80615046,LM6,Nursing Care,P11,Adult Social Care & Health,BARCHESTER HEALTH CARE,08/08/2016,44.25
Bath & North East Somerset Council,80615046,LM6,Nursing Care,P11,Adult Social Care & Health,BARCHESTER HEALTH CARE,08/08/2016,44.25
Bath & North East Somerset Council,80615046,LM6,Nursing Care,P11,Adult Social Care & Health,BARCHESTER HEALTH CARE,08/08/2016,44.25
Bath & North East Somerset Council,80615046,LM6,Nursing Care,P11,Adult Social Care & Health,BARCHESTER HEALTH CARE,08/08/2016,44.25
Bath & North East Somerset Council,80615046,LM6,Nursing Care,P11,Adult Social Care & Health,BARCHESTER HEALTH CARE,08/08/2016,44.25
Bath & North East Somerset Council,80615046,LM6,Nursing Care,P11,Adult Social Care & Health,BARCHESTER HEALTH CARE,08/08/2016,44.25
Bath & North East Somerset Council,80615046,LM6,Nursing Care,P11,Adult Social Care & Health,BARCHESTER HEALTH CARE,08/08/2016,44.25
Bath & North East Somerset Council,80615046,LM6,Nursing Care,P11,Adult Social Care & Health,BARCHESTER HEALTH CARE,08/08/2016,44.25
Bath & North East Somerset Council,80615046,LM6,Nursing Care,P11,Adult Social Care & Health,BARCHESTER HEALTH CARE,08/08/2016,44.25
Bath & North East Somerset Council,80615046,LM6,Nursing Care,P11,Adult Social Care & Health,BARCHESTER HEALTH CARE,08/08/2016,44.25
Bath & North East Somerset Council,80615046,LM6,Nursing Care,P11,Adult Social Care & Health,BARCHESTER HEALTH CARE,08/08/2016,44.25
Bath & North East Somerset Council,80615046,LM6,Nursing Care,P11,Adult Social Care & Health,BARCHESTER HEALTH CARE,08/08/2016,44.25
Bath & North East Somerset Council,80615046,LM6,Nursing Care,P11,Adult Social Care & Health,BARCHESTER HEALTH CARE,08/08/2016,44.25
Bath & North East Somerset Council,80615046,LM6,Nursing Care,P11,Adult Social Care & Health,BARCHESTER HEALTH CARE,08/08/2016,44.25
Bath & North East Somerset Council,80615046,LM6,Nursing Care,P11,Adult Social Care & Health,BARCHESTER HEALTH CARE,08/08/2016,44.25
Bath & North East Somerset Council,80615046,LM6,Nursing Care,P11,Adult Social Care & Health,BARCHESTER HEALTH CARE,08/08/2016,44.25
Bath & North East Somerset Council,80615046,LM6,Nursing Care,P11,Adult Social Care & Health,BARCHESTER HEALTH CARE,08/08/2016,44.25
Bath & North East Somerset Council,80615046,LM6,Nursing Care,P11,Adult Social Care & Health,BARCHESTER HEALTH CARE,08/08/2016,44.25
Bath & North East Somerset Council,80615046,LM6,Nursing Care,P11,Adult Social Care & Health,BARCHESTER HEALTH CARE,08/08/2016,44.25
Bath & North East Somerset Council,80615046,LM6,Nursing Care,P11,Adult Social Care & Health,BARCHESTER HEALTH CARE,08/08/2016,44.25
Bath & North East Somerset Council,80615046,LM6,Nursing Care,P11,Adult Social Care & Health,BARCHESTER HEALTH CARE,08/08/2016,44.25
Bath & North East Somerset Council,80615046,LM6,Nursing Care,P11,Adult Social Care & Health,BARCHESTER HEALTH CARE,08/08/2016,44.25
Bath & North East Somerset Council,80615046,LM6,Nursing Care,P11,Adult Social Care & Health,BARCHESTER HEALTH CARE,08/08/2016,44.25
Bath & North East Somerset Council,80615046,LM6,Nursing Care,P11,Adult Social Care & Health,BARCHESTER HEALTH CARE,08/08/2016,44.25
Bath & North East Somerset Council,80615046,LM6,Nursing Care,P11,Adult Social Care & Health,BARCHESTER HEALTH CARE,08/08/2016,44.25
Bath & North East Somerset Council,80615046,LM6,Nursing Care,P11,Adult Social Care & Health,BARCHESTER HEALTH CARE,08/08/2016,44.25
Bath & North East Somerset Council,80615046,LM6,Nursing Care,P11,Adult Social Care & Health,BARCHESTER HEALTH CARE,08/08/2016,44.25
Bath & North East Somerset Council,80615046,LM6,Nursing Care,P11,Adult Social Care & Health,BARCHESTER HEALTH CARE,08/08/2016,44.25
Bath & North East Somerset Council,80615046,LM6,Nursing Care,P11,Adult Social Care & Health,BARCHESTER HEALTH CARE,08/08/2016,44.25
Bath & North East Somerset Council,80615046,LM6,Nursing Care,P11,Adult Social Care & Health,BARCHESTER HEALTH CARE,08/08/2016,44.25
Bath & North East Somerset Council,80615046,LM6,Nursing Care,P11,Adult Social Care & Health,BARCHESTER HEALTH CARE,08/08/2016,44.25
Bath & North East Somerset Council,80615046,LM6,Nursing Care,P11,Adult Social Care & Health,BARCHESTER HEALTH CARE,08/08/2016,44.25
Bath & North East Somerset Council,80615046,LM6,Nursing Care,P11,Adult Social Care & Health,BARCHESTER HEALTH CARE,08/08/2016,44.25
Bath & North East Somerset Council,80615046,LM6,Nursing Care,P11,Adult Social Care & Health,BARCHESTER HEALTH CARE,08/08/2016,44.25
Bath & North East Somerset Council,80615046,LM6,Nursing Care,P11,Adult Social Care & Health,BARCHESTER HEALTH CARE,08/08/2016,44.25
Bath & North East Somerset Council,80615046,LM6,Nursing Care,P11,Adult Social Care & Health,BARCHESTER HEALTH CARE,08/08/2016,44.25
Bath & North East Somerset Council,80615046,LM6,Nursing Care,P11,Adult Social Care & Health,BARCHESTER HEALTH CARE,08/08/2016,44.25
Bath & North East Somerset Council,80615046,LM6,Nursing Care,P11,Adult Social Care & Health,BARCHESTER HEALTH CARE,08/08/2016,44.25
Bath & North East Somerset Council,80615046,LM6,Nursing Care,P11,Adult Social Care & Health,BARCHESTER HEALTH CARE,08/08/2016,44.25
Bath & North East Somerset Council,80615046,LM6,Nursing Care,P11,Adult Social Care & Health,BARCHESTER HEALTH CARE,08/08/2016,44.25
Bath & North East Somerset Council,80615046,LM6,Nursing Care,P11,Adult Social Care & Health,BARCHESTER HEALTH CARE,08/08/2016,44.25
Bath & North East Somerset Council,80615046,LM6,Nursing Care,P11,Adult Social Care & Health,BARCHESTER HEALTH CARE,08/08/2016,44.25
Bath & North East Somerset Council,80615046,LM6,Nursing Care,P11,Adult Social Care & Health,BARCHESTER HEALTH CARE,08/08/2016,44.25
Bath & North East Somerset Council,80615046,LM6,Nursing Care,P11,Adult Social Care & Health,BARCHESTER HEALTH CARE,08/08/2016,44.25
Bath & North East Somerset Council,80615046,LM6,Nursing Care,P11,Adult Social Care & Health,BARCHESTER HEALTH CARE,08/08/2016,44.25
Bath & North East Somerset Council,80615046,LM6,Nursing Care,P11,Adult Social Care & Health,BARCHESTER HEALTH CARE,08/08/2016,44.25
Bath & North East Somerset Council,80615046,LM6,Nursing Care,P11,Adult Social Care & Health,BARCHESTER HEALTH CARE,08/08/2016,44.25
Bath & North East Somerset Council,80615046,LM6,Nursing Care,P11,Adult Social Care & Health,BARCHESTER HEALTH CARE,08/08/2016,44.25
Bath & North East Somerset Council,80615046,LM6,Nursing Care,P11,Adult Social Care & Health,BARCHESTER HEALTH CARE,08/08/2016,44.25
Bath & North East Somerset Council,80615046,LM6,Nursing Care,P11,Adult Social Care & Health,BARCHESTER HEALTH CARE,08/08/2016,44.25
Bath & North East Somerset Council,80615046,LM6,Nursing Care,P11,Adult Social Care & Health,BARCHESTER HEALTH CARE,08/08/2016,44.25
Bath & North East Somerset Council,80615046,LM6,Nursing Care,P11,Adult Social Care & Health,BARCHESTER HEALTH CARE,08/08/2016,44.25
Bath & North East Somerset Council,80615046,LM6,Nursing Care,P11,Adult Social Care & Health,BARCHESTER HEALTH CARE,08/08/2016,44.25
Bath & North East Somerset Council,80615046,LM6,Nursing Care,P11,Adult Social Care & Health,BARCHESTER HEALTH CARE,08/08/2016,44.25
Bath & North East Somerset Council,80615046,LM6,Nursing Care,P11,Adult Social Care & Health,BARCHESTER HEALTH CARE,08/08/2016,44.25
Bath & North East Somerset Council,80615046,LM6,Nursing Care,P11,Adult Social Care & Health,BARCHESTER HEALTH CARE,08/08/2016,44.25
Bath & North East Somerset Council,80615046,LM6,Nursing Care,P11,Adult Social Care & Health,BARCHESTER HEALTH CARE,08/08/2016,44.25
Bath & North East Somerset Council,80615046,LM6,Nursing Care,P11,Adult Social Care & Health,BARCHESTER HEALTH CARE,08/08/2016,44.25
Bath & North East Somerset Council,80615046,LM6,Nursing Care,P11,Adult Social Care & Health,BARCHESTER HEALTH CARE,08/08/2016,44.25
Bath & North East Somerset Council,80615046,LM6,Nursing Care,P11,Adult Social Care & Health,BARCHESTER HEALTH CARE,08/08/2016,44.25
Bath & North East Somerset Council,80615046,LM6,Nursing Care,P11,Adult Social Care & Health,BARCHESTER HEALTH CARE,08/08/2016,44.25
Bath & North East Somerset Council,80615046,LM6,Nursing Care,P11,Adult Social Care & Health,BARCHESTER HEALTH CARE,08/08/2016,44.25
Bath & North East Somerset Council,80615046,LM6,Nursing Care,P11,Adult Social Care & Health,BARCHESTER HEALTH CARE,08/08/2016,44.25
Bath & North East Somerset Council,80615046,LM6,Nursing Care,P11,Adult Social Care & Health,BARCHESTER HEALTH CARE,08/08/2016,44.25
Bath & North East Somerset Council,80615046,LM6,Nursing Care,P11,Adult Social Care & Health,BARCHESTER HEALTH CARE,08/08/2016,44.25
Bath & North East Somerset Council,80615046,LM6,Nursing Care,P11,Adult Social Care & Health,BARCHESTER HEALTH CARE,08/08/2016,44.25
Bath & North East Somerset Council,80615046,LM6,Nursing Care,P11,Adult Social Care & Health,BARCHESTER HEALTH CARE,08/08/2016,44.25
Bath & North East Somerset Council,80615046,LM6,Nursing Care,P11,Adult Social Care & Health,BARCHESTER HEALTH CARE,08/08/2016,44.25
Bath & North East Somerset Council,80615046,LM6,Nursing Care,P11,Adult Social Care & Health,BARCHESTER HEALTH CARE,08/08/2016,44.25
Bath & North East Somerset Council,80615046,LM6,Nursing Care,P11,Adult Social Care & Health,BARCHESTER HEALTH CARE,08/08/2016,44.25
Bath & North East Somerset Council,80615046,LM6,Nursing Care,P11,Adult Social Care & Health,BARCHESTER HEALTH CARE,08/08/2016,44.25
Bath & North East Somerset Council,80615046,LM6,Nursing Care,P11,Adult Social Care & Health,BARCHESTER HEALTH CARE,08/08/2016,44.25
Bath & North East Somerset Council,80615046,LM6,Nursing Care,P11,Adult Social Care & Health,BARCHESTER HEALTH CARE,08/08/2016,44.25
Bath & North East Somerset Council,80615046,LM6,Nursing Care,P11,Adult Social Care & Health,BARCHESTER HEALTH CARE,08/08/2016,44.25
Bath & North East Somerset Council,80615046,LM6,Nursing Care,P11,Adult Social Care & Health,BARCHESTER HEALTH CARE,08/08/2016,44.25
Bath & North East Somerset Council,80615046,LM6,Nursing Care,P11,Adult Social Care & Health,BARCHESTER HEALTH CARE,08/08/2016,44.25
Bath & North East Somerset Council,80615046,LM6,Nursing Care,P11,Adult Social Care & Health,BARCHESTER HEALTH CARE,08/08/2016,44.25
Bath & North East Somerset Council,80615046,LM6,Nursing Care,P11,Adult Social Care & Health,BARCHESTER HEALTH CARE,08/08/2016,44.25
Bath & North East Somerset Council,80615046,LM6,Nursing Care,P11,Adult Social Care & Health,BARCHESTER HEALTH CARE,08/08/2016,44.25
Bath & North East Somerset Council,80615046,LM6,Nursing Care,P11,Adult Social Care & Health,BARCHESTER HEALTH CARE,08/08/2016,44.25
Bath & North East Somerset Council,80615046,LM6,Nursing Care,P11,Adult Social Care & Health,BARCHESTER HEALTH CARE,08/08/2016,44.25
Bath & North East Somerset Council,80615046,LM6,Nursing Care,P11,Adult Social Care & Health,BARCHESTER HEALTH CARE,08/08/2016,44.25
Bath & North East Somerset Council,80615046,LM6,Nursing Care,P11,Adult Social Care & Health,BARCHESTER HEALTH CARE,08/08/2016,44.25
Bath & North East Somerset Council,80615046,LM6,Nursing Care,P11,Adult Social Care & Health,BARCHESTER HEALTH CARE,08/08/2016,44.25
Bath & North East Somerset Council,80615046,LM6,Nursing Care,P11,Adult Social Care & Health,BARCHESTER HEALTH CARE,08/08/2016,44.25
Bath & North East Somerset Council,80615046,LM6,Nursing Care,P11,Adult Social Care & Health,BARCHESTER HEALTH CARE,08/08/2016,44.25
Bath & North East Somerset Council,80615046,LM6,Nursing Care,P11,Adult Social Care & Health,BARCHESTER HEALTH CARE,08/08/2016,44.25
Bath & North East Somerset Council,80615046,LM6,Nursing Care,P11,Adult Social Care & Health,BARCHESTER HEALTH CARE,08/08/2016,44.25
Bath & North East Somerset Council,80615046,LM6,Nursing Care,P11,Adult Social Care & Health,BARCHESTER HEALTH CARE,08/08/2016,44.25
Bath & North East Somerset Council,80615046,LM6,Nursing Care,P11,Adult Social Care & Health,BARCHESTER HEALTH CARE,08/08/2016,44.25
Bath & North East Somerset Council,80615046,LM6,Nursing Care,P11,Adult Social Care & Health,BARCHESTER HEALTH CARE,08/08/2016,44.25
Bath & North East Somerset Council,80615046,LM6,Nursing Care,P11,Adult Social Care & Health,BARCHESTER HEALTH CARE,08/08/2016,44.25
Bath & North East Somerset Council,80615046,LM6,Nursing Care,P11,Adult Social Care & Health,BARCHESTER HEALTH CARE,08/08/2016,44.25
Bath & North East Somerset Council,80615046,LM6,Nursing Care,P11,Adult Social Care & Health,BARCHESTER HEALTH CARE,08/08/2016,44.25
Bath & North East Somerset Council,80615046,LM6,Nursing Care,P11,Adult Social Care & Health,BARCHESTER HEALTH CARE,08/08/2016,44.25
Bath & North East Somerset Council,80615046,LM6,Nursing Care,P11,Adult Social Care & Health,BARCHESTER HEALTH CARE,08/08/2016,44.25
Bath & North East Somerset Council,80615046,LM6,Nursing Care,P11,Adult Social Care & Health,BARCHESTER HEALTH CARE,08/08/2016,44.25
Bath & North East Somerset Council,80615046,LM6,Nursing Care,P11,Adult Social Care & Health,BARCHESTER HEALTH CARE,08/08/2016,44.25
Bath & North East Somerset Council,80615046,LM6,Nursing Care,P11,Adult Social Care & Health,BARCHESTER HEALTH CARE,08/08/2016,44.25
Bath & North East Somerset Council,80615046,LM6,Nursing Care,P11,Adult Social Care & Health,BARCHESTER HEALTH CARE,08/08/2016,44.25
Bath & North East Somerset Council,80615046,LM6,Nursing Care,P11,Adult Social Care & Health,BARCHESTER HEALTH CARE,08/08/2016,44.25
Bath & North East Somerset Council,80615046,LM6,Nursing Care,P11,Adult Social Care & Health,BARCHESTER HEALTH CARE,08/08/2016,44.25
Bath & North East Somerset Council,80615046,LM6,Nursing Care,P11,Adult Social Care & Health,BARCHESTER HEALTH CARE,08/08/2016,44.25
Bath & North East Somerset Council,80615046,LM6,Nursing Care,P11,Adult Social Care & Health,BARCHESTER HEALTH CARE,08/08/2016,44.25
Bath & North East Somerset Council,80615046,LM6,Nursing Care,P11,Adult Social Care & Health,BARCHESTER HEALTH CARE,08/08/2016,44.25
Bath & North East Somerset Council,80615046,LM6,Nursing Care,P11,Adult Social Care & Health,BARCHESTER HEALTH CARE,08/08/2016,44.25
Bath & North East Somerset Council,80615046,LM6,Nursing Care,P11,Adult Social Care & Health,BARCHESTER HEALTH CARE,08/08/2016,44.25
Bath & North East Somerset Council,80615046,LM6,Nursing Care,P11,Adult Social Care & Health,BARCHESTER HEALTH CARE,08/08/2016,44.25
Bath & North East Somerset Council,80615046,LM6,Nursing Care,P11,Adult Social Care & Health,BARCHESTER HEALTH CARE,08/08/2016,44.25
Bath & North East Somerset Council,80615046,LM6,Nursing Care,P11,Adult Social Care & Health,BARCHESTER HEALTH CARE,08/08/2016,44.25
Bath & North East Somerset Council,80615046,LM6,Nursing Care,P11,Adult Social Care & Health,BARCHESTER HEALTH CARE,08/08/2016,44.25
Bath & North East Somerset Council,80615046,LM6,Nursing Care,P11,Adult Social Care & Health,BARCHESTER HEALTH CARE,08/08/2016,44.25
Bath & North East Somerset Council,80615046,LM6,Nursing Care,P11,Adult Social Care & Health,BARCHESTER HEALTH CARE,08/08/2016,44.25
Bath & North East Somerset Council,80615046,LM6,Nursing Care,P11,Adult Social Care & Health,BARCHESTER HEALTH CARE,08/08/2016,44.25
Bath & North East Somerset Council,80615046,LM6,Nursing Care,P11,Adult Social Care & Health,BARCHESTER HEALTH CARE,08/08/2016,44.25
Bath & North East Somerset Council,80615046,LM6,Nursing Care,P11,Adult Social Care & Health,BARCHESTER HEALTH CARE,08/08/2016,44.25
Bath & North East Somerset Council,80615046,LM6,Nursing Care,P11,Adult Social Care & Health,BARCHESTER HEALTH CARE,08/08/2016,44.25
Bath & North East Somerset Council,80615046,LM6,Nursing Care,P11,Adult Social Care & Health,BARCHESTER HEALTH CARE,08/08/2016,44.25
Bath & North East Somerset Council,80615046,LM6,Nursing Care,P11,Adult Social Care & Health,BARCHESTER HEALTH CARE,08/08/2016,44.25
Bath & North East Somerset Council,80615046,LM6,Nursing Care,P11,Adult Social Care & Health,BARCHESTER HEALTH CARE,08/08/2016,44.25
Bath & North East Somerset Council,80615046,LM6,Nursing Care,P11,Adult Social Care & Health,BARCHESTER HEALTH CARE,08/08/2016,44.25
Bath & North East Somerset Council,80615046,LM6,Nursing Care,P11,Adult Social Care & Health,BARCHESTER HEALTH CARE,08/08/2016,44.25
Bath & North East Somerset Council,80615046,LM6,Nursing Care,P11,Adult Social Care & Health,BARCHESTER HEALTH CARE,08/08/2016,44.25
Bath & North East Somerset Council,80615046,LM6,Nursing Care,P11,Adult Social Care & Health,BARCHESTER HEALTH CARE,08/08/2016,44.25
Bath & North East Somerset Council,80615046,LM6,Nursing Care,P11,Adult Social Care & Health,BARCHESTER HEALTH CARE,08/08/2016,44.25
Bath & North East Somerset Council,80615046,LM6,Nursing Care,P11,Adult Social Care & Health,BARCHESTER HEALTH CARE,08/08/2016,44.25
Bath & North East Somerset Council,80615046,LM6,Nursing Care,P11,Adult Social Care & Health,BARCHESTER HEALTH CARE,08/08/2016,44.25
Bath & North East Somerset Council,80615046,LM6,Nursing Care,P11,Adult Social Care & Health,BARCHESTER HEALTH CARE,08/08/2016,44.25
Bath & North East Somerset Council,80615046,LM6,Nursing Care,P11,Adult Social Care & Health,BARCHESTER HEALTH CARE,08/08/2016,44.25
Bath & North East Somerset Council,80615046,LM6,Nursing Care,P11,Adult Social Care & Health,BARCHESTER HEALTH CARE,08/08/2016,44.25
Bath & North East Somerset Council,80615046,LM6,Nursing Care,P11,Adult Social Care & Health,BARCHESTER HEALTH CARE,08/08/2016,44.25
Bath & North East Somerset Council,80615046,LM6,Nursing Care,P11,Adult Social Care & Health,BARCHESTER HEALTH CARE,08/08/2016,44.25
Bath & North East Somerset Council,80615046,LM6,Nursing Care,P11,Adult Social Care & Health,BARCHESTER HEALTH CARE,08/08/2016,44.25
Bath & North East Somerset Council,80615046,LM6,Nursing Care,P11,Adult Social Care & Health,BARCHESTER HEALTH CARE,08/08/2016,44.25
Bath & North East Somerset Council,80615046,LM6,Nursing Care,P11,Adult Social Care & Health,BARCHESTER HEALTH CARE,08/08/2016,44.25
Bath & North East Somerset Council,80615046,LM6,Nursing Care,P11,Adult Social Care & Health,BARCHESTER HEALTH CARE,08/08/2016,44.25
Bath & North East Somerset Council,80615046,LM6,Nursing Care,P11,Adult Social Care & Health,BARCHESTER HEALTH CARE,08/08/2016,44.25
Bath & North East Somerset Council,80615046,LM6,Nursing Care,P11,Adult Social Care & Health,BARCHESTER HEALTH CARE,08/08/2016,44.25
Bath & North East Somerset Council,80615046,LM6,Nursing Care,P11,Adult Social Care & Health,BARCHESTER HEALTH CARE,08/08/2016,44.25
Bath & North East Somerset Council,80615046,LM6,Nursing Care,P11,Adult Social Care & Health,BARCHESTER HEALTH CARE,08/08/2016,44.25
Bath & North East Somerset Council,80615046,LM6,Nursing Care,P11,Adult Social Care & Health,BARCHESTER HEALTH CARE,08/08/2016,44.25
Bath & North East Somerset Council,80615046,LM6,Nursing Care,P11,Adult Social Care & Health,BARCHESTER HEALTH CARE,08/08/2016,44.25
Bath & North East Somerset Council,80615046,LM6,Nursing Care,P11,Adult Social Care & Health,BARCHESTER HEALTH CARE,08/08/2016,44.25
Bath & North East Somerset Council,80615046,LM6,Nursing Care,P11,Adult Social Care & Health,BARCHESTER HEALTH CARE,08/08/2016,44.25
Bath & North East Somerset Council,80615046,LM6,Nursing Care,P11,Adult Social Care & Health,BARCHESTER HEALTH CARE,08/08/2016,44.25
Bath & North East Somerset Council,80615046,LM6,Nursing Care,P11,Adult Social Care & Health,BARCHESTER HEALTH CARE,08/08/2016,44.25
Bath & North East Somerset Council,80615046,LM6,Nursing Care,P11,Adult Social Care & Health,BARCHESTER HEALTH CARE,08/08/2016,44.25
Bath & North East Somerset Council,80615046,LM6,Nursing Care,P11,Adult Social Care & Health,BARCHESTER HEALTH CARE,08/08/2016,44.25
Bath & North East Somerset Council,80615046,LM6,Nursing Care,P11,Adult Social Care & Health,BARCHESTER HEALTH CARE,08/08/2016,44.25
Bath & North East Somerset Council,80615046,LM6,Nursing Care,P11,Adult Social Care & Health,BARCHESTER HEALTH CARE,08/08/2016,44.25
Bath & North East Somerset Council,80615046,LM6,Nursing Care,P11,Adult Social Care & Health,BARCHESTER HEALTH CARE,08/08/2016,44.25
Bath & North East Somerset Council,80615046,LM6,Nursing Care,P11,Adult Social Care & Health,BARCHESTER HEALTH CARE,08/08/2016,44.25
Bath & North East Somerset Council,80615046,LM6,Nursing Care,P11,Adult Social Care & Health,BARCHESTER HEALTH CARE,08/08/2016,44.25
Bath & North East Somerset Council,80615046,LM6,Nursing Care,P11,Adult Social Care & Health,BARCHESTER HEALTH CARE,08/08/2016,44.25
Bath & North East Somerset Council,80615046,LM6,Nursing Care,P11,Adult Social Care & Health,BARCHESTER HEALTH CARE,08/08/2016,44.25
Bath & North East Somerset Council,80615046,LM6,Nursing Care,P11,Adult Social Care & Health,BARCHESTER HEALTH CARE,08/08/2016,44.25
Bath & North East Somerset Council,80615046,LM6,Nursing Care,P11,Adult Social Care & Health,BARCHESTER HEALTH CARE,08/08/2016,44.25
Bath & North East Somerset Council,80615046,LM6,Nursing Care,P11,Adult Social Care & Health,BARCHESTER HEALTH CARE,08/08/2016,44.25
Bath & North East Somerset Council,80615046,LM6,Nursing Care,P11,Adult Social Care & Health,BARCHESTER HEALTH CARE,08/08/2016,44.25
Bath & North East Somerset Council,80615046,LM6,Nursing Care,P11,Adult Social Care & Health,BARCHESTER HEALTH CARE,08/08/2016,44.25
Bath & North East Somerset Council,80615046,LM6,Nursing Care,P11,Adult Social Care & Health,BARCHESTER HEALTH CARE,08/08/2016,44.25
Bath & North East Somerset Council,80615046,LM6,Nursing Care,P11,Adult Social Care & Health,BARCHESTER HEALTH CARE,08/08/2016,44.25
Bath & North East Somerset Council,80615046,LM6,Nursing Care,P11,Adult Social Care & Health,BARCHESTER HEALTH CARE,08/08/2016,156.25
Bath & North East Somerset Council,80615046,LM6,Nursing Care,P11,Adult Social Care & Health,BARCHESTER HEALTH CARE,08/08/2016,156.25
Bath & North East Somerset Council,80615046,LM6,Nursing Care,P11,Adult Social Care & Health,BARCHESTER HEALTH CARE,08/08/2016,156.25
Bath & North East Somerset Council,80615046,LM6,Nursing Care,P11,Adult Social Care & Health,BARCHESTER HEALTH CARE,08/08/2016,156.25
Bath & North East Somerset Council,80615046,LM6,Nursing Care,P11,Adult Social Care & Health,BARCHESTER HEALTH CARE,08/08/2016,156.25
Bath & North East Somerset Council,80615046,LM6,Nursing Care,P11,Adult Social Care & Health,BARCHESTER HEALTH CARE,08/08/2016,156.25
Bath & North East Somerset Council,80615046,LM6,Nursing Care,P11,Adult Social Care & Health,BARCHESTER HEALTH CARE,08/08/2016,156.25
Bath & North East Somerset Council,80615046,LM6,Nursing Care,P11,Adult Social Care & Health,BARCHESTER HEALTH CARE,08/08/2016,156.25
Bath & North East Somerset Council,80615046,LM6,Nursing Care,P11,Adult Social Care & Health,BARCHESTER HEALTH CARE,08/08/2016,156.25
Bath & North East Somerset Council,80615046,LM6,Nursing Care,P11,Adult Social Care & Health,BARCHESTER HEALTH CARE,08/08/2016,156.25
Bath & North East Somerset Council,80615046,LM6,Nursing Care,P11,Adult Social Care & Health,BARCHESTER HEALTH CARE,08/08/2016,156.25
Bath & North East Somerset Council,80615046,LM6,Nursing Care,P11,Adult Social Care & Health,BARCHESTER HEALTH CARE,08/08/2016,156.25
Bath & North East Somerset Council,80615046,LM6,Nursing Care,P11,Adult Social Care & Health,BARCHESTER HEALTH CARE,08/08/2016,156.25
Bath & North East Somerset Council,80615046,LM6,Nursing Care,P11,Adult Social Care & Health,BARCHESTER HEALTH CARE,08/08/2016,156.25
Bath & North East Somerset Council,80615046,LM6,Nursing Care,P11,Adult Social Care & Health,BARCHESTER HEALTH CARE,08/08/2016,156.25
Bath & North East Somerset Council,80615046,LM6,Nursing Care,P11,Adult Social Care & Health,BARCHESTER HEALTH CARE,08/08/2016,156.25
Bath & North East Somerset Council,80615046,LM6,Nursing Care,P11,Adult Social Care & Health,BARCHESTER HEALTH CARE,08/08/2016,156.25
Bath & North East Somerset Council,80615046,LM6,Nursing Care,P11,Adult Social Care & Health,BARCHESTER HEALTH CARE,08/08/2016,156.25
Bath & North East Somerset Council,80615046,LM6,Nursing Care,P11,Adult Social Care & Health,BARCHESTER HEALTH CARE,08/08/2016,156.25
Bath & North East Somerset Council,80615046,LM6,Nursing Care,P11,Adult Social Care & Health,BARCHESTER HEALTH CARE,08/08/2016,156.25
Bath & North East Somerset Council,80615046,LM6,Nursing Care,P11,Adult Social Care & Health,BARCHESTER HEALTH CARE,08/08/2016,156.25
Bath & North East Somerset Council,80615046,LM6,Nursing Care,P11,Adult Social Care & Health,BARCHESTER HEALTH CARE,08/08/2016,156.25
Bath & North East Somerset Council,80615046,LM6,Nursing Care,P11,Adult Social Care & Health,BARCHESTER HEALTH CARE,08/08/2016,156.25
Bath & North East Somerset Council,80615046,LM6,Nursing Care,P11,Adult Social Care & Health,BARCHESTER HEALTH CARE,08/08/2016,156.25
Bath & North East Somerset Council,80615046,LM6,Nursing Care,P11,Adult Social Care & Health,BARCHESTER HEALTH CARE,08/08/2016,156.25
Bath & North East Somerset Council,80615046,LM6,Nursing Care,P11,Adult Social Care & Health,BARCHESTER HEALTH CARE,08/08/2016,156.25
Bath & North East Somerset Council,80615046,LM6,Nursing Care,P11,Adult Social Care & Health,BARCHESTER HEALTH CARE,08/08/2016,156.25
Bath & North East Somerset Council,80615046,LM6,Nursing Care,P11,Adult Social Care & Health,BARCHESTER HEALTH CARE,08/08/2016,156.25
Bath & North East Somerset Council,80615046,LM6,Nursing Care,P11,Adult Social Care & Health,BARCHESTER HEALTH CARE,08/08/2016,156.25
Bath & North East Somerset Council,80615046,LM6,Nursing Care,P11,Adult Social Care & Health,BARCHESTER HEALTH CARE,08/08/2016,156.25
Bath & North East Somerset Council,80614895,LM6,Nursing Care,P11,Adult Social Care & Health,BARCHESTER HEALTH CARE,08/08/2016,664
Bath & North East Somerset Council,80614895,LM6,Nursing Care,P11,Adult Social Care & Health,BARCHESTER HEALTH CARE,08/08/2016,664
Bath & North East Somerset Council,80614895,LM6,Nursing Care,P11,Adult Social Care & Health,BARCHESTER HEALTH CARE,08/08/2016,925
Bath & North East Somerset Council,80614895,LM6,Nursing Care,P11,Adult Social Care & Health,BARCHESTER HEALTH CARE,08/08/2016,925
Bath & North East Somerset Council,80614895,LM6,Nursing Care,P11,Adult Social Care & Health,BARCHESTER HEALTH CARE,08/08/2016,925
Bath & North East Somerset Council,80614895,LM6,Nursing Care,P11,Adult Social Care & Health,BARCHESTER HEALTH CARE,08/08/2016,925
Bath & North East Somerset Council,80614895,LM6,Nursing Care,P11,Adult Social Care & Health,BARCHESTER HEALTH CARE,08/08/2016,925
Bath & North East Somerset Council,80614895,LM6,Nursing Care,P11,Adult Social Care & Health,BARCHESTER HEALTH CARE,08/08/2016,925
Bath & North East Somerset Council,80615089,LM6,Nursing Care,P11,Adult Social Care & Health,BARCHESTER HEALTH CARE,08/08/2016,993
Bath & North East Somerset Council,80615089,LM6,Nursing Care,P11,Adult Social Care & Health,BARCHESTER HEALTH CARE,08/08/2016,993
Bath & North East Somerset Council,10818961,HA2,Servicing,P10,Finance & Efficiency,ORONA LTD,08/08/2016,38.01
Bath & North East Somerset Council,10818963,HA2,Servicing,P10,Finance & Efficiency,ORONA LTD,08/08/2016,38.01
Bath & North East Somerset Council,80615089,LM6,Nursing Care,P11,Adult Social Care & Health,BARCHESTER HEALTH CARE,08/08/2016,1050
Bath & North East Somerset Council,80615089,LM6,Nursing Care,P11,Adult Social Care & Health,BARCHESTER HEALTH CARE,08/08/2016,1050
Bath & North East Somerset Council,80615089,LM6,Nursing Care,P11,Adult Social Care & Health,BARCHESTER HEALTH CARE,08/08/2016,1119
Bath & North East Somerset Council,80615089,LM6,Nursing Care,P11,Adult Social Care & Health,BARCHESTER HEALTH CARE,08/08/2016,1119
Bath & North East Somerset Council,80615089,LM6,Nursing Care,P11,Adult Social Care & Health,BARCHESTER HEALTH CARE,08/08/2016,1139
Bath & North East Somerset Council,80615089,LM6,Nursing Care,P11,Adult Social Care & Health,BARCHESTER HEALTH CARE,08/08/2016,1139
Bath & North East Somerset Council,80614895,LM6,Nursing Care,P11,Adult Social Care & Health,BARCHESTER HEALTH CARE,08/08/2016,1174
Bath & North East Somerset Council,80614895,LM6,Nursing Care,P11,Adult Social Care & Health,BARCHESTER HEALTH CARE,08/08/2016,1174
Bath & North East Somerset Council,80615089,LM6,Nursing Care,P11,Adult Social Care & Health,BARCHESTER HEALTH CARE,08/08/2016,1300
Bath & North East Somerset Council,80615089,LM6,Nursing Care,P11,Adult Social Care & Health,BARCHESTER HEALTH CARE,08/08/2016,1300
Bath & North East Somerset Council,80615089,LM6,Nursing Care,P11,Adult Social Care & Health,BARCHESTER HEALTH CARE,08/08/2016,1300
Bath & North East Somerset Council,80615015,LM6,Nursing Care,P11,Adult Social Care & Health,BARCHESTER HEALTHCARE,08/08/2016,715
Bath & North East Somerset Council,80615015,LM6,Nursing Care,P11,Adult Social Care & Health,BARCHESTER HEALTHCARE,08/08/2016,715
Bath & North East Somerset Council,80615015,LM6,Nursing Care,P11,Adult Social Care & Health,BARCHESTER HEALTHCARE,08/08/2016,715
Bath & North East Somerset Council,80615015,LM6,Nursing Care,P11,Adult Social Care & Health,BARCHESTER HEALTHCARE,08/08/2016,715
Bath & North East Somerset Council,80615015,LM6,Nursing Care,P11,Adult Social Care & Health,BARCHESTER HEALTHCARE,08/08/2016,823
Bath & North East Somerset Council,80615015,LM6,Nursing Care,P11,Adult Social Care & Health,BARCHESTER HEALTHCARE,08/08/2016,823
Bath & North East Somerset Council,80615015,LM6,Nursing Care,P11,Adult Social Care & Health,BARCHESTER HEALTHCARE,08/08/2016,823
Bath & North East Somerset Council,80615015,LM6,Nursing Care,P11,Adult Social Care & Health,BARCHESTER HEALTHCARE,08/08/2016,823
Bath & North East Somerset Council,80615015,LM6,Nursing Care,P11,Adult Social Care & Health,BARCHESTER HEALTHCARE,08/08/2016,823
Bath & North East Somerset Council,80615015,LM6,Nursing Care,P11,Adult Social Care & Health,BARCHESTER HEALTHCARE,08/08/2016,823
Bath & North East Somerset Council,80615064,LM6,Nursing Care,P11,Adult Social Care & Health,BARCHESTER HEALTHCARE,08/08/2016,850
Bath & North East Somerset Council,80615064,LM6,Nursing Care,P11,Adult Social Care & Health,BARCHESTER HEALTHCARE,08/08/2016,850
Bath & North East Somerset Council,80615053,LM6,Nursing Care,P11,Adult Social Care & Health,BARCHESTER HEALTHCARE HOMES LTD,08/08/2016,12.64
Bath & North East Somerset Council,80615053,LM6,Nursing Care,P11,Adult Social Care & Health,BARCHESTER HEALTHCARE HOMES LTD,08/08/2016,18.96
Bath & North East Somerset Council,80615053,LM6,Nursing Care,P11,Adult Social Care & Health,BARCHESTER HEALTHCARE HOMES LTD,08/08/2016,18.96
Bath & North East Somerset Council,80615053,LM6,Nursing Care,P11,Adult Social Care & Health,BARCHESTER HEALTHCARE HOMES LTD,08/08/2016,18.96
Bath & North East Somerset Council,80615053,LM6,Nursing Care,P11,Adult Social Care & Health,BARCHESTER HEALTHCARE HOMES LTD,08/08/2016,18.96
Bath & North East Somerset Council,80615053,LM6,Nursing Care,P11,Adult Social Care & Health,BARCHESTER HEALTHCARE HOMES LTD,08/08/2016,18.96
Bath & North East Somerset Council,80615053,LM6,Nursing Care,P11,Adult Social Care & Health,BARCHESTER HEALTHCARE HOMES LTD,08/08/2016,18.96
Bath & North East Somerset Council,80615053,LM6,Nursing Care,P11,Adult Social Care & Health,BARCHESTER HEALTHCARE HOMES LTD,08/08/2016,18.96
Bath & North East Somerset Council,80615053,LM6,Nursing Care,P11,Adult Social Care & Health,BARCHESTER HEALTHCARE HOMES LTD,08/08/2016,18.96
Bath & North East Somerset Council,80615053,LM6,Nursing Care,P11,Adult Social Care & Health,BARCHESTER HEALTHCARE HOMES LTD,08/08/2016,18.96
Bath & North East Somerset Council,80615053,LM6,Nursing Care,P11,Adult Social Care & Health,BARCHESTER HEALTHCARE HOMES LTD,08/08/2016,18.96
Bath & North East Somerset Council,80615053,LM6,Nursing Care,P11,Adult Social Care & Health,BARCHESTER HEALTHCARE HOMES LTD,08/08/2016,18.96
Bath & North East Somerset Council,80615053,LM6,Nursing Care,P11,Adult Social Care & Health,BARCHESTER HEALTHCARE HOMES LTD,08/08/2016,18.96
Bath & North East Somerset Council,80615053,LM6,Nursing Care,P11,Adult Social Care & Health,BARCHESTER HEALTHCARE HOMES LTD,08/08/2016,18.96
Bath & North East Somerset Council,80615053,LM6,Nursing Care,P11,Adult Social Care & Health,BARCHESTER HEALTHCARE HOMES LTD,08/08/2016,18.96
Bath & North East Somerset Council,80615053,LM6,Nursing Care,P11,Adult Social Care & Health,BARCHESTER HEALTHCARE HOMES LTD,08/08/2016,18.96
Bath & North East Somerset Council,80615053,LM6,Nursing Care,P11,Adult Social Care & Health,BARCHESTER HEALTHCARE HOMES LTD,08/08/2016,18.96
Bath & North East Somerset Council,80615053,LM6,Nursing Care,P11,Adult Social Care & Health,BARCHESTER HEALTHCARE HOMES LTD,08/08/2016,18.96
Bath & North East Somerset Council,80615053,LM6,Nursing Care,P11,Adult Social Care & Health,BARCHESTER HEALTHCARE HOMES LTD,08/08/2016,18.96
Bath & North East Somerset Council,80615053,LM6,Nursing Care,P11,Adult Social Care & Health,BARCHESTER HEALTHCARE HOMES LTD,08/08/2016,18.96
Bath & North East Somerset Council,80615053,LM6,Nursing Care,P11,Adult Social Care & Health,BARCHESTER HEALTHCARE HOMES LTD,08/08/2016,18.96
Bath & North East Somerset Council,80615053,LM6,Nursing Care,P11,Adult Social Care & Health,BARCHESTER HEALTHCARE HOMES LTD,08/08/2016,18.96
Bath & North East Somerset Council,80615053,LM6,Nursing Care,P11,Adult Social Care & Health,BARCHESTER HEALTHCARE HOMES LTD,08/08/2016,18.96
Bath & North East Somerset Council,80615053,LM6,Nursing Care,P11,Adult Social Care & Health,BARCHESTER HEALTHCARE HOMES LTD,08/08/2016,18.96
Bath & North East Somerset Council,80615053,LM6,Nursing Care,P11,Adult Social Care & Health,BARCHESTER HEALTHCARE HOMES LTD,08/08/2016,18.96
Bath & North East Somerset Council,80615053,LM6,Nursing Care,P11,Adult Social Care & Health,BARCHESTER HEALTHCARE HOMES LTD,08/08/2016,18.96
Bath & North East Somerset Council,80615053,LM6,Nursing Care,P11,Adult Social Care & Health,BARCHESTER HEALTHCARE HOMES LTD,08/08/2016,18.96
Bath & North East Somerset Council,80615053,LM6,Nursing Care,P11,Adult Social Care & Health,BARCHESTER HEALTHCARE HOMES LTD,08/08/2016,18.96
Bath & North East Somerset Council,80615053,LM6,Nursing Care,P11,Adult Social Care & Health,BARCHESTER HEALTHCARE HOMES LTD,08/08/2016,18.96
Bath & North East Somerset Council,80615053,LM6,Nursing Care,P11,Adult Social Care & Health,BARCHESTER HEALTHCARE HOMES LTD,08/08/2016,18.96
Bath & North East Somerset Council,80615053,LM6,Nursing Care,P11,Adult Social Care & Health,BARCHESTER HEALTHCARE HOMES LTD,08/08/2016,18.96
Bath & North East Somerset Council,80615053,LM6,Nursing Care,P11,Adult Social Care & Health,BARCHESTER HEALTHCARE HOMES LTD,08/08/2016,18.96
Bath & North East Somerset Council,80615053,LM6,Nursing Care,P11,Adult Social Care & Health,BARCHESTER HEALTHCARE HOMES LTD,08/08/2016,18.96
Bath & North East Somerset Council,80615053,LM6,Nursing Care,P11,Adult Social Care & Health,BARCHESTER HEALTHCARE HOMES LTD,08/08/2016,18.96
Bath & North East Somerset Council,80615053,LM6,Nursing Care,P11,Adult Social Care & Health,BARCHESTER HEALTHCARE HOMES LTD,08/08/2016,18.96
Bath & North East Somerset Council,80615053,LM6,Nursing Care,P11,Adult Social Care & Health,BARCHESTER HEALTHCARE HOMES LTD,08/08/2016,18.96
Bath & North East Somerset Council,80615053,LM6,Nursing Care,P11,Adult Social Care & Health,BARCHESTER HEALTHCARE HOMES LTD,08/08/2016,18.96
Bath & North East Somerset Council,80615053,LM6,Nursing Care,P11,Adult Social Care & Health,BARCHESTER HEALTHCARE HOMES LTD,08/08/2016,18.96
Bath & North East Somerset Council,80615053,LM6,Nursing Care,P11,Adult Social Care & Health,BARCHESTER HEALTHCARE HOMES LTD,08/08/2016,18.96
Bath & North East Somerset Council,80615053,LM6,Nursing Care,P11,Adult Social Care & Health,BARCHESTER HEALTHCARE HOMES LTD,08/08/2016,18.96
Bath & North East Somerset Council,80615053,LM6,Nursing Care,P11,Adult Social Care & Health,BARCHESTER HEALTHCARE HOMES LTD,08/08/2016,18.96
Bath & North East Somerset Council,80615053,LM6,Nursing Care,P11,Adult Social Care & Health,BARCHESTER HEALTHCARE HOMES LTD,08/08/2016,18.96
Bath & North East Somerset Council,80615053,LM6,Nursing Care,P11,Adult Social Care & Health,BARCHESTER HEALTHCARE HOMES LTD,08/08/2016,18.96
Bath & North East Somerset Council,80615053,LM6,Nursing Care,P11,Adult Social Care & Health,BARCHESTER HEALTHCARE HOMES LTD,08/08/2016,18.96
Bath & North East Somerset Council,80615053,LM6,Nursing Care,P11,Adult Social Care & Health,BARCHESTER HEALTHCARE HOMES LTD,08/08/2016,18.96
Bath & North East Somerset Council,80615053,LM6,Nursing Care,P11,Adult Social Care & Health,BARCHESTER HEALTHCARE HOMES LTD,08/08/2016,18.96
Bath & North East Somerset Council,80615053,LM6,Nursing Care,P11,Adult Social Care & Health,BARCHESTER HEALTHCARE HOMES LTD,08/08/2016,18.96
Bath & North East Somerset Council,80615053,LM6,Nursing Care,P11,Adult Social Care & Health,BARCHESTER HEALTHCARE HOMES LTD,08/08/2016,18.96
Bath & North East Somerset Council,80615053,LM6,Nursing Care,P11,Adult Social Care & Health,BARCHESTER HEALTHCARE HOMES LTD,08/08/2016,18.96
Bath & North East Somerset Council,80615053,LM6,Nursing Care,P11,Adult Social Care & Health,BARCHESTER HEALTHCARE HOMES LTD,08/08/2016,18.96
Bath & North East Somerset Council,80615053,LM6,Nursing Care,P11,Adult Social Care & Health,BARCHESTER HEALTHCARE HOMES LTD,08/08/2016,18.96
Bath & North East Somerset Council,80615053,LM6,Nursing Care,P11,Adult Social Care & Health,BARCHESTER HEALTHCARE HOMES LTD,08/08/2016,25.29
Bath & North East Somerset Council,80615053,LM6,Nursing Care,P11,Adult Social Care & Health,BARCHESTER HEALTHCARE HOMES LTD,08/08/2016,25.29
Bath & North East Somerset Council,80615053,LM6,Nursing Care,P11,Adult Social Care & Health,BARCHESTER HEALTHCARE HOMES LTD,08/08/2016,25.29
Bath & North East Somerset Council,80615053,LM6,Nursing Care,P11,Adult Social Care & Health,BARCHESTER HEALTHCARE HOMES LTD,08/08/2016,25.29
Bath & North East Somerset Council,80615053,LM6,Nursing Care,P11,Adult Social Care & Health,BARCHESTER HEALTHCARE HOMES LTD,08/08/2016,25.29
Bath & North East Somerset Council,80615053,LM6,Nursing Care,P11,Adult Social Care & Health,BARCHESTER HEALTHCARE HOMES LTD,08/08/2016,25.29
Bath & North East Somerset Council,80615053,LM6,Nursing Care,P11,Adult Social Care & Health,BARCHESTER HEALTHCARE HOMES LTD,08/08/2016,31.61
Bath & North East Somerset Council,80615053,LM6,Nursing Care,P11,Adult Social Care & Health,BARCHESTER HEALTHCARE HOMES LTD,08/08/2016,37.93
Bath & North East Somerset Council,80615053,LM6,Nursing Care,P11,Adult Social Care & Health,BARCHESTER HEALTHCARE HOMES LTD,08/08/2016,37.93
Bath & North East Somerset Council,80615053,LM6,Nursing Care,P11,Adult Social Care & Health,BARCHESTER HEALTHCARE HOMES LTD,08/08/2016,44.25
Bath & North East Somerset Council,80615053,LM6,Nursing Care,P11,Adult Social Care & Health,BARCHESTER HEALTHCARE HOMES LTD,08/08/2016,44.25
Bath & North East Somerset Council,80615053,LM6,Nursing Care,P11,Adult Social Care & Health,BARCHESTER HEALTHCARE HOMES LTD,08/08/2016,44.25
Bath & North East Somerset Council,80615053,LM6,Nursing Care,P11,Adult Social Care & Health,BARCHESTER HEALTHCARE HOMES LTD,08/08/2016,44.25
Bath & North East Somerset Council,80615053,LM6,Nursing Care,P11,Adult Social Care & Health,BARCHESTER HEALTHCARE HOMES LTD,08/08/2016,44.25
Bath & North East Somerset Council,80615053,LM6,Nursing Care,P11,Adult Social Care & Health,BARCHESTER HEALTHCARE HOMES LTD,08/08/2016,44.25
Bath & North East Somerset Council,80615053,LM6,Nursing Care,P11,Adult Social Care & Health,BARCHESTER HEALTHCARE HOMES LTD,08/08/2016,44.25
Bath & North East Somerset Council,80615053,LM6,Nursing Care,P11,Adult Social Care & Health,BARCHESTER HEALTHCARE HOMES LTD,08/08/2016,44.25
Bath & North East Somerset Council,80615053,LM6,Nursing Care,P11,Adult Social Care & Health,BARCHESTER HEALTHCARE HOMES LTD,08/08/2016,44.25
Bath & North East Somerset Council,80615053,LM6,Nursing Care,P11,Adult Social Care & Health,BARCHESTER HEALTHCARE HOMES LTD,08/08/2016,44.25
Bath & North East Somerset Council,80615053,LM6,Nursing Care,P11,Adult Social Care & Health,BARCHESTER HEALTHCARE HOMES LTD,08/08/2016,44.25
Bath & North East Somerset Council,80615053,LM6,Nursing Care,P11,Adult Social Care & Health,BARCHESTER HEALTHCARE HOMES LTD,08/08/2016,44.25
Bath & North East Somerset Council,80615053,LM6,Nursing Care,P11,Adult Social Care & Health,BARCHESTER HEALTHCARE HOMES LTD,08/08/2016,44.25
Bath & North East Somerset Council,80615053,LM6,Nursing Care,P11,Adult Social Care & Health,BARCHESTER HEALTHCARE HOMES LTD,08/08/2016,44.25
Bath & North East Somerset Council,80615053,LM6,Nursing Care,P11,Adult Social Care & Health,BARCHESTER HEALTHCARE HOMES LTD,08/08/2016,44.25
Bath & North East Somerset Council,80615053,LM6,Nursing Care,P11,Adult Social Care & Health,BARCHESTER HEALTHCARE HOMES LTD,08/08/2016,44.25
Bath & North East Somerset Council,80615053,LM6,Nursing Care,P11,Adult Social Care & Health,BARCHESTER HEALTHCARE HOMES LTD,08/08/2016,44.25
Bath & North East Somerset Council,80615053,LM6,Nursing Care,P11,Adult Social Care & Health,BARCHESTER HEALTHCARE HOMES LTD,08/08/2016,44.25
Bath & North East Somerset Council,80615053,LM6,Nursing Care,P11,Adult Social Care & Health,BARCHESTER HEALTHCARE HOMES LTD,08/08/2016,44.25
Bath & North East Somerset Council,80615053,LM6,Nursing Care,P11,Adult Social Care & Health,BARCHESTER HEALTHCARE HOMES LTD,08/08/2016,44.25
Bath & North East Somerset Council,80615053,LM6,Nursing Care,P11,Adult Social Care & Health,BARCHESTER HEALTHCARE HOMES LTD,08/08/2016,44.25
Bath & North East Somerset Council,80615053,LM6,Nursing Care,P11,Adult Social Care & Health,BARCHESTER HEALTHCARE HOMES LTD,08/08/2016,44.25
Bath & North East Somerset Council,80615053,LM6,Nursing Care,P11,Adult Social Care & Health,BARCHESTER HEALTHCARE HOMES LTD,08/08/2016,44.25
Bath & North East Somerset Council,80615053,LM6,Nursing Care,P11,Adult Social Care & Health,BARCHESTER HEALTHCARE HOMES LTD,08/08/2016,44.25
Bath & North East Somerset Council,80615053,LM6,Nursing Care,P11,Adult Social Care & Health,BARCHESTER HEALTHCARE HOMES LTD,08/08/2016,44.25
Bath & North East Somerset Council,80615053,LM6,Nursing Care,P11,Adult Social Care & Health,BARCHESTER HEALTHCARE HOMES LTD,08/08/2016,44.25
Bath & North East Somerset Council,80615053,LM6,Nursing Care,P11,Adult Social Care & Health,BARCHESTER HEALTHCARE HOMES LTD,08/08/2016,44.25
Bath & North East Somerset Council,80615053,LM6,Nursing Care,P11,Adult Social Care & Health,BARCHESTER HEALTHCARE HOMES LTD,08/08/2016,44.25
Bath & North East Somerset Council,80615053,LM6,Nursing Care,P11,Adult Social Care & Health,BARCHESTER HEALTHCARE HOMES LTD,08/08/2016,44.25
Bath & North East Somerset Council,80615053,LM6,Nursing Care,P11,Adult Social Care & Health,BARCHESTER HEALTHCARE HOMES LTD,08/08/2016,44.25
Bath & North East Somerset Council,80615053,LM6,Nursing Care,P11,Adult Social Care & Health,BARCHESTER HEALTHCARE HOMES LTD,08/08/2016,44.25
Bath & North East Somerset Council,80615053,LM6,Nursing Care,P11,Adult Social Care & Health,BARCHESTER HEALTHCARE HOMES LTD,08/08/2016,44.25
Bath & North East Somerset Council,80615053,LM6,Nursing Care,P11,Adult Social Care & Health,BARCHESTER HEALTHCARE HOMES LTD,08/08/2016,44.25
Bath & North East Somerset Council,80615053,LM6,Nursing Care,P11,Adult Social Care & Health,BARCHESTER HEALTHCARE HOMES LTD,08/08/2016,44.25
Bath & North East Somerset Council,80615053,LM6,Nursing Care,P11,Adult Social Care & Health,BARCHESTER HEALTHCARE HOMES LTD,08/08/2016,44.25
Bath & North East Somerset Council,80615053,LM6,Nursing Care,P11,Adult Social Care & Health,BARCHESTER HEALTHCARE HOMES LTD,08/08/2016,44.25
Bath & North East Somerset Council,80615053,LM6,Nursing Care,P11,Adult Social Care & Health,BARCHESTER HEALTHCARE HOMES LTD,08/08/2016,44.25
Bath & North East Somerset Council,80615053,LM6,Nursing Care,P11,Adult Social Care & Health,BARCHESTER HEALTHCARE HOMES LTD,08/08/2016,44.25
Bath & North East Somerset Council,80615053,LM6,Nursing Care,P11,Adult Social Care & Health,BARCHESTER HEALTHCARE HOMES LTD,08/08/2016,44.25
Bath & North East Somerset Council,80615053,LM6,Nursing Care,P11,Adult Social Care & Health,BARCHESTER HEALTHCARE HOMES LTD,08/08/2016,44.25
Bath & North East Somerset Council,80615053,LM6,Nursing Care,P11,Adult Social Care & Health,BARCHESTER HEALTHCARE HOMES LTD,08/08/2016,44.25
Bath & North East Somerset Council,80615053,LM6,Nursing Care,P11,Adult Social Care & Health,BARCHESTER HEALTHCARE HOMES LTD,08/08/2016,44.25
Bath & North East Somerset Council,80615053,LM6,Nursing Care,P11,Adult Social Care & Health,BARCHESTER HEALTHCARE HOMES LTD,08/08/2016,44.25
Bath & North East Somerset Council,80615053,LM6,Nursing Care,P11,Adult Social Care & Health,BARCHESTER HEALTHCARE HOMES LTD,08/08/2016,44.25
Bath & North East Somerset Council,80615053,LM6,Nursing Care,P11,Adult Social Care & Health,BARCHESTER HEALTHCARE HOMES LTD,08/08/2016,44.25
Bath & North East Somerset Council,80615053,LM6,Nursing Care,P11,Adult Social Care & Health,BARCHESTER HEALTHCARE HOMES LTD,08/08/2016,44.25
Bath & North East Somerset Council,80615053,LM6,Nursing Care,P11,Adult Social Care & Health,BARCHESTER HEALTHCARE HOMES LTD,08/08/2016,44.25
Bath & North East Somerset Council,80615053,LM6,Nursing Care,P11,Adult Social Care & Health,BARCHESTER HEALTHCARE HOMES LTD,08/08/2016,44.25
Bath & North East Somerset Council,80615053,LM6,Nursing Care,P11,Adult Social Care & Health,BARCHESTER HEALTHCARE HOMES LTD,08/08/2016,44.25
Bath & North East Somerset Council,80615053,LM6,Nursing Care,P11,Adult Social Care & Health,BARCHESTER HEALTHCARE HOMES LTD,08/08/2016,44.25
Bath & North East Somerset Council,80615053,LM6,Nursing Care,P11,Adult Social Care & Health,BARCHESTER HEALTHCARE HOMES LTD,08/08/2016,44.25
Bath & North East Somerset Council,80615053,LM6,Nursing Care,P11,Adult Social Care & Health,BARCHESTER HEALTHCARE HOMES LTD,08/08/2016,44.25
Bath & North East Somerset Council,80615053,LM6,Nursing Care,P11,Adult Social Care & Health,BARCHESTER HEALTHCARE HOMES LTD,08/08/2016,44.25
Bath & North East Somerset Council,80615053,LM6,Nursing Care,P11,Adult Social Care & Health,BARCHESTER HEALTHCARE HOMES LTD,08/08/2016,44.25
Bath & North East Somerset Council,80615053,LM6,Nursing Care,P11,Adult Social Care & Health,BARCHESTER HEALTHCARE HOMES LTD,08/08/2016,44.25
Bath & North East Somerset Council,80615053,LM6,Nursing Care,P11,Adult Social Care & Health,BARCHESTER HEALTHCARE HOMES LTD,08/08/2016,44.25
Bath & North East Somerset Council,80615053,LM6,Nursing Care,P11,Adult Social Care & Health,BARCHESTER HEALTHCARE HOMES LTD,08/08/2016,44.25
Bath & North East Somerset Council,80615053,LM6,Nursing Care,P11,Adult Social Care & Health,BARCHESTER HEALTHCARE HOMES LTD,08/08/2016,44.25
Bath & North East Somerset Council,80615053,LM6,Nursing Care,P11,Adult Social Care & Health,BARCHESTER HEALTHCARE HOMES LTD,08/08/2016,44.25
Bath & North East Somerset Council,80615053,LM6,Nursing Care,P11,Adult Social Care & Health,BARCHESTER HEALTHCARE HOMES LTD,08/08/2016,44.25
Bath & North East Somerset Council,80615053,LM6,Nursing Care,P11,Adult Social Care & Health,BARCHESTER HEALTHCARE HOMES LTD,08/08/2016,44.25
Bath & North East Somerset Council,80615053,LM6,Nursing Care,P11,Adult Social Care & Health,BARCHESTER HEALTHCARE HOMES LTD,08/08/2016,44.25
Bath & North East Somerset Council,80615053,LM6,Nursing Care,P11,Adult Social Care & Health,BARCHESTER HEALTHCARE HOMES LTD,08/08/2016,44.25
Bath & North East Somerset Council,80615053,LM6,Nursing Care,P11,Adult Social Care & Health,BARCHESTER HEALTHCARE HOMES LTD,08/08/2016,44.25
Bath & North East Somerset Council,80615053,LM6,Nursing Care,P11,Adult Social Care & Health,BARCHESTER HEALTHCARE HOMES LTD,08/08/2016,44.25
Bath & North East Somerset Council,80615053,LM6,Nursing Care,P11,Adult Social Care & Health,BARCHESTER HEALTHCARE HOMES LTD,08/08/2016,44.25
Bath & North East Somerset Council,80615053,LM6,Nursing Care,P11,Adult Social Care & Health,BARCHESTER HEALTHCARE HOMES LTD,08/08/2016,44.25
Bath & North East Somerset Council,80615053,LM6,Nursing Care,P11,Adult Social Care & Health,BARCHESTER HEALTHCARE HOMES LTD,08/08/2016,44.25
Bath & North East Somerset Council,80615053,LM6,Nursing Care,P11,Adult Social Care & Health,BARCHESTER HEALTHCARE HOMES LTD,08/08/2016,44.25
Bath & North East Somerset Council,80615053,LM6,Nursing Care,P11,Adult Social Care & Health,BARCHESTER HEALTHCARE HOMES LTD,08/08/2016,44.25
Bath & North East Somerset Council,80615053,LM6,Nursing Care,P11,Adult Social Care & Health,BARCHESTER HEALTHCARE HOMES LTD,08/08/2016,44.25
Bath & North East Somerset Council,80615053,LM6,Nursing Care,P11,Adult Social Care & Health,BARCHESTER HEALTHCARE HOMES LTD,08/08/2016,44.25
Bath & North East Somerset Council,80615053,LM6,Nursing Care,P11,Adult Social Care & Health,BARCHESTER HEALTHCARE HOMES LTD,08/08/2016,44.25
Bath & North East Somerset Council,80615053,LM6,Nursing Care,P11,Adult Social Care & Health,BARCHESTER HEALTHCARE HOMES LTD,08/08/2016,44.25
Bath & North East Somerset Council,80615053,LM6,Nursing Care,P11,Adult Social Care & Health,BARCHESTER HEALTHCARE HOMES LTD,08/08/2016,44.25
Bath & North East Somerset Council,80615053,LM6,Nursing Care,P11,Adult Social Care & Health,BARCHESTER HEALTHCARE HOMES LTD,08/08/2016,44.25
Bath & North East Somerset Council,80615053,LM6,Nursing Care,P11,Adult Social Care & Health,BARCHESTER HEALTHCARE HOMES LTD,08/08/2016,44.25
Bath & North East Somerset Council,80615053,LM6,Nursing Care,P11,Adult Social Care & Health,BARCHESTER HEALTHCARE HOMES LTD,08/08/2016,44.25
Bath & North East Somerset Council,80615053,LM6,Nursing Care,P11,Adult Social Care & Health,BARCHESTER HEALTHCARE HOMES LTD,08/08/2016,44.25
Bath & North East Somerset Council,80615053,LM6,Nursing Care,P11,Adult Social Care & Health,BARCHESTER HEALTHCARE HOMES LTD,08/08/2016,44.25
Bath & North East Somerset Council,80615053,LM6,Nursing Care,P11,Adult Social Care & Health,BARCHESTER HEALTHCARE HOMES LTD,08/08/2016,44.25
Bath & North East Somerset Council,80615053,LM6,Nursing Care,P11,Adult Social Care & Health,BARCHESTER HEALTHCARE HOMES LTD,08/08/2016,44.25
Bath & North East Somerset Council,80615053,LM6,Nursing Care,P11,Adult Social Care & Health,BARCHESTER HEALTHCARE HOMES LTD,08/08/2016,44.25
Bath & North East Somerset Council,80615053,LM6,Nursing Care,P11,Adult Social Care & Health,BARCHESTER HEALTHCARE HOMES LTD,08/08/2016,44.25
Bath & North East Somerset Council,80615053,LM6,Nursing Care,P11,Adult Social Care & Health,BARCHESTER HEALTHCARE HOMES LTD,08/08/2016,44.25
Bath & North East Somerset Council,80615053,LM6,Nursing Care,P11,Adult Social Care & Health,BARCHESTER HEALTHCARE HOMES LTD,08/08/2016,44.25
Bath & North East Somerset Council,80615053,LM6,Nursing Care,P11,Adult Social Care & Health,BARCHESTER HEALTHCARE HOMES LTD,08/08/2016,44.25
Bath & North East Somerset Council,80615053,LM6,Nursing Care,P11,Adult Social Care & Health,BARCHESTER HEALTHCARE HOMES LTD,08/08/2016,44.25
Bath & North East Somerset Council,80615053,LM6,Nursing Care,P11,Adult Social Care & Health,BARCHESTER HEALTHCARE HOMES LTD,08/08/2016,44.25
Bath & North East Somerset Council,80615053,LM6,Nursing Care,P11,Adult Social Care & Health,BARCHESTER HEALTHCARE HOMES LTD,08/08/2016,44.25
Bath & North East Somerset Council,80615053,LM6,Nursing Care,P11,Adult Social Care & Health,BARCHESTER HEALTHCARE HOMES LTD,08/08/2016,44.25
Bath & North East Somerset Council,80615053,LM6,Nursing Care,P11,Adult Social Care & Health,BARCHESTER HEALTHCARE HOMES LTD,08/08/2016,44.25
Bath & North East Somerset Council,80615053,LM6,Nursing Care,P11,Adult Social Care & Health,BARCHESTER HEALTHCARE HOMES LTD,08/08/2016,44.25
Bath & North East Somerset Council,80615053,LM6,Nursing Care,P11,Adult Social Care & Health,BARCHESTER HEALTHCARE HOMES LTD,08/08/2016,44.25
Bath & North East Somerset Council,80615053,LM6,Nursing Care,P11,Adult Social Care & Health,BARCHESTER HEALTHCARE HOMES LTD,08/08/2016,44.25
Bath & North East Somerset Council,80615053,LM6,Nursing Care,P11,Adult Social Care & Health,BARCHESTER HEALTHCARE HOMES LTD,08/08/2016,44.25
Bath & North East Somerset Council,80615053,LM6,Nursing Care,P11,Adult Social Care & Health,BARCHESTER HEALTHCARE HOMES LTD,08/08/2016,44.25
Bath & North East Somerset Council,80615053,LM6,Nursing Care,P11,Adult Social Care & Health,BARCHESTER HEALTHCARE HOMES LTD,08/08/2016,44.25
Bath & North East Somerset Council,80615053,LM6,Nursing Care,P11,Adult Social Care & Health,BARCHESTER HEALTHCARE HOMES LTD,08/08/2016,44.25
Bath & North East Somerset Council,80615053,LM6,Nursing Care,P11,Adult Social Care & Health,BARCHESTER HEALTHCARE HOMES LTD,08/08/2016,44.25
Bath & North East Somerset Council,80615053,LM6,Nursing Care,P11,Adult Social Care & Health,BARCHESTER HEALTHCARE HOMES LTD,08/08/2016,44.25
Bath & North East Somerset Council,80615053,LM6,Nursing Care,P11,Adult Social Care & Health,BARCHESTER HEALTHCARE HOMES LTD,08/08/2016,44.25
Bath & North East Somerset Council,80615053,LM6,Nursing Care,P11,Adult Social Care & Health,BARCHESTER HEALTHCARE HOMES LTD,08/08/2016,44.25
Bath & North East Somerset Council,80615053,LM6,Nursing Care,P11,Adult Social Care & Health,BARCHESTER HEALTHCARE HOMES LTD,08/08/2016,44.25
Bath & North East Somerset Council,80615053,LM6,Nursing Care,P11,Adult Social Care & Health,BARCHESTER HEALTHCARE HOMES LTD,08/08/2016,44.25
Bath & North East Somerset Council,80615053,LM6,Nursing Care,P11,Adult Social Care & Health,BARCHESTER HEALTHCARE HOMES LTD,08/08/2016,44.25
Bath & North East Somerset Council,80615053,LM6,Nursing Care,P11,Adult Social Care & Health,BARCHESTER HEALTHCARE HOMES LTD,08/08/2016,44.25
Bath & North East Somerset Council,80615053,LM6,Nursing Care,P11,Adult Social Care & Health,BARCHESTER HEALTHCARE HOMES LTD,08/08/2016,44.25
Bath & North East Somerset Council,80615053,LM6,Nursing Care,P11,Adult Social Care & Health,BARCHESTER HEALTHCARE HOMES LTD,08/08/2016,44.25
Bath & North East Somerset Council,80615053,LM6,Nursing Care,P11,Adult Social Care & Health,BARCHESTER HEALTHCARE HOMES LTD,08/08/2016,44.25
Bath & North East Somerset Council,80615053,LM6,Nursing Care,P11,Adult Social Care & Health,BARCHESTER HEALTHCARE HOMES LTD,08/08/2016,44.25
Bath & North East Somerset Council,80615053,LM6,Nursing Care,P11,Adult Social Care & Health,BARCHESTER HEALTHCARE HOMES LTD,08/08/2016,44.25
Bath & North East Somerset Council,80615053,LM6,Nursing Care,P11,Adult Social Care & Health,BARCHESTER HEALTHCARE HOMES LTD,08/08/2016,44.25
Bath & North East Somerset Council,80615053,LM6,Nursing Care,P11,Adult Social Care & Health,BARCHESTER HEALTHCARE HOMES LTD,08/08/2016,44.25
Bath & North East Somerset Council,80615053,LM6,Nursing Care,P11,Adult Social Care & Health,BARCHESTER HEALTHCARE HOMES LTD,08/08/2016,44.25
Bath & North East Somerset Council,80615053,LM6,Nursing Care,P11,Adult Social Care & Health,BARCHESTER HEALTHCARE HOMES LTD,08/08/2016,44.25
Bath & North East Somerset Council,80615053,LM6,Nursing Care,P11,Adult Social Care & Health,BARCHESTER HEALTHCARE HOMES LTD,08/08/2016,44.25
Bath & North East Somerset Council,80615053,LM6,Nursing Care,P11,Adult Social Care & Health,BARCHESTER HEALTHCARE HOMES LTD,08/08/2016,44.25
Bath & North East Somerset Council,80615053,LM6,Nursing Care,P11,Adult Social Care & Health,BARCHESTER HEALTHCARE HOMES LTD,08/08/2016,44.25
Bath & North East Somerset Council,80615053,LM6,Nursing Care,P11,Adult Social Care & Health,BARCHESTER HEALTHCARE HOMES LTD,08/08/2016,44.25
Bath & North East Somerset Council,80615053,LM6,Nursing Care,P11,Adult Social Care & Health,BARCHESTER HEALTHCARE HOMES LTD,08/08/2016,44.25
Bath & North East Somerset Council,80615053,LM6,Nursing Care,P11,Adult Social Care & Health,BARCHESTER HEALTHCARE HOMES LTD,08/08/2016,44.25
Bath & North East Somerset Council,80615053,LM6,Nursing Care,P11,Adult Social Care & Health,BARCHESTER HEALTHCARE HOMES LTD,08/08/2016,44.25
Bath & North East Somerset Council,80615053,LM6,Nursing Care,P11,Adult Social Care & Health,BARCHESTER HEALTHCARE HOMES LTD,08/08/2016,44.25
Bath & North East Somerset Council,80615053,LM6,Nursing Care,P11,Adult Social Care & Health,BARCHESTER HEALTHCARE HOMES LTD,08/08/2016,44.25
Bath & North East Somerset Council,80615053,LM6,Nursing Care,P11,Adult Social Care & Health,BARCHESTER HEALTHCARE HOMES LTD,08/08/2016,44.25
Bath & North East Somerset Council,80615053,LM6,Nursing Care,P11,Adult Social Care & Health,BARCHESTER HEALTHCARE HOMES LTD,08/08/2016,44.25
